Workbook

Sheet Tex-113,4-E
A1: TxDOT Manuals > | D1: Tex-113-E | E1: Tex-114-E
B2: TEXAS DEPARTMENT OF TRANSPORTATION | P2: 259
P3: 4
P4: tx113,4.xlsm::45448.658032
B5: Moisture-Density Relations of Base Material & Sand or Subgrade & Embankment Soils | P5: 45
B6: Tex-113-E or Tex-114-E
L7: ="File Version: " & TEXT(MID(P4,SEARCH("::",P4,1)+2,20),"mm/dd/yy hh:mm:ss") -> File Version: 06/05/24 15:47:34
C8: SAMPLE ID: | I8: SAMPLED DATE:
C9: TEST NUMBER: | I9: LETTING DATE:
C10: SAMPLE STATUS: | I10: CONTROLLING CSJ:
C11: COUNTY: | I11: SPEC YEAR:
C12: SAMPLED BY: | I12: SPEC ITEM:
C13: SAMPLE LOCATION: | I13: SPECIAL PROVISION:
C14: MATERIAL CODE: | I14: GRADE:
C15: MATERIAL NAME:
C16: PRODUCER:
C17: AREA ENGINEER: | G17: PROJECT MANAGER:
C19: COURSE\LIFT: | F19: STATION: | J19: DIST. FROM CL:
B20: Moisture-Density Work Sheet
B22: Oven Dry Weight, (g):
B23: Weight of Pycnometer & Water, (g):
B24: Weight of Aggr., Pycn.& Water, (g):
B25: Specific Gravity (Apparent)(Override):
B26: Specific Gravity (Apparent)(Calc): | E26: =IF(Field126="",IF(ISERROR(E22/(E22+E23-E24)),2.65,E22/(E22+E23-E24)),Field126) -> 2.65
B28: Hygroscopic Moisture, (%):
B30: Sample Number : | E30: 1 | G30: 2 | I30: 3 | K30: 4
B31: Percent Water Content, (%):
B33: Mass Material, (lb):
B34: Mass Water Added, (lb): | E34: =IF(OR(ISERROR((E31/100)*E33),COUNTBLANK(E31:E33)=3,Field15=""),"",(E31/100)*E33) ->  | G34: =IF(OR(ISERROR((G31/100)*G33),COUNTBLANK(G31:G33)=3,Field16=""),"",(G31/100)*G33) ->  | I34: =IF(OR(ISERROR((I31/100)*I33),COUNTBLANK(I31:I33)=3,Field17=""),"",(I31/100)*I33) ->  | K34: =IF(OR(ISERROR((K31/100)*K33),COUNTBLANK(K31:K33)=3,Field18=""),"",(K31/100)*K33) -> 
B36: Wet Mass Specimen & Mold, (lb):
B37: Mass of Mold, (lb):
E38: =IF(OR(ISERROR(Field23),Field23="",Field19=""),"",Field23) ->  | G38: =IF(OR(ISERROR(Field24),Field24=""),IF(OR(ISERROR(Field23),Field23="",Field20=""),"",Field23),Field24) ->  | I38: =IF(OR(ISERROR(Field25),Field25=""),IF(OR(ISERROR(Field23),Field23="",Field21=""),"",Field23),Field25) ->  | K38: =IF(OR(ISERROR(Field26),Field26=""),IF(OR(ISERROR(Field23),Field23="",Field22=""),"",Field23),Field26) -> 
B39: Wet Mass Specimen, (lb): | E39: =IF(N(E36)+N(E38)=0,"",N(E36)-N(E38)) ->  | G39: =IF(N(G36)+N(G38)=0,"",N(G36)-N(G38)) ->  | I39: =IF(N(I36)+N(I38)=0,"",N(I36)-N(I38)) ->  | K39: =IF(N(K36)+N(K38)=0,"",N(K36)-N(K38)) -> 
B40: Height of Specimen, (in.):
B41: Volume per Linear mm., (in.):
E42: =IF(OR(ISERROR(Field31),Field31="",Field27=""),"",Field31) ->  | G42: =IF(OR(ISERROR(Field32),Field32=""),IF(OR(ISERROR(Field31),Field31="",Field28=""),"",Field31),Field32) ->  | I42: =IF(OR(ISERROR(Field33),Field33=""),IF(OR(ISERROR(Field31),Field31="",Field29=""),"",Field31),Field33) ->  | K42: =IF(OR(ISERROR(Field34),Field34=""),IF(OR(ISERROR(Field31),Field31="",Field30=""),"",Field31),Field34) -> 
B43: Volume of Specimen, (ft^3): | E43: =IF(ISERROR(IF(AND(E40="",E42=""),"",E42*E40)),"",IF(AND(E40="",E42=""),"",E42*E40)) ->  | G43: =IF(ISERROR(IF(AND(G40="",G42=""),"",G42*G40)),"",IF(AND(G40="",G42=""),"",G42*G40)) ->  | I43: =IF(ISERROR(IF(AND(I40="",I42=""),"",I42*I40)),"",IF(AND(I40="",I42=""),"",I42*I40)) ->  | K43: =IF(ISERROR(IF(AND(K40="",K42=""),"",K42*K40)),"",IF(AND(K40="",K42=""),"",K42*K40)) -> 
B44: Wet Density of Specimen, (lb): | E44: =IF(ISERROR(E39/E43),"",E39/E43) ->  | G44: =IF(ISERROR(G39/G43),"",G39/G43) ->  | I44: =IF(ISERROR(I39/I43),"",I39/I43) ->  | K44: =IF(ISERROR(K39/K43),"",K39/K43) -> 
B45: Wet Mass of Pan & Specimen, (lb):
B46: Dry Mass Pan & Specimen, (lb):
B47: Tare Mass Pan, (lb):
B48: Dry Mass Material , (lb): | E48: =IF(COUNTBLANK(E46:E47)=2,"",E46-E47) ->  | G48: =IF(COUNTBLANK(G46:G47)=2,"",G46-G47) ->  | I48: =IF(COUNTBLANK(I46:I47)=2,"",I46-I47) ->  | K48: =IF(COUNTBLANK(K46:K47)=2,"",K46-K47) -> 
B49: Mass Water, (lb): | E49: =IF(COUNTBLANK(E45:E46)=2,"",E45-E46) ->  | G49: =IF(COUNTBLANK(G45:G46)=2,"",G45-G46) ->  | I49: =IF(COUNTBLANK(I45:I46)=2,"",I45-I46) ->  | K49: =IF(COUNTBLANK(K45:K46)=2,"",K45-K46) -> 
B50: Percent Water on Total , (%): | E50: =IF(ISERROR((E49/E48)*100),"",(E49/E48)*100) ->  | G50: =IF(ISERROR((G49/G48)*100),"",(G49/G48)*100) ->  | I50: =IF(ISERROR((I49/I48)*100),"",(I49/I48)*100) ->  | K50: =IF(ISERROR((K49/K48)*100),"",(K49/K48)*100) -> 
B51: Dry Density, (pcf): | E51: =IF(ISERROR(E44/(1+(E50/100))),"",E44/(1+(E50/100))) ->  | G51: =IF(ISERROR(G44/(1+(G50/100))),"",G44/(1+(G50/100))) ->  | I51: =IF(ISERROR(I44/(1+(I50/100))),"",I44/(1+(I50/100))) ->  | K51: =IF(ISERROR(K44/(1+(K50/100))),"",K44/(1+(K50/100))) -> 
B52: Estimated Dry Density, (pcf): | E52: =IF(ISERROR(E44/(1+(E31/100))),"",E44/(1+(E31/100))) ->  | G52: =IF(ISERROR(G44/(1+(G31/100))),"",G44/(1+(G31/100))) ->  | I52: =IF(ISERROR(I44/(1+(I31/100))),"",I44/(1+(I31/100))) ->  | K52: =IF(ISERROR(K44/(1+(K31/100))),"",K44/(1+(K31/100))) -> 
B54: SCA Energy Data | E54: Total Energy (lb-ft) | F54: Avg Energy/ Blow (lb-ft) | G54: Total Energy (lb-ft) | H54: Avg Energy/ Blow (lb-ft) | I54: Total Energy (lb-ft) | J54: Avg Energy/ Blow (lb-ft) | K54: Total Energy (lb-ft) | L54: Avg Energy/ Blow (lb-ft)
B55: Lift 1:
B56: Lift 2:
B57: Lift 3:
B58: Lift 4:
B60: SCA Drop Data | E60: Avg. Drop Ht. (in) | F60: Blows | G60: Avg. Drop Ht.(in) | H60: Blows | I60: Avg. Drop Ht.(in) | J60: Blows | K60: Avg. Drop Ht.(in) | L60: Blows
B61: Lift 1:
B62: Lift 2:
B63: Lift 3:
B64: Lift 4:
B66: Import Data
B68: SCA Energy Data | E68: Total Energy (lb-ft) | F68: Avg Energy/ Blow (lb-ft) | G68: Total Energy (lb-ft) | H68: Avg Energy/ Blow (lb-ft) | I68: Total Energy (lb-ft) | J68: Avg Energy/ Blow (lb-ft) | K68: Total Energy (lb-ft) | L68: Avg Energy/ Blow (lb-ft)
B69: Lift 1: | E69: =IF(OR(ISERROR(ROUND(Reference!R7,1)),Reference!R7="",Reference!R7=0),"",ROUND(Reference!R7,1)) ->  | F69: =IF(OR(ISERROR(ROUND(Reference!S7,1)),Reference!S7="",Reference!S7=0),"",ROUND(Reference!S7,1)) ->  | G69: =IF(OR(ISERROR(ROUND(Reference!T7,1)),Reference!T7="",Reference!T7=0),"",ROUND(Reference!T7,1)) ->  | H69: =IF(OR(ISERROR(ROUND(Reference!U7,1)),Reference!U7="",Reference!U7=0),"",ROUND(Reference!U7,1)) ->  | I69: =IF(OR(ISERROR(ROUND(Reference!V7,1)),Reference!V7="",Reference!V7=0),"",ROUND(Reference!V7,1)) ->  | J69: =IF(OR(ISERROR(ROUND(Reference!W7,1)),Reference!W7="",Reference!W7=0),"",ROUND(Reference!W7,1)) ->  | K69: =IF(OR(ISERROR(ROUND(Reference!X7,1)),Reference!X7="",Reference!X7=0),"",ROUND(Reference!X7,1)) ->  | L69: =IF(OR(ISERROR(ROUND(Reference!Y7,1)),Reference!Y7="",Reference!Y7=0),"",ROUND(Reference!Y7,1)) -> 
B70: Lift 2: | E70: =IF(OR(ISERROR(ROUND(Reference!R8,1)),Reference!R8="",Reference!R8=0),"",ROUND(Reference!R8,1)) ->  | F70: =IF(OR(ISERROR(ROUND(Reference!S8,1)),Reference!S8="",Reference!S8=0),"",ROUND(Reference!S8,1)) ->  | G70: =IF(OR(ISERROR(ROUND(Reference!T8,1)),Reference!T8="",Reference!T8=0),"",ROUND(Reference!T8,1)) ->  | H70: =IF(OR(ISERROR(ROUND(Reference!U8,1)),Reference!U8="",Reference!U8=0),"",ROUND(Reference!U8,1)) ->  | I70: =IF(OR(ISERROR(ROUND(Reference!V8,1)),Reference!V8="",Reference!V8=0),"",ROUND(Reference!V8,1)) ->  | J70: =IF(OR(ISERROR(ROUND(Reference!W8,1)),Reference!W8="",Reference!W8=0),"",ROUND(Reference!W8,1)) ->  | K70: =IF(OR(ISERROR(ROUND(Reference!X8,1)),Reference!X8="",Reference!X8=0),"",ROUND(Reference!X8,1)) ->  | L70: =IF(OR(ISERROR(ROUND(Reference!Y8,1)),Reference!Y8="",Reference!Y8=0),"",ROUND(Reference!Y8,1)) -> 
B71: Lift 3: | E71: =IF(OR(ISERROR(ROUND(Reference!R9,1)),Reference!R9="",Reference!R9=0),"",ROUND(Reference!R9,1)) ->  | F71: =IF(OR(ISERROR(ROUND(Reference!S9,1)),Reference!S9="",Reference!S9=0),"",ROUND(Reference!S9,1)) ->  | G71: =IF(OR(ISERROR(ROUND(Reference!T9,1)),Reference!T9="",Reference!T9=0),"",ROUND(Reference!T9,1)) ->  | H71: =IF(OR(ISERROR(ROUND(Reference!U9,1)),Reference!U9="",Reference!U9=0),"",ROUND(Reference!U9,1)) ->  | I71: =IF(OR(ISERROR(ROUND(Reference!V9,1)),Reference!V9="",Reference!V9=0),"",ROUND(Reference!V9,1)) ->  | J71: =IF(OR(ISERROR(ROUND(Reference!W9,1)),Reference!W9="",Reference!W9=0),"",ROUND(Reference!W9,1)) ->  | K71: =IF(OR(ISERROR(ROUND(Reference!X9,1)),Reference!X9="",Reference!X9=0),"",ROUND(Reference!X9,1)) ->  | L71: =IF(OR(ISERROR(ROUND(Reference!Y9,1)),Reference!Y9="",Reference!Y9=0),"",ROUND(Reference!Y9,1)) -> 
B72: Lift 4: | E72: =IF(OR(ISERROR(ROUND(Reference!R10,1)),Reference!R10="",Reference!R10=0),"",ROUND(Reference!R10,1)) ->  | F72: =IF(OR(ISERROR(ROUND(Reference!S10,1)),Reference!S10="",Reference!S10=0),"",ROUND(Reference!S10,1)) ->  | G72: =IF(OR(ISERROR(ROUND(Reference!T10,1)),Reference!T10="",Reference!T10=0),"",ROUND(Reference!T10,1)) ->  | H72: =IF(OR(ISERROR(ROUND(Reference!U10,1)),Reference!U10="",Reference!U10=0),"",ROUND(Reference!U10,1)) ->  | I72: =IF(OR(ISERROR(ROUND(Reference!V10,1)),Reference!V10="",Reference!V10=0),"",ROUND(Reference!V10,1)) ->  | J72: =IF(OR(ISERROR(ROUND(Reference!W10,1)),Reference!W10="",Reference!W10=0),"",ROUND(Reference!W10,1)) ->  | K72: =IF(OR(ISERROR(ROUND(Reference!X10,1)),Reference!X10="",Reference!X10=0),"",ROUND(Reference!X10,1)) ->  | L72: =IF(OR(ISERROR(ROUND(Reference!Y10,1)),Reference!Y10="",Reference!Y10=0),"",ROUND(Reference!Y10,1)) -> 
B74: SCA Drop Data | E74: Avg. Drop Ht. (in) | F74: Blows | G74: Avg. Drop Ht.(in) | H74: Blows | I74: Avg. Drop Ht.(in) | J74: Blows | K74: Avg. Drop Ht.(in) | L74: Blows
B75: Lift 1: | E75: =IF(OR(ISERROR(ROUND(Reference!R14,2)),Reference!R14="",Reference!R14=0),"",ROUND(Reference!R14,2)) ->  | F75: =IF(OR(ISERROR(ROUND(Reference!S14,2)),Reference!S14="",Reference!S14=0),"",ROUND(Reference!S14,2)) ->  | G75: =IF(OR(ISERROR(ROUND(Reference!T14,2)),Reference!T14="",Reference!T14=0),"",ROUND(Reference!T14,2)) ->  | H75: =IF(OR(ISERROR(ROUND(Reference!U14,2)),Reference!U14="",Reference!U14=0),"",ROUND(Reference!U14,2)) ->  | I75: =IF(OR(ISERROR(ROUND(Reference!V14,2)),Reference!V14="",Reference!V14=0),"",ROUND(Reference!V14,2)) ->  | J75: =IF(OR(ISERROR(ROUND(Reference!W14,2)),Reference!W14="",Reference!W14=0),"",ROUND(Reference!W14,2)) ->  | K75: =IF(OR(ISERROR(ROUND(Reference!X14,2)),Reference!X14="",Reference!X14=0),"",ROUND(Reference!X14,2)) ->  | L75: =IF(OR(ISERROR(ROUND(Reference!Y14,2)),Reference!Y14="",Reference!Y14=0),"",ROUND(Reference!Y14,2)) -> 
B76: Lift 2: | E76: =IF(OR(ISERROR(ROUND(Reference!R15,2)),Reference!R15="",Reference!R15=0),"",ROUND(Reference!R15,2)) ->  | F76: =IF(OR(ISERROR(ROUND(Reference!S15,2)),Reference!S15="",Reference!S15=0),"",ROUND(Reference!S15,2)) ->  | G76: =IF(OR(ISERROR(ROUND(Reference!T15,2)),Reference!T15="",Reference!T15=0),"",ROUND(Reference!T15,2)) ->  | H76: =IF(OR(ISERROR(ROUND(Reference!U15,2)),Reference!U15="",Reference!U15=0),"",ROUND(Reference!U15,2)) ->  | I76: =IF(OR(ISERROR(ROUND(Reference!V15,2)),Reference!V15="",Reference!V15=0),"",ROUND(Reference!V15,2)) ->  | J76: =IF(OR(ISERROR(ROUND(Reference!W15,2)),Reference!W15="",Reference!W15=0),"",ROUND(Reference!W15,2)) ->  | K76: =IF(OR(ISERROR(ROUND(Reference!X15,2)),Reference!X15="",Reference!X15=0),"",ROUND(Reference!X15,2)) ->  | L76: =IF(OR(ISERROR(ROUND(Reference!Y15,2)),Reference!Y15="",Reference!Y15=0),"",ROUND(Reference!Y15,2)) -> 
B77: Lift 3: | E77: =IF(OR(ISERROR(ROUND(Reference!R16,2)),Reference!R16="",Reference!R16=0),"",ROUND(Reference!R16,2)) ->  | F77: =IF(OR(ISERROR(ROUND(Reference!S16,2)),Reference!S16="",Reference!S16=0),"",ROUND(Reference!S16,2)) ->  | G77: =IF(OR(ISERROR(ROUND(Reference!T16,2)),Reference!T16="",Reference!T16=0),"",ROUND(Reference!T16,2)) ->  | H77: =IF(OR(ISERROR(ROUND(Reference!U16,2)),Reference!U16="",Reference!U16=0),"",ROUND(Reference!U16,2)) ->  | I77: =IF(OR(ISERROR(ROUND(Reference!V16,2)),Reference!V16="",Reference!V16=0),"",ROUND(Reference!V16,2)) ->  | J77: =IF(OR(ISERROR(ROUND(Reference!W16,2)),Reference!W16="",Reference!W16=0),"",ROUND(Reference!W16,2)) ->  | K77: =IF(OR(ISERROR(ROUND(Reference!X16,2)),Reference!X16="",Reference!X16=0),"",ROUND(Reference!X16,2)) ->  | L77: =IF(OR(ISERROR(ROUND(Reference!Y16,2)),Reference!Y16="",Reference!Y16=0),"",ROUND(Reference!Y16,2)) -> 
B78: Lift 4: | E78: =IF(OR(ISERROR(ROUND(Reference!R17,2)),Reference!R17="",Reference!R17=0),"",ROUND(Reference!R17,2)) ->  | F78: =IF(OR(ISERROR(ROUND(Reference!S17,2)),Reference!S17="",Reference!S17=0),"",ROUND(Reference!S17,2)) ->  | G78: =IF(OR(ISERROR(ROUND(Reference!T17,2)),Reference!T17="",Reference!T17=0),"",ROUND(Reference!T17,2)) ->  | H78: =IF(OR(ISERROR(ROUND(Reference!U17,2)),Reference!U17="",Reference!U17=0),"",ROUND(Reference!U17,2)) ->  | I78: =IF(OR(ISERROR(ROUND(Reference!V17,2)),Reference!V17="",Reference!V17=0),"",ROUND(Reference!V17,2)) ->  | J78: =IF(OR(ISERROR(ROUND(Reference!W17,2)),Reference!W17="",Reference!W17=0),"",ROUND(Reference!W17,2)) ->  | K78: =IF(OR(ISERROR(ROUND(Reference!X17,2)),Reference!X17="",Reference!X17=0),"",ROUND(Reference!X17,2)) ->  | L78: =IF(OR(ISERROR(ROUND(Reference!Y17,2)),Reference!Y17="",Reference!Y17=0),"",ROUND(Reference!Y17,2)) -> 
B80: Unconfined Strength Data (psi):
B81: Percent Strain (%):
B83: Max Dry Density, (pcf): | E83: =IF(ISERROR(IF(AND(E23>0,E24>0),Reference!C5,IF(K49>0,Reference!C5,"Need SG"))),"",IF(AND(E23>0,E24>0),Reference!C5,IF(K49>0,Reference!C5,"Need SG"))) -> 
B84: Max Density, (kg/m3): | E84: =IF(ISERROR(E83*(0.4536/0.02832)),"",E83*(0.4536/0.02832)) -> 
B85: Optimum Moisture Content, (%): | E85: =IF(ISERROR(Reference!C6),"",Reference!C6) -> 
B86: M-D Graph R2 Value: | E86: =IF(ISERROR(Reference!C7),"",Reference!C7) -> 
B88: Remarks: | C88: =NOW() -> 2024-06-05T15:47:34.760
B94: Sample Method: | C94: Sampled By: | F94: Sampled Date:
B95: TX100
B97: TX400
B99: Test Method: | C99: Tested By: | F99: Tech Cert No: | G99: Tested Date:
B100: TX113
B102: TX114
B103: Test Stamp Code: | E103: Omit Test: | F103: Completed Date: | I103: Reviewed By:
B105: Locked By: | C105: TxDOT: | D105: District: | E105: Area:
B107: Authorized By: | E107: Authorized Date:
F108: =IF(OR(authorizeddate>41091,authorizeddate=""),IF(COUNTBLANK(E55:L58)+COUNTBLANK(E61:L64)=64,4,3),IF(authorizeddate>40225,"3",IF(authorizeddate>38257,"2","1"))) -> 4

Sheet Reference (hidden)
B2: M-D Graph Reference Data and Calculations | Q2: SCA Reference Data
B4: Test Results | E4: M-D Curve Graph Limits | H4: M-D Graph Limit boundaries | K4: Best-Fit Line Coefficient Reference Data | R4: Specimen 1 | T4: Specimen 2 | V4: Specimen 3 | X4: Specimen 4
B5: Max Dry Density | C5: =C12*C6^2+C11*C6+C10 ->  | E5: Min Moisture | F5: =MIN('Tex-113,4-E'!$E$50:$L$50) -> 0 | H5: X | I5: Y | K5: N | L5: Y | M5: X | N5: X^2 | Q5: SCA Energy Data
B6: Opt Moist Content | C6: =-C11/(2*C12) ->  | E6: Max Moisture | F6: =MAX('Tex-113,4-E'!$E$50:$L$50) -> 0 | H6: =F10 -> 0 | I6: =F13 -> 0 | K6: 1 | L6: =N('Tex-113,4-E'!E51) -> 0 | M6: =N('Tex-113,4-E'!E50) -> 0 | N6: =M6^2 -> 0 | Q6: Lift | R6: Total Energy | S6: Avg Energy/Blow | T6: Total Energy | U6: Avg Energy/Blow | V6: Total Energy | W6: Avg Energy/Blow | X6: Total Energy | Y6: Avg Energy/Blow
B7: R^2 | C7: =ROUND(RSQ(B17:B20,C17:C20),4) ->  | E7: Min Density | F7: =MIN('Tex-113,4-E'!E51:L51) -> 0 | H7: =F10 -> 0 | I7: =F12 -> 2 | K7: 2 | L7: =N('Tex-113,4-E'!G51) -> 0 | M7: =N('Tex-113,4-E'!G50) -> 0 | N7: =M7^2 -> 0 | Q7: 1 | R7: =TRANSPOSE('SCA-Data'!D18:G18) -> 0 | S7: =TRANSPOSE('SCA-Data'!D19:G19) -> 0 | T7: =TRANSPOSE('SCA-Data'!K18:N18) -> 0 | U7: =TRANSPOSE('SCA-Data'!K19:N19) -> 0 | V7: =TRANSPOSE('SCA-Data'!R18:U18) -> 0 | W7: =TRANSPOSE('SCA-Data'!R19:U19) -> 0 | X7: =TRANSPOSE('SCA-Data'!Y18:AB18) -> 0 | Y7: =TRANSPOSE('SCA-Data'!Y19:AB19) -> 0
E8: Max Density | F8: =MAX('Tex-113,4-E'!E51:L51) -> 0 | H8: =F10 -> 0 | I8: =I7 -> 2 | K8: 3 | L8: =N('Tex-113,4-E'!I51) -> 0 | M8: =N('Tex-113,4-E'!I50) -> 0 | N8: =M8^2 -> 0 | Q8: 2 | R8: 0 | S8: 0 | T8: 0 | U8: 0 | V8: 0 | W8: 0 | X8: 0 | Y8: 0
B9: Best Fit Line Coefficients | E9: Maximum Value, x-axis | F9: =MROUND(F6+1,1) -> 1 | H9: =F9 -> 1 | I9: =I8 -> 2 | K9: 4 | L9: =IF(AND(L8>0,N('Tex-113,4-E'!K49)=0),N22,N('Tex-113,4-E'!K51)) -> 0 | M9: =IF(AND(M8>0,N('Tex-113,4-E'!K49)=0),N15+2,N('Tex-113,4-E'!K50)) -> 0 | N9: =M9^2 -> 0 | Q9: 3 | R9: 0 | S9: 0 | T9: 0 | U9: 0 | V9: 0 | W9: 0 | X9: 0 | Y9: 0
B10: A0 | C10: =INDEX(LINEST($L$6:$L$9,$M$6:$N$9),3) -> 0 | E10: Minimum Value, x-axis | F10: =IF(ISERROR(MROUND(F5-1,1)),0,MROUND(F5-1,1)) -> 0 | H10: =H9 -> 1 | I10: =I9 -> 2 | K10: 5 | L10: =N16 ->  | M10: =$N$15 ->  | N10: =M10^2 ->  | Q10: 4 | R10: 0 | S10: 0 | T10: 0 | U10: 0 | V10: 0 | W10: 0 | X10: 0 | Y10: 0
B11: A1 | C11: =INDEX(LINEST($L$6:$L$9,$M$6:$N$9),2) -> 0 | E11: Scale | F11: =(F9-F10)/150 -> 0.006666666667 | H11: =H10 -> 1 | I11: =I6 -> 0 | K11: SUM | L11: =SUM(L8:L10) ->  | M11: =SUM(M8:M10) ->  | N11: =SUM(N6:N10) -> 
B12: A2 | C12: =INDEX(LINEST($L$6:$L$9,$M$6:$N$9),1) -> 0 | E12: Maximum Value, y-axis | F12: =ROUND(F8,0)+2 -> 2 | H12: =H6 -> 0 | I12: =I11 -> 0 | Q12: SCA Drop Data
B13: ="y = "&ROUND(C12,3)&"x^2 + "&ROUND(C11,3)&"x + " &ROUND(C10,3) -> y = 0x^2 + 0x + 0 | E13: Minimum Value, y-axis | F13: =IF(ROUND(F7,0)-2<0,0,ROUND(F7,0)-2) -> 0 | H13: =H11 -> 1 | I13: =I12 -> 0 | K13: ??? Fifth Point & MDD/OMC Calculation ??? | Q13: Lift | R13: Avg. Drop Ht. | S13: Blows | T13: Avg. Drop Ht. | U13: Blows | V13: Avg. Drop Ht. | W13: Blows | X13: Avg. Drop Ht. | Y13: Blows
K14: m1 | L14: =(L7-L6)/(M7-M6) ->  | Q14: 1 | R14: =TRANSPOSE('SCA-Data'!D21:G21) -> 0 | S14: =TRANSPOSE('SCA-Data'!D17:G17) -> 0 | T14: =TRANSPOSE('SCA-Data'!K21:N21) -> 0 | U14: =TRANSPOSE('SCA-Data'!K17:N17) -> 0 | V14: =TRANSPOSE('SCA-Data'!R21:U21) -> 0 | W14: =TRANSPOSE('SCA-Data'!R17:U17) -> 0 | X14: =TRANSPOSE('SCA-Data'!Y21:AB21) -> 0 | Y14: =TRANSPOSE('SCA-Data'!Y17:AB17) -> 0
B15: R^2 Calculations | E15: M-D Curve Begin & End Points | K15: b1 | L15: =L6-L14*M6 ->  | M15: X-Peak | N15: =(L17-L15)/(L14-L16) ->  | Q15: 2 | R15: 0 | S15: 0 | T15: 0 | U15: 0 | V15: 0 | W15: 0 | X15: 0 | Y15: 0
B16: Y-Known | C16: Y-Calculated | E16: Dry End Moisture | F16: =IF(ISERROR(((-C11)+(SQRT((C11^2)-(4*C12*(C10-F13)))))/(2*C12)),0,((-C11)+(SQRT((C11^2)-(4*C12*(C10-F13)))))/(2*C12)) -> 0 | K16: m2 | L16: =IF(AND(L8>0,N('Tex-113,4-E'!K49)=0),L14*-1,(L9-L8)/(M9-M8)) ->  | M16: Y-Peak | N16: =L14*N15+L15 ->  | Q16: 3 | R16: 0 | S16: 0 | T16: 0 | U16: 0 | V16: 0 | W16: 0 | X16: 0 | Y16: 0
B17: =L6 -> 0 | C17: =($C$12*(VLOOKUP(B17,$L$5:$M$10,2,FALSE))^2)+($C$11*(VLOOKUP(B17,$L$5:$M$10,2,FALSE)))+$C$10 -> 0 | E17: Wet End Moisture | F17: =IF(ISERROR(((-C11)-(SQRT((C11^2)-(4*C12*(C10-F13)))))/(2*C12)),0,((-C11)-(SQRT((C11^2)-(4*C12*(C10-F13)))))/(2*C12)) -> 0 | K17: b2 | L17: =L8-M8*L16 ->  | Q17: 4 | R17: 0 | S17: 0 | T17: 0 | U17: 0 | V17: 0 | W17: 0 | X17: 0 | Y17: 0
B18: =L7 -> 0 | C18: =($C$12*(VLOOKUP(B18,$L$5:$M$10,2,FALSE))^2)+($C$11*(VLOOKUP(B18,$L$5:$M$10,2,FALSE)))+$C$10 -> 0
B19: =L8 -> 0 | C19: =($C$12*(VLOOKUP(B19,$L$5:$M$10,2,FALSE))^2)+($C$11*(VLOOKUP(B19,$L$5:$M$10,2,FALSE)))+$C$10 -> 0 | K19: ??? 3-Point Curve Reference Data ??? | Q19: SCA Data Limit
B20: =L9 -> 0 | C20: =($C$12*(VLOOKUP(B20,$L$5:$M$10,2,FALSE))^2)+($C$11*(VLOOKUP(B20,$L$5:$M$10,2,FALSE)))+$C$10 -> 0 | L20: 3pt Curve (1-Yes, 0-No) = | M20: =IF(N('Tex-113,4-E'!K36)=0,1,0) -> 1 | Q20: Limit | R20: X | S20: Y, Total Energy | T20: Y, Drop Height | U20: Y, Blows | V20: Y, Energy/ Blow
K21: mZAV= | L21: =(M25-M52)/(K25-K52) -> -2.109454385 | M21: b4th= | N21: =L8-L21*M8 -> 0 | Q21: Upper | R21: 1 | S21: =S22 -> 765 | T21: =T22 -> 18.5 | U21: =U22 -> 60 | V21: =V22 -> 15.3
K22: bZAV= | L22: =M25-L21*K25 -> 164.4622687 | M22: Y4th= | N22: =L21*M9+N21 -> 0 | R22: 4 | S22: =S23+15 -> 765 | T22: =T23+0.5 -> 18.5 | U22: =U23+10 -> 60 | V22: =MAX(U32:U34) -> 15.3
E23: Gs= | F23: =IF(OR('Tex-113,4-E'!E24="",'Tex-113,4-E'!E23="",'Tex-113,4-E'!E22=""),IF('Tex-113,4-E'!E26="",2.65,N('Tex-113,4-E'!E26)),N('Tex-113,4-E'!E26)) -> 2.65 | Q23: Ideal | R23: 1 | S23: 750 | T23: 18 | U23: 50 | V23: =T32 -> 15
E24: γw= | F24: 62.5 | H24: Closest point to Max y-Scale | I24: =INDEX(H26:H176,MATCH(MIN(ABS(H26:H176-F12)),ABS(H26:H176-F12),0)) -> 161.349245 | K24: W | L24: Dry Density | M24: ZAV | R24: 4 | S24: 750 | T24: 18 | U24: 50 | V24: =T32 -> 15
B25: M_D Best-fit Plot within scale | E25: ZAV Plot within scale | H25: ZAV - Reference Data | K25: =IF(M20=1,N('Tex-113,4-E'!I50)+8,N('Tex-113,4-E'!K50)+8) -> 8 | L25: =$C$10+$C$11*K25+$C$12*K25^2 -> 0 | M25: =IF(version<"3",($F$23*$F$24*(1+(K25/100)))/(1+$F$23*(K25/100)),($F$23*$F$24)/(1+$F$23*(K25/100))) -> 147.5866337 | Q25: Lower | R25: 1 | S25: =S24-15 -> 735 | T25: =T24-0.5 -> 17.5 | U25: =U24 -> 50 | V25: =MIN(S32:S34) -> 12.25
B26: =IF(F16<F10,F10,F16) -> 0 | C26: =$C$10+$C$11*B26+$C$12*B26^2 -> 0 | E26: =VLOOKUP(I24,H26:I176,2) -> 1 | F26: =IF(version<3,($F$23*$F$24*(1+(E26/100)))/(1+$F$23*(E26/100)),($F$23*$F$24)/(1+$F$23*(E26/100))) -> 161.349245 | H26: =IF(version<3,($F$23*$F$24*(1+(I26/100)))/(1+$F$23*(I26/100)),($F$23*$F$24)/(1+$F$23*(I26/100))) -> 161.349245 | I26: =F9 -> 1 | K26: =K25-0.2 -> 7.8 | L26: 0 | M26: 147.9603464 | R26: 4 | S26: =S25 -> 735 | T26: =T25 -> 17.5 | U26: =U25 -> 50 | V26: =V25 -> 12.25
B27: =IF(B26+$F$11<=MIN($F$9,$F$17),B26+$F$11,B26) -> 0 | C27: 0 | E27: =IF(E26+$F$11<=$F$9,E26+$F$11,E26) -> 1 | F27: 161.349245 | H27: 161.3770189 | I27: =I26-$F$11 -> 0.9933333333 | K27: =K26-0.2 -> 7.6 | L27: 0 | M27: 148.3373564
B28: =IF(B27+$F$11<=$F$9,B27+$F$11,B27) -> 0.006666666667 | C28: 0 | E28: =IF(E27+$F$11<=$F$9,E27+$F$11,E27) -> 1 | F28: 161.349245 | H28: 161.4048024 | I28: 0.9866666667 | K28: =K27-0.2 -> 7.4 | L28: 0 | M28: 148.7177076 | Q28: Energy Levels to Achieve Total Energy with Defined Blow Limits
B29: 0.01333333333 | C29: 0 | E29: 1 | F29: 161.349245 | H29: 161.4325955 | I29: 0.98 | K29: =K28-0.2 -> 7.2 | L29: 0 | M29: 149.1014444 | Q29: Limit Boundary | S29: Low | T29: Ideal | U29: High
B30: 0.02 | C30: 0 | E30: 1 | F30: 161.349245 | H30: 161.4603981 | I30: 0.9733333333 | K30: =K29-0.2 -> 7 | L30: 0 | M30: 149.4886124 | Q30: Defined Limits | R30: Total Energy | S30: =T30-15 -> 735 | T30: 750 | U30: =T30+15 -> 765
B31: 0.02666666667 | C31: 0 | E31: 1 | F31: 161.349245 | H31: 161.4882103 | I31: 0.9666666667 | K31: =K30-0.2 -> 6.8 | L31: 0 | M31: 149.8792577 | R31: Blow | S31: 50 | T31: 50 | U31: 60
B32: 0.03333333333 | C32: 0 | E32: 1 | F32: 161.349245 | H32: 161.5160321 | I32: 0.96 | K32: 6.6 | L32: 0 | M32: 150.2734275 | Q32: Energy/Blow, with ideal number of blows | S32: =S30/T31 -> 14.7 | T32: =T30/T31 -> 15 | U32: =U30/T31 -> 15.3
B33: 0.04 | C33: 0 | E33: 1 | F33: 161.349245 | H33: 161.5438635 | I33: 0.9533333333 | K33: 6.4 | L33: 0 | M33: 150.6711696 | Q33: Energy/Blow, with lowest number of blows | S33: =S30/S31 -> 14.7 | T33: =T30/S31 -> 15 | U33: =U30/S31 -> 15.3
B34: 0.04666666667 | C34: 0 | E34: 1 | F34: 161.349245 | H34: 161.5717045 | I34: 0.9466666667 | K34: 6.2 | L34: 0 | M34: 151.0725328 | Q34: Energy/Blow, with highest number of blows | S34: =S30/U31 -> 12.25 | T34: =T30/U31 -> 12.5 | U34: =U30/U31 -> 12.75
B35: 0.05333333333 | C35: 0 | E35: 1 | F35: 161.349245 | H35: 161.5995551 | I35: 0.94 | K35: 6 | L35: 0 | M35: 151.4775669
B36: 0.06 | C36: 0 | E36: 1 | F36: 161.349245 | H36: 161.6274153 | I36: 0.9333333333 | K36: 5.8 | L36: 0 | M36: 151.8863223 | Q36: UCS Reference Data
B37: 0.06666666667 | C37: 0 | E37: 1 | F37: 161.349245 | H37: 161.6552851 | I37: 0.9266666667 | K37: 5.6 | L37: 0 | M37: 152.2988506
B38: 0.07333333333 | C38: 0 | E38: 1 | F38: 161.349245 | H38: 161.6831645 | I38: 0.92 | K38: 5.4 | L38: 0 | M38: 152.7152043 | Q38: Specimen | R38: Moisture Content | S38: UCS | U38: M_D Best-fit Plot within scale | X38: UCS Graph Limits | AA38: Closest point to Max y-Scale | AB38: =INDEX(AA40:AA190,MATCH(MIN(ABS(AA40:AA190-Y46)),ABS(AA40:AA190-Y46),0)) -> 0
B39: 0.08 | C39: 0 | E39: 1 | F39: 161.349245 | H39: 161.7110535 | I39: 0.9133333333 | K39: 5.2 | L39: 0 | M39: 153.1354368 | Q39: 1 | R39: =M6 -> 0 | S39: =_UCS1 -> 0 | U39: =(AB38-R54)/R55 ->  | V39: =($R$55*U39)+$R$54 ->  | X39: Min Moisture | Y39: =MIN(R39:R42) -> 0 | AA39: ZAV - Reference Data
B40: 0.08666666667 | C40: 0 | E40: 1 | F40: 161.349245 | H40: 161.7389521 | I40: 0.9066666667 | K40: 5 | L40: 0 | M40: 153.5596026 | Q40: 2 | R40: =M7 -> 0 | S40: =_UCS2 -> 0 | U40: =U39+$U$60 ->  | V40: =($R$55*U40)+$R$54 ->  | X40: Max Moisture | Y40: =MAX(R39:R42) -> 0 | AA40: =($R$55*AB40)+$R$54 -> 0 | AB40: =Y44 -> 0
B41: 0.09333333333 | C41: 0 | E41: 1 | F41: 161.349245 | H41: 161.7668604 | I41: 0.9 | K41: 4.8 | L41: 0 | M41: 153.9877573 | Q41: 3 | R41: =M8 -> 0 | S41: =_UCS3 -> 0 | U41: =U40+$U$60 ->  | X41: Min UCS | Y41: =MIN(S39:S42) -> 0 | AA41: =($R$55*AB41)+$R$54 -> 0 | AB41: =AB40+$Y$45 -> 0.006666666667
B42: 0.1 | C42: 0 | E42: 1 | F42: 161.349245 | H42: 161.7947783 | I42: 0.8933333333 | K42: 4.6 | L42: 0 | M42: 154.4199572 | Q42: 4 | R42: =M9 -> 0 | S42: =_UCS4 -> 0 | X42: Max UCS | Y42: =MAX(S39:S42) -> 0 | AA42: 0 | AB42: =AB41+$Y$45 -> 0.01333333333
B43: 0.1066666667 | C43: 0 | E43: 1 | F43: 161.349245 | H43: 161.8227058 | I43: 0.8866666667 | K43: 4.4 | L43: 0 | M43: 154.8562601 | Q43: OMC | R43: =C6 ->  | S43: =MIN(Y51:Y58) -> 0 | X43: Maximum Value, x-axis | Y43: =MROUND(Y40+1,1) -> 1 | AA43: 0 | AB43: 0.02
B44: 0.1133333333 | C44: 0 | E44: 1 | F44: 161.349245 | H44: 161.850643 | I44: 0.88 | K44: 4.2 | L44: 0 | M44: 155.2967246 | R44: =R43 ->  | S44: =MAX(Y51:Y58) -> 2 | X44: Minimum Value, x-axis | Y44: =IF(ISERROR(MROUND(Y39-1,1)),0,MROUND(Y39-1,1)) -> 0 | AA44: 0 | AB44: 0.02666666667
B45: 0.12 | C45: 0 | E45: 1 | F45: 161.349245 | H45: 161.8785898 | I45: 0.8733333333 | K45: 4 | L45: 0 | M45: 155.7414105 | X45: Scale | Y45: =(Y43-Y44)/150 -> 0.006666666667 | AA45: 0 | AB45: 0.03333333333
B46: =IF(B45+$F$11<=$F$9,B45+$F$11,B45) -> 0.1266666667 | C46: 0 | E46: 1 | F46: 161.349245 | H46: 161.9065463 | I46: 0.8666666667 | K46: 3.8 | L46: 0 | M46: 156.1903789 | Q46: UCS Data | X46: Maximum Value, y-axis | Y46: =ROUND(Y42,0)+2 -> 2 | AA46: 0 | AB46: 0.04
B47: 0.1333333333 | C47: 0 | E47: 1 | F47: 161.349245 | H47: 161.9345125 | I47: 0.86 | K47: 3.6 | L47: 0 | M47: 156.6436918 | Q47: Y | R47: X | X47: Minimum Value, y-axis | Y47: =IF(ROUND(Y41,0)-2<0,0,ROUND(Y41,0)-2) -> 0 | AA47: 0 | AB47: 0.04666666667
B48: 0.14 | C48: 0 | E48: 1 | F48: 161.349245 | H48: 161.9624883 | I48: 0.8533333333 | K48: 3.4 | L48: 0 | M48: 157.1014127 | Q48: =_UCS1 -> 0 | R48: =N('Tex-113,4-E'!E50) -> 0 | AA48: 0 | AB48: 0.05333333333
B49: 0.1466666667 | C49: 0 | E49: 1 | F49: 161.349245 | H49: 161.9904737 | I49: 0.8466666667 | K49: 3.2 | L49: 0 | M49: 157.5636062 | Q49: =_UCS2 -> 0 | R49: =N('Tex-113,4-E'!G50) -> 0 | X49: UCS Graph Limit Boundaries | AA49: 0 | AB49: 0.06
B50: 0.1533333333 | C50: 0 | E50: 1 | F50: 161.349245 | H50: 162.0184689 | I50: 0.84 | K50: 3 | L50: 0 | M50: 158.0303381 | Q50: =_UCS3 -> 0 | R50: =N('Tex-113,4-E'!I50) -> 0 | X50: X | Y50: Y | AA50: 0 | AB50: 0.06666666667
B51: 0.16 | C51: 0 | E51: 1 | F51: 161.349245 | H51: 162.0464737 | I51: 0.8333333333 | K51: 2.8 | L51: 0 | M51: 158.5016757 | Q51: =_UCS4 -> 0 | R51: =N('Tex-113,4-E'!K50) -> 0 | X51: =Y44 -> 0 | Y51: =Y47 -> 0 | AA51: 0 | AB51: 0.07333333333
B52: 0.1666666667 | C52: 0 | E52: 1 | F52: 161.349245 | H52: 162.0744882 | I52: 0.8266666667 | K52: 2.6 | L52: 0 | M52: 158.9776873 | X52: =Y44 -> 0 | Y52: =Y46 -> 2 | AA52: 0 | AB52: 0.08
B53: 0.1733333333 | C53: 0 | E53: 1 | F53: 161.349245 | H53: 162.1025124 | I53: 0.82 | K53: 2.4 | L53: 0 | M53: 159.458443 | Q53: Best Fit Line Coefficients | X53: =Y44 -> 0 | Y53: =Y52 -> 2 | AA53: 0 | AB53: 0.08666666667
B54: 0.18 | C54: 0 | E54: 1 | F54: 161.349245 | H54: 162.1305463 | I54: 0.8133333333 | K54: 2.2 | L54: 0 | M54: 159.944014 | Q54: A1 | R54: =INDEX(LINEST($Q$48:$Q$51,$R$48:$R$51),2) -> 0 | U54: =U53+$U$60 ->  | X54: =Y43 -> 1 | Y54: =Y53 -> 2 | AA54: 0 | AB54: 0.09333333333
B55: 0.1866666667 | C55: 0 | E55: 1 | F55: 161.349245 | H55: 162.1585899 | I55: 0.8066666667 | K55: 2 | L55: 0 | M55: 160.4344729 | Q55: A2 | R55: =INDEX(LINEST($Q$48:$Q$51,$R$48:$R$51),1) -> 0 | U55: =IF(U54+$U$60>$R$60,U54,U54+$U$60) ->  | X55: =X54 -> 1 | Y55: =Y54 -> 2 | AA55: 0 | AB55: 0.1
B56: 0.1933333333 | C56: 0 | E56: 1 | F56: 161.349245 | H56: 162.1866432 | I56: 0.8 | K56: 1.8 | L56: 0 | M56: 160.9298941 | Q56: ="y = "&ROUND(R55,3)&"x + "&ROUND(R54,3) -> y = 0x + 0 | U56: =IF(U55+$U$60>$R$60,U55,U55+$U$60) ->  | X56: =X55 -> 1 | Y56: =Y51 -> 0 | AA56: 0 | AB56: 0.1066666667
B57: 0.2 | C57: 0 | E57: 1 | F57: 161.349245 | H57: 162.2147062 | I57: 0.7933333333 | K57: 1.6 | L57: =$C$10+$C$11*K57+$C$12*K57^2 -> 0 | M57: =IF(version<"3",($F$23*$F$24*(1+(K57/100)))/(1+$F$23*(K57/100)),($F$23*$F$24)/(1+$F$23*(K57/100))) -> 161.430353 | U57: =IF(U56+$U$60>$R$60,U56,U56+$U$60) ->  | X57: =X51 -> 0 | Y57: =Y56 -> 0 | AA57: 0 | AB57: 0.1133333333
B58: 0.2066666667 | C58: =$C$10+$C$11*B58+$C$12*B58^2 -> 0 | E58: 1 | F58: =IF(version<3,($F$23*$F$24*(1+(E58/100)))/(1+$F$23*(E58/100)),($F$23*$F$24)/(1+$F$23*(E58/100))) -> 161.349245 | H58: =IF(version<3,($F$23*$F$24*(1+(I58/100)))/(1+$F$23*(I58/100)),($F$23*$F$24)/(1+$F$23*(I58/100))) -> 162.2427789 | I58: 0.7866666667 | K58: =K57-0.2 -> 1.4 | L58: 0 | M58: 161.9359271 | Q58: UCS Best-Fit Line Begin & End Points | U58: =IF(U57+$U$60>$R$60,U57,U57+$U$60) ->  | X58: =X56 -> 1 | Y58: =Y57 -> 0 | AA58: 0 | AB58: 0.12
B59: 0.2133333333 | C59: 0 | E59: =IF(E58+$F$11<=$F$9,E58+$F$11,E58) -> 1 | F59: 161.349245 | H59: 162.2708613 | I59: =I58-$F$11 -> 0.78 | K59: 1.2 | L59: 0 | M59: 162.4466951 | Q59: Dry End Moisture | R59: =(MAX(Y51:Y58)-R54)/R55 ->  | U59: =IF(U58+$U$60>$R$60,U58,U58+$U$60) ->  | AA59: 0 | AB59: 0.1266666667
B60: 0.22 | C60: 0 | E60: 1 | F60: 161.349245 | H60: 162.2989534 | I60: 0.7733333333 | K60: 1 | L60: 0 | M60: 162.9627375 | Q60: Wet End Moisture | R60: =(MIN(Y51:Y58)-R54)/R55 ->  | U60: =(R60-MAX(U39,Y44))/20 ->  | AA60: 0 | AB60: 0.1333333333
B61: 0.2266666667 | C61: 0 | E61: 1 | F61: 161.349245 | H61: 162.3270553 | I61: 0.7666666667 | K61: 0.8 | L61: 0 | M61: 163.4841363 | AA61: 0 | AB61: 0.14
B62: 0.2333333333 | C62: 0 | E62: 1 | F62: 161.349245 | H62: 162.3551669 | I62: 0.76 | K62: 0.6 | L62: 0 | M62: 164.0109755 | AA62: 0 | AB62: 0.1466666667
B63: 0.24 | C63: 0 | E63: 1 | F63: 161.349245 | H63: 162.3832883 | I63: 0.7533333333 | K63: 0.4 | L63: 0 | M63: 164.5433406 | AA63: 0 | AB63: 0.1533333333
B64: 0.2466666667 | C64: 0 | E64: 1 | F64: 161.349245 | H64: 162.4114194 | I64: 0.7466666667 | K64: 0.2 | L64: 0 | M64: 165.081319 | AA64: 0 | AB64: 0.16
B65: 0.2533333333 | C65: 0 | E65: 1 | F65: 161.349245 | H65: 162.4395602 | I65: 0.74 | K65: 0 | L65: 0 | M65: 165.625 | AA65: 0 | AB65: 0.1666666667
B66: 0.26 | C66: 0 | E66: 1 | F66: 161.349245 | H66: 162.4677108 | I66: 0.7333333333 | K66: -0.2 | L66: 0 | M66: 166.1744747 | AA66: 0 | AB66: 0.1733333333
B67: 0.2666666667 | C67: 0 | E67: 1 | F67: 161.349245 | H67: 162.4958712 | I67: 0.7266666667 | K67: -0.4 | L67: 0 | M67: 166.7298363 | AA67: 0 | AB67: 0.18
B68: 0.2733333333 | C68: 0 | E68: 1 | F68: 161.349245 | H68: 162.5240413 | I68: 0.72 | K68: -0.6 | L68: 0 | M68: 167.2911798 | AA68: 0 | AB68: 0.1866666667
B69: 0.28 | C69: 0 | E69: 1 | F69: 161.349245 | H69: 162.5522212 | I69: 0.7133333333 | K69: -0.8 | L69: 0 | M69: 167.8586024 | AA69: 0 | AB69: 0.1933333333
B70: 0.2866666667 | C70: 0 | E70: 1 | F70: 161.349245 | H70: 162.5804108 | I70: 0.7066666667 | K70: -1 | L70: 0 | M70: 168.4322034 | AA70: 0 | AB70: 0.2
B71: 0.2933333333 | C71: 0 | E71: 1 | F71: 161.349245 | H71: 162.6086103 | I71: 0.7 | K71: -1.2 | L71: 0 | M71: 169.0120843 | AA71: 0 | AB71: 0.2066666667
B72: 0.3 | C72: 0 | E72: 1 | F72: 161.349245 | H72: 162.6368195 | I72: 0.6933333333 | K72: -1.4 | L72: 0 | M72: 169.5983487 | AA72: 0 | AB72: 0.2133333333
B73: 0.3066666667 | C73: 0 | E73: 1 | F73: 161.349245 | H73: 162.6650385 | I73: 0.6866666667 | K73: -1.6 | L73: 0 | M73: 170.1911028 | AA73: 0 | AB73: 0.22
B74: 0.3133333333 | C74: 0 | E74: 1 | F74: 161.349245 | H74: 162.6932673 | I74: 0.68 | K74: -1.8 | L74: 0 | M74: 170.7904547 | AA74: 0 | AB74: 0.2266666667
B75: 0.32 | C75: 0 | E75: 1 | F75: 161.349245 | H75: 162.7215059 | I75: 0.6733333333 | K75: -2 | L75: 0 | M75: 171.3965153 | AA75: 0 | AB75: 0.2333333333
B76: 0.3266666667 | C76: 0 | E76: 1 | F76: 161.349245 | H76: 162.7497543 | I76: 0.6666666667 | K76: -2.2 | L76: 0 | M76: 172.0093979 | AA76: 0 | AB76: 0.24
B77: 0.3333333333 | C77: 0 | E77: 1 | F77: 161.349245 | H77: 162.7780126 | I77: 0.66 | K77: -2.4 | L77: 0 | M77: 172.6292183 | AA77: 0 | AB77: 0.2466666667
B78: 0.34 | C78: 0 | E78: 1 | F78: 161.349245 | H78: 162.8062806 | I78: 0.6533333333 | K78: -2.6 | L78: 0 | M78: 173.2560949 | AA78: 0 | AB78: 0.2533333333
B79: 0.3466666667 | C79: 0 | E79: 1 | F79: 161.349245 | H79: 162.8345585 | I79: 0.6466666667 | K79: -2.8 | L79: 0 | M79: 173.8901491 | AA79: 0 | AB79: 0.26
B80: 0.3533333333 | C80: 0 | E80: 1 | F80: 161.349245 | H80: 162.8628461 | I80: 0.64 | K80: -3 | L80: 0 | M80: 174.5315046 | AA80: 0 | AB80: 0.2666666667
B81: 0.36 | C81: 0 | E81: 1 | F81: 161.349245 | H81: 162.8911436 | I81: 0.6333333333 | K81: -3.2 | L81: 0 | M81: 175.1802885 | AA81: 0 | AB81: 0.2733333333
B82: 0.3666666667 | C82: 0 | E82: 1 | F82: 161.349245 | H82: 162.919451 | I82: 0.6266666667 | K82: -3.4 | L82: 0 | M82: 175.8366304 | AA82: 0 | AB82: 0.28
B83: 0.3733333333 | C83: 0 | E83: 1 | F83: 161.349245 | H83: 162.9477682 | I83: 0.62 | K83: -3.6 | L83: 0 | M83: 176.5006633 | AA83: 0 | AB83: 0.2866666667
B84: 0.38 | C84: 0 | E84: 1 | F84: 161.349245 | H84: 162.9760952 | I84: 0.6133333333 | K84: -3.8 | L84: 0 | M84: 177.1725231 | AA84: 0 | AB84: 0.2933333333
B85: 0.3866666667 | C85: 0 | E85: 1 | F85: 161.349245 | H85: 163.0044321 | I85: 0.6066666667 | K85: -4 | L85: 0 | M85: 177.852349 | AA85: 0 | AB85: 0.3
B86: 0.3933333333 | C86: 0 | E86: 1 | F86: 161.349245 | H86: 163.0327788 | I86: 0.6 | K86: -4.2 | L86: 0 | M86: 178.5402836 | AA86: 0 | AB86: 0.3066666667
B87: 0.4 | C87: 0 | E87: 1 | F87: 161.349245 | H87: 163.0611354 | I87: 0.5933333333 | K87: -4.4 | L87: 0 | M87: 179.2364727 | AA87: 0 | AB87: 0.3133333333
B88: 0.4066666667 | C88: 0 | E88: 1 | F88: 161.349245 | H88: 163.0895019 | I88: 0.5866666667 | K88: -4.6 | L88: 0 | M88: 179.9410659 | AA88: 0 | AB88: 0.32
B89: 0.4133333333 | C89: 0 | E89: 1 | F89: 161.349245 | H89: 163.1178782 | I89: 0.58 | K89: -4.8 | L89: =$C$10+$C$11*K89+$C$12*K89^2 -> 0 | M89: =IF(version<"3",($F$23*$F$24*(1+(K89/100)))/(1+$F$23*(K89/100)),($F$23*$F$24)/(1+$F$23*(K89/100))) -> 180.6542163 | AA89: 0 | AB89: 0.3266666667
B90: 0.42 | C90: =$C$10+$C$11*B90+$C$12*B90^2 -> 0 | E90: 1 | F90: =IF(version<3,($F$23*$F$24*(1+(E90/100)))/(1+$F$23*(E90/100)),($F$23*$F$24)/(1+$F$23*(E90/100))) -> 161.349245 | H90: =IF(version<3,($F$23*$F$24*(1+(I90/100)))/(1+$F$23*(I90/100)),($F$23*$F$24)/(1+$F$23*(I90/100))) -> 163.1462644 | I90: 0.5733333333 | K90: =K89-0.2 -> -5 | L90: 0 | M90: 181.3760807 | AA90: 0 | AB90: 0.3333333333
B91: 0.4266666667 | C91: 0 | E91: =IF(E90+$F$11<=$F$9,E90+$F$11,E90) -> 1 | F91: 161.349245 | H91: 163.1746605 | I91: =I90-$F$11 -> 0.5666666667 | K91: -5.2 | L91: 0 | M91: 182.1068198 | AA91: 0 | AB91: 0.34
B92: =IF(B91+$F$11<=$F$9,B91+$F$11,B91) -> 0.4333333333 | C92: 0 | E92: 1 | F92: 161.349245 | H92: 163.2030665 | I92: 0.56 | K92: -5.4 | L92: 0 | M92: 182.8465982 | AA92: 0 | AB92: 0.3466666667
B93: 0.44 | C93: 0 | E93: 1 | F93: 161.349245 | H93: 163.2314824 | I93: 0.5533333333 | K93: -5.6 | L93: 0 | M93: 183.5955848 | AA93: 0 | AB93: 0.3533333333
B94: 0.4466666667 | C94: 0 | E94: 1 | F94: 161.349245 | H94: 163.2599081 | I94: 0.5466666667 | K94: -5.8 | L94: 0 | M94: 184.3539525 | AA94: 0 | AB94: 0.36
B95: 0.4533333333 | C95: 0 | E95: 1 | F95: 161.349245 | H95: 163.2883438 | I95: 0.54 | K95: -6 | L95: 0 | M95: 185.1218787 | AA95: 0 | AB95: 0.3666666667
B96: 0.46 | C96: 0 | E96: 1 | F96: 161.349245 | H96: 163.3167894 | I96: 0.5333333333 | K96: -6.2 | L96: 0 | M96: 185.8995453 | AA96: 0 | AB96: 0.3733333333
B97: 0.4666666667 | C97: 0 | E97: 1 | F97: 161.349245 | H97: 163.3452449 | I97: 0.5266666667 | K97: -6.4 | L97: 0 | M97: 186.6871387 | AA97: 0 | AB97: 0.38
B98: 0.4733333333 | C98: 0 | E98: 1 | F98: 161.349245 | H98: 163.3737103 | I98: 0.52 | K98: -6.6 | L98: 0 | M98: 187.4848503 | AA98: 0 | AB98: 0.3866666667
B99: 0.48 | C99: =$C$10+$C$11*B99+$C$12*B99^2 -> 0 | E99: 1 | F99: 161.349245 | H99: 163.4021856 | I99: 0.5133333333 | K99: -6.8 | L99: 0 | M99: 188.2928763 | AA99: 0 | AB99: 0.3933333333
B100: =IF(AND($C$10+$C$11*B99+$C$12*B99^2>$F$13,$C$10+$C$11*(B99+$F$11)+$C$12*(B99+$F$11)^2>$F$13),B99+$F$11,B99) -> 0.48 | C100: 0 | E100: 1 | F100: 161.349245 | H100: 163.4306709 | I100: 0.5066666667 | K100: -7 | L100: 0 | M100: 189.111418 | AA100: 0 | AB100: 0.4
B101: =IF(AND($C$10+$C$11*B100+$C$12*B100^2>$F$13,$C$10+$C$11*(B100+$F$11)+$C$12*(B100+$F$11)^2>$F$13),B100+$F$11,B100) -> 0.48 | C101: 0 | E101: 1 | F101: 161.349245 | H101: 163.459166 | I101: 0.5 | K101: -7.2 | L101: 0 | M101: 189.9406822 | AA101: 0 | AB101: 0.4066666667
B102: 0.48 | C102: 0 | E102: 1 | F102: 161.349245 | H102: 163.4876712 | I102: 0.4933333333 | K102: -7.4 | L102: 0 | M102: 190.7808807 | AA102: 0 | AB102: 0.4133333333
B103: 0.48 | C103: 0 | E103: 1 | F103: 161.349245 | H103: 163.5161863 | I103: 0.4866666667 | K103: -7.6 | L103: 0 | M103: 191.6322314 | AA103: 0 | AB103: 0.42
B104: 0.48 | C104: 0 | E104: 1 | F104: 161.349245 | H104: 163.5447113 | I104: 0.48 | K104: -7.8 | L104: 0 | M104: 192.4949578 | AA104: 0 | AB104: 0.4266666667
B105: 0.48 | C105: 0 | E105: 1 | F105: 161.349245 | H105: 163.5732462 | I105: 0.4733333333 | K105: -8 | L105: 0 | M105: 193.3692893 | AA105: =($R$55*AB105)+$R$54 -> 0 | AB105: 0.4333333333
B106: 0.48 | C106: 0 | E106: 1 | F106: 161.349245 | H106: 163.6017912 | I106: 0.4666666667 | K106: -8.2 | L106: 0 | M106: 194.2554619 | AA106: 0 | AB106: =AB105+$Y$45 -> 0.44
B107: 0.48 | C107: 0 | E107: 1 | F107: 161.349245 | H107: 163.6303461 | I107: 0.46 | K107: -8.4 | L107: 0 | M107: 195.1537175 | AA107: 0 | AB107: 0.4466666667
B108: 0.48 | C108: 0 | E108: 1 | F108: 161.349245 | H108: 163.6589109 | I108: 0.4533333333 | K108: -8.6 | L108: 0 | M108: 196.0643051 | AA108: 0 | AB108: 0.4533333333
B109: 0.48 | C109: 0 | E109: 1 | F109: 161.349245 | H109: 163.6874858 | I109: 0.4466666667 | K109: -8.8 | L109: 0 | M109: 196.9874804 | AA109: 0 | AB109: 0.46
B110: 0.48 | C110: 0 | E110: 1 | F110: 161.349245 | H110: 163.7160706 | I110: 0.44 | K110: -9 | L110: 0 | M110: 197.9235062 | AA110: 0 | AB110: 0.4666666667
B111: 0.48 | C111: 0 | E111: 1 | F111: 161.349245 | H111: 163.7446654 | I111: 0.4333333333 | K111: -9.2 | L111: 0 | M111: 198.8726527 | AA111: 0 | AB111: 0.4733333333
B112: 0.48 | C112: 0 | E112: 1 | F112: 161.349245 | H112: 163.7732702 | I112: 0.4266666667 | K112: -9.4 | L112: 0 | M112: 199.8351978 | AA112: 0 | AB112: 0.48
B113: 0.48 | C113: 0 | E113: 1 | F113: 161.349245 | H113: 163.801885 | I113: 0.42 | K113: -9.6 | L113: 0 | M113: 200.811427 | AA113: 0 | AB113: 0.4866666667
B114: 0.48 | C114: 0 | E114: 1 | F114: 161.349245 | H114: 163.8305098 | I114: 0.4133333333 | K114: -9.8 | L114: 0 | M114: 201.8016345 | AA114: 0 | AB114: 0.4933333333
B115: 0.48 | C115: 0 | E115: 1 | F115: 161.349245 | H115: 163.8591446 | I115: 0.4066666667 | K115: -10 | L115: 0 | M115: 202.8061225 | AA115: 0 | AB115: 0.5
B116: 0.48 | C116: 0 | E116: 1 | F116: 161.349245 | H116: 163.8877894 | I116: 0.4 | K116: -10.2 | L116: 0 | M116: 203.8252021 | AA116: 0 | AB116: 0.5066666667
B117: 0.48 | C117: 0 | E117: 1 | F117: 161.349245 | H117: 163.9164443 | I117: 0.3933333333 | K117: -10.4 | L117: 0 | M117: 204.8591938 | AA117: 0 | AB117: 0.5133333333
B118: 0.48 | C118: 0 | E118: 1 | F118: 161.349245 | H118: 163.9451091 | I118: 0.3866666667 | K118: -10.6 | L118: 0 | M118: 205.9084272 | AA118: 0 | AB118: 0.52
B119: 0.48 | C119: 0 | E119: 1 | F119: 161.349245 | H119: 163.973784 | I119: 0.38 | K119: -10.8 | L119: 0 | M119: 206.9732418 | AA119: 0 | AB119: 0.5266666667
B120: 0.48 | C120: 0 | E120: 1 | F120: 161.349245 | H120: 164.0024689 | I120: 0.3733333333 | K120: -11 | L120: 0 | M120: 208.0539873 | AA120: 0 | AB120: 0.5333333333
B121: 0.48 | C121: 0 | E121: 1 | F121: 161.349245 | H121: 164.0311639 | I121: 0.3666666667 | K121: -11.2 | L121: =$C$10+$C$11*K121+$C$12*K121^2 -> 0 | M121: =IF(version<"3",($F$23*$F$24*(1+(K121/100)))/(1+$F$23*(K121/100)),($F$23*$F$24)/(1+$F$23*(K121/100))) -> 209.1510239 | AA121: 0 | AB121: 0.54
B122: 0.48 | C122: 0 | E122: 1 | F122: =IF(version<3,($F$23*$F$24*(1+(E122/100)))/(1+$F$23*(E122/100)),($F$23*$F$24)/(1+$F$23*(E122/100))) -> 161.349245 | H122: =IF(version<3,($F$23*$F$24*(1+(I122/100)))/(1+$F$23*(I122/100)),($F$23*$F$24)/(1+$F$23*(I122/100))) -> 164.0598689 | I122: 0.36 | K122: =K121-0.2 -> -11.4 | L122: 0 | M122: 210.2647227 | AA122: 0 | AB122: 0.5466666667
B123: 0.48 | C123: 0 | E123: =IF(E122+$F$11<=$F$9,E122+$F$11,E122) -> 1 | F123: 161.349245 | H123: 164.0885839 | I123: =I122-$F$11 -> 0.3533333333 | K123: -11.6 | L123: 0 | M123: 211.3954664 | AA123: 0 | AB123: 0.5533333333
B124: 0.48 | C124: 0 | E124: 1 | F124: 161.349245 | H124: 164.117309 | I124: 0.3466666667 | K124: -11.8 | L124: 0 | M124: 212.5436491 | AA124: 0 | AB124: 0.56
B125: 0.48 | C125: 0 | E125: 1 | F125: 161.349245 | H125: 164.1460441 | I125: 0.34 | K125: -12 | L125: 0 | M125: 213.7096774 | AA125: 0 | AB125: 0.5666666667
B126: 0.48 | C126: 0 | E126: 1 | F126: 161.349245 | H126: 164.1747894 | I126: 0.3333333333 | K126: -12.2 | L126: 0 | M126: 214.8939707 | AA126: 0 | AB126: 0.5733333333
B127: 0.48 | C127: 0 | E127: 1 | F127: 161.349245 | H127: 164.2035446 | I127: 0.3266666667 | K127: -12.4 | L127: 0 | M127: 216.0969616 | AA127: 0 | AB127: 0.58
B128: 0.48 | C128: 0 | E128: 1 | F128: 161.349245 | H128: 164.23231 | I128: 0.32 | K128: -12.6 | L128: 0 | M128: 217.3190962 | AA128: 0 | AB128: 0.5866666667
B129: 0.48 | C129: 0 | E129: 1 | F129: 161.349245 | H129: 164.2610855 | I129: 0.3133333333 | K129: -12.8 | L129: 0 | M129: 218.5608353 | AA129: 0 | AB129: 0.5933333333
B130: 0.48 | C130: 0 | E130: 1 | F130: 161.349245 | H130: 164.289871 | I130: 0.3066666667 | K130: -13 | L130: 0 | M130: 219.8226545 | AA130: 0 | AB130: 0.6
B131: 0.48 | C131: 0 | E131: 1 | F131: 161.349245 | H131: 164.3186666 | I131: 0.3 | K131: -13.2 | L131: 0 | M131: 221.1050446 | AA131: 0 | AB131: 0.6066666667
B132: 0.48 | C132: 0 | E132: 1 | F132: 161.349245 | H132: 164.3474723 | I132: 0.2933333333 | K132: -13.4 | L132: 0 | M132: 222.4085129 | AA132: 0 | AB132: 0.6133333333
B133: 0.48 | C133: 0 | E133: 1 | F133: 161.349245 | H133: 164.3762881 | I133: 0.2866666667 | K133: -13.6 | L133: 0 | M133: 223.7335835 | AA133: 0 | AB133: 0.62
B134: 0.48 | C134: 0 | E134: 1 | F134: 161.349245 | H134: 164.4051141 | I134: 0.28 | K134: -13.8 | L134: 0 | M134: 225.0807977 | AA134: 0 | AB134: 0.6266666667
B135: 0.48 | C135: 0 | E135: 1 | F135: 161.349245 | H135: 164.4339501 | I135: 0.2733333333 | K135: -14 | L135: 0 | M135: 226.4507154 | AA135: 0 | AB135: 0.6333333333
B136: 0.48 | C136: 0 | E136: 1 | F136: 161.349245 | H136: 164.4627962 | I136: 0.2666666667 | K136: -14.2 | L136: 0 | M136: 227.8439153 | AA136: 0 | AB136: 0.64
B137: 0.48 | C137: 0 | E137: 1 | F137: 161.349245 | H137: 164.4916525 | I137: 0.26 | K137: -14.4 | L137: 0 | M137: 229.2609961 | AA137: 0 | AB137: 0.6466666667
B138: 0.48 | C138: 0 | E138: 1 | F138: 161.349245 | H138: 164.5205189 | I138: 0.2533333333 | K138: -14.6 | L138: 0 | M138: 230.7025771 | AA138: 0 | AB138: 0.6533333333
B139: 0.48 | C139: 0 | E139: 1 | F139: 161.349245 | H139: 164.5493955 | I139: 0.2466666667 | K139: -14.8 | L139: 0 | M139: 232.1692991 | AA139: 0 | AB139: 0.66
B140: 0.48 | C140: 0 | E140: 1 | F140: 161.349245 | H140: 164.5782821 | I140: 0.24 | K140: -15 | L140: 0 | M140: 233.6618257 | AA140: 0 | AB140: 0.6666666667
B141: 0.48 | C141: 0 | E141: 1 | F141: 161.349245 | H141: 164.6071789 | I141: 0.2333333333 | K141: -15.2 | L141: 0 | M141: 235.1808439 | AA141: 0 | AB141: 0.6733333333
B142: 0.48 | C142: 0 | E142: 1 | F142: 161.349245 | H142: 164.6360859 | I142: 0.2266666667 | K142: -15.4 | L142: 0 | M142: 236.7270654 | AA142: 0 | AB142: 0.68
B143: 0.48 | C143: 0 | E143: 1 | F143: 161.349245 | H143: 164.665003 | I143: 0.22 | K143: -15.6 | L143: 0 | M143: 238.3012274 | AA143: 0 | AB143: 0.6866666667
B144: 0.48 | C144: 0 | E144: 1 | F144: 161.349245 | H144: 164.6939303 | I144: 0.2133333333 | K144: -15.8 | L144: 0 | M144: 239.9040943 | AA144: 0 | AB144: 0.6933333333
B145: 0.48 | C145: 0 | E145: 1 | F145: 161.349245 | H145: 164.7228678 | I145: 0.2066666667 | K145: -16 | L145: 0 | M145: 241.5364583 | AA145: 0 | AB145: 0.7
B146: 0.48 | C146: 0 | E146: 1 | F146: 161.349245 | H146: 164.7518154 | I146: 0.2 | K146: -16.2 | L146: 0 | M146: 243.1991414 | AA146: 0 | AB146: 0.7066666667
B147: 0.48 | C147: 0 | E147: 1 | F147: 161.349245 | H147: 164.7807732 | I147: 0.1933333333 | K147: -16.4 | L147: 0 | M147: 244.8929961 | AA147: 0 | AB147: 0.7133333333
B148: 0.48 | C148: 0 | E148: 1 | F148: 161.349245 | H148: 164.8097411 | I148: 0.1866666667 | K148: -16.6 | L148: 0 | M148: 246.6189073 | AA148: 0 | AB148: 0.72
B149: 0.48 | C149: 0 | E149: 1 | F149: 161.349245 | H149: 164.8387193 | I149: 0.18 | K149: -16.8 | L149: 0 | M149: 248.3777938 | AA149: 0 | AB149: 0.7266666667
B150: 0.48 | C150: 0 | E150: 1 | F150: 161.349245 | H150: 164.8677077 | I150: 0.1733333333 | K150: -17 | L150: 0 | M150: 250.1706096 | AA150: 0 | AB150: 0.7333333333
B151: 0.48 | C151: 0 | E151: 1 | F151: 161.349245 | H151: 164.8967062 | I151: 0.1666666667 | K151: -17.2 | L151: 0 | M151: 251.9983462 | AA151: 0 | AB151: 0.74
B152: 0.48 | C152: 0 | E152: 1 | F152: 161.349245 | H152: 164.925715 | I152: 0.16 | K152: -17.4 | L152: 0 | M152: 253.8620338 | AA152: 0 | AB152: 0.7466666667
B153: 0.48 | C153: 0 | E153: 1 | F153: 161.349245 | H153: 164.9547339 | I153: 0.1533333333 | K153: -17.6 | L153: =$C$10+$C$11*K153+$C$12*K153^2 -> 0 | M153: =IF(version<"3",($F$23*$F$24*(1+(K153/100)))/(1+$F$23*(K153/100)),($F$23*$F$24)/(1+$F$23*(K153/100))) -> 255.7627436 | AA153: 0 | AB153: 0.7533333333
B154: 0.48 | C154: =$C$10+$C$11*B154+$C$12*B154^2 -> 0 | E154: 1 | F154: =IF(version<3,($F$23*$F$24*(1+(E154/100)))/(1+$F$23*(E154/100)),($F$23*$F$24)/(1+$F$23*(E154/100))) -> 161.349245 | H154: =IF(version<3,($F$23*$F$24*(1+(I154/100)))/(1+$F$23*(I154/100)),($F$23*$F$24)/(1+$F$23*(I154/100))) -> 164.9837631 | I154: 0.1466666667 | K154: =K153-0.2 -> -17.8 | L154: 0 | M154: 257.70159 | AA154: 0 | AB154: 0.76
B155: 0.48 | C155: 0 | E155: =IF(E154+$F$11<=$F$9,E154+$F$11,E154) -> 1 | F155: 161.349245 | H155: 165.0128025 | I155: =I154-$F$11 -> 0.14 | K155: -18 | L155: 0 | M155: 259.6797323 | AA155: 0 | AB155: 0.7666666667
B156: 0.48 | C156: 0 | E156: 1 | F156: 161.349245 | H156: 165.0418521 | I156: 0.1333333333 | K156: -18.2 | L156: 0 | M156: 261.6983774 | AA156: 0 | AB156: 0.7733333333
B157: 0.48 | C157: 0 | E157: 1 | F157: 161.349245 | H157: 165.070912 | I157: 0.1266666667 | K157: -18.4 | L157: 0 | M157: 263.7587822 | AA157: 0 | AB157: 0.78
B158: 0.48 | C158: 0 | E158: 1 | F158: 161.349245 | H158: 165.0999821 | I158: 0.12 | K158: -18.6 | L158: 0 | M158: 265.862256 | AA158: 0 | AB158: 0.7866666667
B159: 0.48 | C159: 0 | E159: 1 | F159: 161.349245 | H159: 165.1290624 | I159: 0.1133333333 | K159: -18.8 | L159: 0 | M159: 268.0101634 | AA159: 0 | AB159: 0.7933333333
B160: 0.48 | C160: 0 | E160: 1 | F160: 161.349245 | H160: 165.158153 | I160: 0.1066666667 | K160: -19 | L160: 0 | M160: 270.2039275 | AA160: 0 | AB160: 0.8
B161: 0.48 | C161: 0 | E161: 1 | F161: 161.349245 | H161: 165.1872538 | I161: 0.1 | K161: -19.2 | L161: 0 | M161: 272.4450326 | AA161: 0 | AB161: 0.8066666667
B162: 0.48 | C162: 0 | E162: 1 | F162: 161.349245 | H162: 165.2163649 | I162: 0.09333333333 | K162: -19.4 | L162: 0 | M162: 274.7350278 | AA162: 0 | AB162: 0.8133333333
B163: 0.48 | C163: 0 | E163: 1 | F163: 161.349245 | H163: 165.2454862 | I163: 0.08666666667 | K163: -19.6 | L163: 0 | M163: 277.0755306 | AA163: 0 | AB163: 0.82
B164: 0.48 | C164: 0 | E164: 1 | F164: 161.349245 | H164: 165.2746178 | I164: 0.08 | K164: -19.8 | L164: 0 | M164: 279.4682306 | AA164: 0 | AB164: 0.8266666667
B165: =IF(AND($C$10+$C$11*B164+$C$12*B164^2>$F$13,$C$10+$C$11*(B164+$F$11)+$C$12*(B164+$F$11)^2>$F$13),B164+$F$11,B164) -> 0.48 | C165: 0 | E165: 1 | F165: 161.349245 | H165: 165.3037597 | I165: 0.07333333333 | K165: -20 | L165: 0 | M165: 281.9148936 | AA165: 0 | AB165: 0.8333333333
B166: 0.48 | C166: 0 | E166: 1 | F166: 161.349245 | H166: 165.3329119 | I166: 0.06666666667 | K166: -20.2 | L166: 0 | M166: 284.417366 | AA166: 0 | AB166: 0.84
B167: 0.48 | C167: 0 | E167: 1 | F167: 161.349245 | H167: 165.3620743 | I167: 0.06 | K167: -20.4 | L167: 0 | M167: 286.9775795 | AA167: 0 | AB167: 0.8466666667
B168: 0.48 | C168: 0 | E168: 1 | F168: 161.349245 | H168: 165.391247 | I168: 0.05333333333 | K168: -20.6 | L168: 0 | M168: 289.5975556 | AA168: 0 | AB168: 0.8533333333
B169: 0.48 | C169: 0 | E169: 1 | F169: 161.349245 | H169: 165.4204301 | I169: 0.04666666667 | K169: -20.8 | L169: 0 | M169: 292.2794118 | AA169: =($R$55*AB169)+$R$54 -> 0 | AB169: 0.86
B170: 0.48 | C170: 0 | E170: 1 | F170: 161.349245 | H170: 165.4496234 | I170: 0.04 | K170: -21 | L170: 0 | M170: 295.0253664 | AA170: 0 | AB170: =AB169+$Y$45 -> 0.8666666667
B171: 0.48 | C171: 0 | E171: 1 | F171: 161.349245 | H171: 165.478827 | I171: 0.03333333333 | K171: -21.2 | L171: 0 | M171: 297.8377453 | AA171: 0 | AB171: 0.8733333333
B172: 0.48 | C172: 0 | E172: 1 | F172: 161.349245 | H172: 165.508041 | I172: 0.02666666667 | K172: -21.4 | L172: 0 | M172: 300.7189882 | AA172: 0 | AB172: 0.88
B173: 0.48 | C173: 0 | E173: 1 | F173: 161.349245 | H173: 165.5372652 | I173: 0.02 | K173: -21.6 | L173: 0 | M173: 303.6716558 | AA173: 0 | AB173: 0.8866666667
B174: 0.48 | C174: 0 | E174: 1 | F174: 161.349245 | H174: 165.5664998 | I174: 0.01333333333 | K174: -21.8 | L174: 0 | M174: 306.6984371 | AA174: 0 | AB174: 0.8933333333
B175: 0.48 | C175: 0 | E175: 1 | F175: 161.349245 | H175: 165.5957448 | I175: 0.006666666667 | K175: -22 | L175: 0 | M175: 309.8021583 | AA175: 0 | AB175: 0.9
B176: 0.48 | C176: 0 | E176: 1 | F176: 161.349245 | H176: 165.625 | I176: -5e-14 | K176: -22.2 | L176: 0 | M176: 312.9857906 | AA176: 0 | AB176: 0.9066666667
K177: -22.4 | L177: 0 | M177: 316.2524606 | AA177: 0 | AB177: 0.9133333333
K178: -22.6 | L178: 0 | M178: 319.60546 | AA178: 0 | AB178: 0.92
K179: -22.8 | L179: 0 | M179: 323.0482567 | AA179: 0 | AB179: 0.9266666667
K180: -23 | L180: 0 | M180: 326.584507 | AA180: 0 | AB180: 0.9333333333
K181: -23.2 | L181: 0 | M181: 330.2180685 | AA181: 0 | AB181: 0.94
K182: -23.4 | L182: 0 | M182: 333.953014 | AA182: 0 | AB182: 0.9466666667
K183: -23.6 | L183: 0 | M183: 337.7936466 | AA183: 0 | AB183: 0.9533333333
K184: -23.8 | L184: 0 | M184: 341.7445166 | AA184: 0 | AB184: 0.96
K185: -24 | L185: =$C$10+$C$11*K185+$C$12*K185^2 -> 0 | M185: =IF(version<"3",($F$23*$F$24*(1+(K185/100)))/(1+$F$23*(K185/100)),($F$23*$F$24)/(1+$F$23*(K185/100))) -> 345.8104396 | AA185: 0 | AB185: 0.9666666667
K186: =K185-0.2 -> -24.2 | L186: 0 | M186: 349.9965152 | AA186: 0 | AB186: 0.9733333333
K187: -24.4 | L187: 0 | M187: 354.3081494 | AA187: 0 | AB187: 0.98
K188: -24.6 | L188: 0 | M188: 358.7510773 | AA188: 0 | AB188: 0.9866666667
K189: -24.8 | L189: 0 | M189: 363.3313886 | AA189: 0 | AB189: 0.9933333333
K190: -25 | L190: 0 | M190: 368.0555556 | AA190: 0 | AB190: 1
K191: -25.2 | L191: 0 | M191: 372.9304636
K192: -25.4 | L192: 0 | M192: 377.9634445
K193: -25.6 | L193: 0 | M193: 383.1623134
K194: -25.8 | L194: 0 | M194: 388.5354094
K195: -26 | L195: 0 | M195: 394.0916399
K196: -26.2 | L196: 0 | M196: 399.8405299

Sheet SCA-Data (hidden)
B2: Specimen | C2: 1 | J2: 2 | Q2: 3 | X2: 4
B3: Moisture Content | C3: =Field11 -> 0 | J3: =Field12 -> 0 | Q3: =Field13 -> 0 | X3: =Field14 -> 0
B4: Header
A7: `
C13: Drop # | D13: Time (sec) | E13: Velocity (ft/sec) | F13: Impact Energy (ft-lb) | G13: Lift Ht (in) | H13: Drop Ht (in) | J13: Drop # | K13: Time (sec) | L13: Velocity (ft/sec) | M13: Impact Energy (ft-lb) | N13: Lift Ht (in) | O13: Drop Ht (in) | Q13: Drop # | R13: Time (sec) | S13: Velocity (ft/sec) | T13: Impact Energy (ft-lb) | U13: Lift Ht (in) | V13: Drop Ht (in) | X13: Drop # | Y13: Time (sec) | Z13: Velocity (ft/sec) | AA13: Impact Energy (ft-lb) | AB13: Lift Ht (in) | AC13: Drop Ht (in)
B15: Lift Summary
C16: Lift # | J16: Lift # | Q16: Lift # | X16: Lift #
C17: Drops | J17: Drops | Q17: Drops | X17: Drops
C18: Total Energy (ft-lb) | J18: Total Energy (ft-lb) | Q18: Total Energy (ft-lb) | X18: Total Energy (ft-lb)
C19: Ave Energy / Drop (ft-lb) | J19: Ave Energy / Drop (ft-lb) | Q19: Ave Energy / Drop (ft-lb) | X19: Ave Energy / Drop (ft-lb)
C20: Ave Lift Ht (in) | J20: Ave Lift Ht (in) | Q20: Ave Lift Ht (in) | X20: Ave Lift Ht (in)
C21: Ave Drop Ht (in) | J21: Ave Drop Ht (in) | Q21: Ave Drop Ht (in) | X21: Ave Drop Ht (in)
AC23: 18.477
AC24: 18.378
AC25: 18.444
AC26: 18.468
AC27: 18.467
AC28: 18.473
AC29: 18.439
AC30: 18.499
AC31: 18.493
AC32: 18.454
AC33: 18.495
AC34: 18.532
AC35: 18.406
AC36: 18.422
AC37: 18.419
AC38: 18.519
AC39: 18.534
AC40: 18.382
AC41: 18.46
AC42: 18.433
AC43: 18.477
AC44: 18.459
AC45: 18.464
AC46: 0.167
AC47: 18.54
AC48: 5.572
AC49: 18.432
AC50: 18.41
AC51: 18.505
AC52: 18.395
AC53: 18.475
AC54: 18.512
AC55: 18.476
AC56: 18.492
AC57: 18.476
AC58: 18.494
AC59: 18.478
AC60: 18.386
AC61: 18.524
AC62: 18.482
AC63: 18.447
AC64: 18.451
AC65: 18.492
AC66: 18.382
AC67: 18.435
AC68: 18.411
AC69: 18.444
AC70: 18.458
AC71: 18.41
AC72: 18.431
AC73: 18.439
AC74: 18.469
AC75: 18.499
AC76: 18.42
AC77: 18.392
AC78: 18.457
AC79: 18.441
AC80: 18.454
AC81: 18.472
AC82: 18.506
AC83: 18.448
AC84: 18.423
AC95: 18.486
AC96: 18.472
AC97: 18.465
AC98: 18.505
AC99: 18.503
AC100: 18.496
AC101: 18.515
AC102: 18.534
AC103: 18.464
AC104: 18.408
AC105: 18.442
AC106: 18.476
AC107: 18.523
AC108: 18.515
AC109: 18.498
AC110: 18.527
AC111: 18.447
AC112: 18.442
AC113: 18.503
AC114: 18.529
AC115: 18.527
AC116: 18.472
AC117: 18.49
AC118: 18.5
AC119: 18.501
AC120: 18.451
AC121: 18.405
AC122: 18.392
AC123: 18.478
AC124: 18.452
AC125: 18.486
AC126: 18.508
AC127: 18.493
AC128: 18.459
AC129: 18.418
AC130: 18.455
AC131: 18.459
AC132: 18.475
AC133: 18.501
AC134: 18.545
AC135: 18.518
AC136: 2.297
AC137: 18.422
AC138: 1.821
AC139: 18.534
AC140: 7.906
AC141: 18.445
AC142: 18.466
AC143: 18.511
AC144: 18.517
AC145: 18.461
AC146: 18.505
AC147: 18.379
AC148: 18.443
AC149: 18.477
AC150: 18.523
AC151: 18.488
AC152: 18.456
AC163: 18.504
AC164: 18.45
AC165: 18.467
AC166: 18.487
AC167: 18.565
AC168: 18.541
AC169: 18.515
AC170: 18.463
AC171: 18.432
AC172: 18.518
AC173: 18.474
AC174: 18.545
AC175: 18.505
AC176: 18.464
AC177: 18.501
AC178: 18.567
AC179: 18.5
AC180: 18.497
AC181: 18.459
AC182: 18.485
AC183: 18.483
AC184: 18.52
AC185: 18.518
AC186: 18.498
AC187: 18.486
AC188: 18.488
AC189: 18.405
AC190: 18.488
AC191: 18.535
AC192: 18.517
AC193: 18.506
AC194: 4.204
AC195: 1.538
AC196: 8.112
AC197: 8.707
AC198: 18.488
AC199: 18.514
AC200: 18.402
AC201: 18.502
AC202: 18.508
AC203: 18.536
AC204: 18.523
AC205: 18.527
AC206: 18.477
AC207: 18.463
AC208: 18.466
AC209: 18.511
AC210: 18.529
AC211: 18.508
AC212: 18.546
AC213: 18.508
AC214: 18.468
AC215: 0.526
AC216: 18.45
AC217: 12.572
AC218: 18.589
AC219: 18.515
AC220: 18.51
AC221: 18.493
AC232: 18.516
AC233: 18.497
AC234: 18.497
AC235: 18.515
AC236: 18.459
AC237: 18.494
AC238: 18.499
AC239: 18.538
AC240: 18.484
... 50 more rows

Sheet RX (hidden)
A1: =COUNTA(A3:A300) -> 229 | B1: =sampleid & " - " & testnumber -> - | C1: =testnumber -> 0 | D1: =+testnumber -> 0
A2: Fld_nbr | B2: Value | C2: Desc_1 | D2: Desc_2 | E2: Desc_3 | F2: Desc_4 | G2: Desc_5 | H2: Desc_6 | I2: Desc_7
A3: 1 | B3: =IF('Tex-113,4-E'!$B$89="","",'Tex-113,4-E'!$B$89) ->  | C3: ='Tex-113,4-E'!$B$88 -> Remarks:
A4: 2 | B4: =IF('Tex-113,4-E'!$D$19="","",'Tex-113,4-E'!$D$19) ->  | C4: =IF('Tex-113,4-E'!$C$19="","",'Tex-113,4-E'!$C$19) -> COURSE\LIFT:
A5: 3 | B5: =IF('Tex-113,4-E'!$C$100="","",'Tex-113,4-E'!$C$100) ->  | C5: Tested By | D5: =IF('Tex-113,4-E'!$B$100="","",'Tex-113,4-E'!$B$100) -> TX113
A6: 4 | B6: =IF('Tex-113,4-E'!$G$100="","",'Tex-113,4-E'!$G$100) ->  | C6: Tested Date | D6: =IF('Tex-113,4-E'!$B$100="","",'Tex-113,4-E'!$B$100) -> TX113
A7: 5 | B7: =IF('Tex-113,4-E'!$C$102="","",'Tex-113,4-E'!$C$102) ->  | C7: Tested By | D7: =IF('Tex-113,4-E'!$B$102="","",'Tex-113,4-E'!$B$102) -> TX114
A8: 6 | B8: =IF('Tex-113,4-E'!$G$102="","",'Tex-113,4-E'!$G$102) ->  | C8: Tested Date | D8: =IF('Tex-113,4-E'!$B$102="","",'Tex-113,4-E'!$B$102) -> TX114
A9: 7 | B9: =IF('Tex-113,4-E'!$E$22="","",'Tex-113,4-E'!$E$22) ->  | C9: =IF('Tex-113,4-E'!$B$6="","",'Tex-113,4-E'!$B$6) -> Tex-113-E or Tex-114-E | D9: =IF('Tex-113,4-E'!$B$22="","",'Tex-113,4-E'!$B$22) -> Oven Dry Weight, (g):
A10: 8 | B10: =IF('Tex-113,4-E'!$E$23="","",'Tex-113,4-E'!$E$23) ->  | C10: =IF('Tex-113,4-E'!$B$6="","",'Tex-113,4-E'!$B$6) -> Tex-113-E or Tex-114-E | D10: =IF('Tex-113,4-E'!$B$23="","",'Tex-113,4-E'!$B$23) -> Weight of Pycnometer & Water, (g):
A11: 9 | B11: =IF('Tex-113,4-E'!$E$24="","",'Tex-113,4-E'!$E$24) ->  | C11: =IF('Tex-113,4-E'!$B$6="","",'Tex-113,4-E'!$B$6) -> Tex-113-E or Tex-114-E | D11: =IF('Tex-113,4-E'!$B$24="","",'Tex-113,4-E'!$B$24) -> Weight of Aggr., Pycn.& Water, (g):
A12: 10 | B12: =IF('Tex-113,4-E'!$E$26="","",'Tex-113,4-E'!$E$26) -> 2.65 | C12: =IF('Tex-113,4-E'!$B$6="","",'Tex-113,4-E'!$B$6) -> Tex-113-E or Tex-114-E | D12: =IF('Tex-113,4-E'!$B$25="","",'Tex-113,4-E'!$B$25) -> Specific Gravity (Apparent)(Override):
A13: 11 | B13: =IF('Tex-113,4-E'!$E$28="","",'Tex-113,4-E'!$E$28) ->  | C13: =IF('Tex-113,4-E'!$B$6="","",'Tex-113,4-E'!$B$6) -> Tex-113-E or Tex-114-E | D13: =IF('Tex-113,4-E'!$B$28="","",'Tex-113,4-E'!$B$28) -> Hygroscopic Moisture, (%):
A14: 12 | B14: =IF('Tex-113,4-E'!$E$31="","",'Tex-113,4-E'!$E$31) ->  | C14: =IF('Tex-113,4-E'!$B$31="","",'Tex-113,4-E'!$B$31) -> Percent Water Content, (%): | D14: =IF('Tex-113,4-E'!$E$30="","",'Tex-113,4-E'!$E$30) -> 1
A15: 13 | B15: =IF('Tex-113,4-E'!$G$31="","",'Tex-113,4-E'!$G$31) ->  | C15: =IF('Tex-113,4-E'!$B$31="","",'Tex-113,4-E'!$B$31) -> Percent Water Content, (%): | D15: =IF('Tex-113,4-E'!$G$30="","",'Tex-113,4-E'!$G$30) -> 2
A16: 14 | B16: =IF('Tex-113,4-E'!$I$31="","",'Tex-113,4-E'!$I$31) ->  | C16: =IF('Tex-113,4-E'!$B$31="","",'Tex-113,4-E'!$B$31) -> Percent Water Content, (%): | D16: =IF('Tex-113,4-E'!$I$30="","",'Tex-113,4-E'!$I$30) -> 3
A17: 15 | B17: =IF('Tex-113,4-E'!$K$31="","",'Tex-113,4-E'!$K$31) ->  | C17: =IF('Tex-113,4-E'!$B$31="","",'Tex-113,4-E'!$B$31) -> Percent Water Content, (%): | D17: =IF('Tex-113,4-E'!$K$30="","",'Tex-113,4-E'!$K$30) -> 4
A18: 16 | B18: =IF('Tex-113,4-E'!$E$33="","",'Tex-113,4-E'!$E$33) ->  | C18: =IF('Tex-113,4-E'!$B$6="","",'Tex-113,4-E'!$B$6) -> Tex-113-E or Tex-114-E | D18: =IF('Tex-113,4-E'!$B$33="","",'Tex-113,4-E'!$B$33) -> Mass Material, (lb): | E18: =IF('Tex-113,4-E'!$E$30="","",'Tex-113,4-E'!$E$30) -> 1
A19: 17 | B19: =IF('Tex-113,4-E'!$G$33="","",'Tex-113,4-E'!$G$33) ->  | C19: =IF('Tex-113,4-E'!$B$6="","",'Tex-113,4-E'!$B$6) -> Tex-113-E or Tex-114-E | D19: =IF('Tex-113,4-E'!$B$33="","",'Tex-113,4-E'!$B$33) -> Mass Material, (lb): | E19: =IF('Tex-113,4-E'!$G$30="","",'Tex-113,4-E'!$G$30) -> 2
A20: 18 | B20: =IF('Tex-113,4-E'!$I$33="","",'Tex-113,4-E'!$I$33) ->  | C20: =IF('Tex-113,4-E'!$B$6="","",'Tex-113,4-E'!$B$6) -> Tex-113-E or Tex-114-E | D20: =IF('Tex-113,4-E'!$B$33="","",'Tex-113,4-E'!$B$33) -> Mass Material, (lb): | E20: =IF('Tex-113,4-E'!$I$30="","",'Tex-113,4-E'!$I$30) -> 3
A21: 19 | B21: =IF('Tex-113,4-E'!$K$33="","",'Tex-113,4-E'!$K$33) ->  | C21: =IF('Tex-113,4-E'!$B$6="","",'Tex-113,4-E'!$B$6) -> Tex-113-E or Tex-114-E | D21: =IF('Tex-113,4-E'!$B$33="","",'Tex-113,4-E'!$B$33) -> Mass Material, (lb): | E21: =IF('Tex-113,4-E'!$K$30="","",'Tex-113,4-E'!$K$30) -> 4
A22: 20 | B22: =IF('Tex-113,4-E'!$E$34="","",'Tex-113,4-E'!$E$34) ->  | C22: =IF('Tex-113,4-E'!$B$6="","",'Tex-113,4-E'!$B$6) -> Tex-113-E or Tex-114-E | D22: =IF('Tex-113,4-E'!$B$34="","",'Tex-113,4-E'!$B$34) -> Mass Water Added, (lb): | E22: =IF('Tex-113,4-E'!$E$30="","",'Tex-113,4-E'!$E$30) -> 1
A23: 21 | B23: =IF('Tex-113,4-E'!$G$34="","",'Tex-113,4-E'!$G$34) ->  | C23: =IF('Tex-113,4-E'!$B$6="","",'Tex-113,4-E'!$B$6) -> Tex-113-E or Tex-114-E | D23: =IF('Tex-113,4-E'!$B$34="","",'Tex-113,4-E'!$B$34) -> Mass Water Added, (lb): | E23: =IF('Tex-113,4-E'!$G$30="","",'Tex-113,4-E'!$G$30) -> 2
A24: 22 | B24: =IF('Tex-113,4-E'!$I$34="","",'Tex-113,4-E'!$I$34) ->  | C24: =IF('Tex-113,4-E'!$B$6="","",'Tex-113,4-E'!$B$6) -> Tex-113-E or Tex-114-E | D24: =IF('Tex-113,4-E'!$B$34="","",'Tex-113,4-E'!$B$34) -> Mass Water Added, (lb): | E24: =IF('Tex-113,4-E'!$I$30="","",'Tex-113,4-E'!$I$30) -> 3
A25: 23 | B25: =IF('Tex-113,4-E'!$K$34="","",'Tex-113,4-E'!$K$34) ->  | C25: =IF('Tex-113,4-E'!$B$6="","",'Tex-113,4-E'!$B$6) -> Tex-113-E or Tex-114-E | D25: =IF('Tex-113,4-E'!$B$34="","",'Tex-113,4-E'!$B$34) -> Mass Water Added, (lb): | E25: =IF('Tex-113,4-E'!$K$30="","",'Tex-113,4-E'!$K$30) -> 4
A26: 24 | B26: =IF('Tex-113,4-E'!$E$36="","",'Tex-113,4-E'!$E$36) ->  | C26: =IF('Tex-113,4-E'!$B$6="","",'Tex-113,4-E'!$B$6) -> Tex-113-E or Tex-114-E | D26: =IF('Tex-113,4-E'!$B$36="","",'Tex-113,4-E'!$B$36) -> Wet Mass Specimen & Mold, (lb): | E26: =IF('Tex-113,4-E'!$E$30="","",'Tex-113,4-E'!$E$30) -> 1
A27: 25 | B27: =IF('Tex-113,4-E'!$G$36="","",'Tex-113,4-E'!$G$36) ->  | C27: =IF('Tex-113,4-E'!$B$6="","",'Tex-113,4-E'!$B$6) -> Tex-113-E or Tex-114-E | D27: =IF('Tex-113,4-E'!$B$36="","",'Tex-113,4-E'!$B$36) -> Wet Mass Specimen & Mold, (lb): | E27: =IF('Tex-113,4-E'!$G$30="","",'Tex-113,4-E'!$G$30) -> 2
A28: 26 | B28: =IF('Tex-113,4-E'!$I$36="","",'Tex-113,4-E'!$I$36) ->  | C28: =IF('Tex-113,4-E'!$B$6="","",'Tex-113,4-E'!$B$6) -> Tex-113-E or Tex-114-E | D28: =IF('Tex-113,4-E'!$B$36="","",'Tex-113,4-E'!$B$36) -> Wet Mass Specimen & Mold, (lb): | E28: =IF('Tex-113,4-E'!$I$30="","",'Tex-113,4-E'!$I$30) -> 3
A29: 27 | B29: =IF('Tex-113,4-E'!$K$36="","",'Tex-113,4-E'!$K$36) ->  | C29: =IF('Tex-113,4-E'!$B$6="","",'Tex-113,4-E'!$B$6) -> Tex-113-E or Tex-114-E | D29: =IF('Tex-113,4-E'!$B$36="","",'Tex-113,4-E'!$B$36) -> Wet Mass Specimen & Mold, (lb): | E29: =IF('Tex-113,4-E'!$K$30="","",'Tex-113,4-E'!$K$30) -> 4
A30: 28 | B30: =IF('Tex-113,4-E'!$E$37="","",'Tex-113,4-E'!$E$37) ->  | C30: =IF('Tex-113,4-E'!$B$6="","",'Tex-113,4-E'!$B$6) -> Tex-113-E or Tex-114-E | D30: =IF('Tex-113,4-E'!$B$37="","",'Tex-113,4-E'!$B$37) -> Mass of Mold, (lb): | E30: =IF('Tex-113,4-E'!$E$30="","",'Tex-113,4-E'!$E$30) -> 1
A31: 29 | B31: =IF('Tex-113,4-E'!$G$37="","",'Tex-113,4-E'!$G$37) ->  | C31: =IF('Tex-113,4-E'!$B$6="","",'Tex-113,4-E'!$B$6) -> Tex-113-E or Tex-114-E | D31: =IF('Tex-113,4-E'!$B$37="","",'Tex-113,4-E'!$B$37) -> Mass of Mold, (lb): | E31: =IF('Tex-113,4-E'!$G$30="","",'Tex-113,4-E'!$G$30) -> 2
A32: 30 | B32: =IF('Tex-113,4-E'!$I$37="","",'Tex-113,4-E'!$I$37) ->  | C32: =IF('Tex-113,4-E'!$B$6="","",'Tex-113,4-E'!$B$6) -> Tex-113-E or Tex-114-E | D32: =IF('Tex-113,4-E'!$B$37="","",'Tex-113,4-E'!$B$37) -> Mass of Mold, (lb): | E32: =IF('Tex-113,4-E'!$I$30="","",'Tex-113,4-E'!$I$30) -> 3
A33: 31 | B33: =IF('Tex-113,4-E'!$K$37="","",'Tex-113,4-E'!$K$37) ->  | C33: =IF('Tex-113,4-E'!$B$6="","",'Tex-113,4-E'!$B$6) -> Tex-113-E or Tex-114-E | D33: =IF('Tex-113,4-E'!$B$37="","",'Tex-113,4-E'!$B$37) -> Mass of Mold, (lb): | E33: =IF('Tex-113,4-E'!$K$30="","",'Tex-113,4-E'!$K$30) -> 4
A34: 32 | B34: =IF('Tex-113,4-E'!$E$39="","",'Tex-113,4-E'!$E$39) ->  | C34: =IF('Tex-113,4-E'!$B$6="","",'Tex-113,4-E'!$B$6) -> Tex-113-E or Tex-114-E | D34: =IF('Tex-113,4-E'!$B$39="","",'Tex-113,4-E'!$B$39) -> Wet Mass Specimen, (lb): | E34: =IF('Tex-113,4-E'!$E$30="","",'Tex-113,4-E'!$E$30) -> 1
A35: 33 | B35: =IF('Tex-113,4-E'!$G$39="","",'Tex-113,4-E'!$G$39) ->  | C35: =IF('Tex-113,4-E'!$B$6="","",'Tex-113,4-E'!$B$6) -> Tex-113-E or Tex-114-E | D35: =IF('Tex-113,4-E'!$B$39="","",'Tex-113,4-E'!$B$39) -> Wet Mass Specimen, (lb): | E35: =IF('Tex-113,4-E'!$G$30="","",'Tex-113,4-E'!$G$30) -> 2
A36: 34 | B36: =IF('Tex-113,4-E'!$I$39="","",'Tex-113,4-E'!$I$39) ->  | C36: =IF('Tex-113,4-E'!$B$6="","",'Tex-113,4-E'!$B$6) -> Tex-113-E or Tex-114-E | D36: =IF('Tex-113,4-E'!$B$39="","",'Tex-113,4-E'!$B$39) -> Wet Mass Specimen, (lb): | E36: =IF('Tex-113,4-E'!$I$30="","",'Tex-113,4-E'!$I$30) -> 3
A37: 35 | B37: =IF('Tex-113,4-E'!$K$39="","",'Tex-113,4-E'!$K$39) ->  | C37: =IF('Tex-113,4-E'!$B$6="","",'Tex-113,4-E'!$B$6) -> Tex-113-E or Tex-114-E | D37: =IF('Tex-113,4-E'!$B$39="","",'Tex-113,4-E'!$B$39) -> Wet Mass Specimen, (lb): | E37: =IF('Tex-113,4-E'!$K$30="","",'Tex-113,4-E'!$K$30) -> 4
A38: 36 | B38: =IF('Tex-113,4-E'!$E$40="","",'Tex-113,4-E'!$E$40) ->  | C38: =IF('Tex-113,4-E'!$B$6="","",'Tex-113,4-E'!$B$6) -> Tex-113-E or Tex-114-E | D38: =IF('Tex-113,4-E'!$B$40="","",'Tex-113,4-E'!$B$40) -> Height of Specimen, (in.): | E38: =IF('Tex-113,4-E'!$E$30="","",'Tex-113,4-E'!$E$30) -> 1
A39: 37 | B39: =IF('Tex-113,4-E'!$G$40="","",'Tex-113,4-E'!$G$40) ->  | C39: =IF('Tex-113,4-E'!$B$6="","",'Tex-113,4-E'!$B$6) -> Tex-113-E or Tex-114-E | D39: =IF('Tex-113,4-E'!$B$40="","",'Tex-113,4-E'!$B$40) -> Height of Specimen, (in.): | E39: =IF('Tex-113,4-E'!$G$30="","",'Tex-113,4-E'!$G$30) -> 2
A40: 38 | B40: =IF('Tex-113,4-E'!$I$40="","",'Tex-113,4-E'!$I$40) ->  | C40: =IF('Tex-113,4-E'!$B$6="","",'Tex-113,4-E'!$B$6) -> Tex-113-E or Tex-114-E | D40: =IF('Tex-113,4-E'!$B$40="","",'Tex-113,4-E'!$B$40) -> Height of Specimen, (in.): | E40: =IF('Tex-113,4-E'!$I$30="","",'Tex-113,4-E'!$I$30) -> 3
A41: 39 | B41: =IF('Tex-113,4-E'!$K$40="","",'Tex-113,4-E'!$K$40) ->  | C41: =IF('Tex-113,4-E'!$B$6="","",'Tex-113,4-E'!$B$6) -> Tex-113-E or Tex-114-E | D41: =IF('Tex-113,4-E'!$B$40="","",'Tex-113,4-E'!$B$40) -> Height of Specimen, (in.): | E41: =IF('Tex-113,4-E'!$K$30="","",'Tex-113,4-E'!$K$30) -> 4
A42: 40 | B42: =IF('Tex-113,4-E'!$E$41="","",'Tex-113,4-E'!$E$41) ->  | C42: =IF('Tex-113,4-E'!$B$6="","",'Tex-113,4-E'!$B$6) -> Tex-113-E or Tex-114-E | D42: =IF('Tex-113,4-E'!$B$41="","",'Tex-113,4-E'!$B$41) -> Volume per Linear mm., (in.): | E42: =IF('Tex-113,4-E'!$E$30="","",'Tex-113,4-E'!$E$30) -> 1
A43: 41 | B43: =IF('Tex-113,4-E'!$G$41="","",'Tex-113,4-E'!$G$41) ->  | C43: =IF('Tex-113,4-E'!$B$6="","",'Tex-113,4-E'!$B$6) -> Tex-113-E or Tex-114-E | D43: =IF('Tex-113,4-E'!$B$41="","",'Tex-113,4-E'!$B$41) -> Volume per Linear mm., (in.): | E43: =IF('Tex-113,4-E'!$G$30="","",'Tex-113,4-E'!$G$30) -> 2
A44: 42 | B44: =IF('Tex-113,4-E'!$I$41="","",'Tex-113,4-E'!$I$41) ->  | C44: =IF('Tex-113,4-E'!$B$6="","",'Tex-113,4-E'!$B$6) -> Tex-113-E or Tex-114-E | D44: =IF('Tex-113,4-E'!$B$41="","",'Tex-113,4-E'!$B$41) -> Volume per Linear mm., (in.): | E44: =IF('Tex-113,4-E'!$I$30="","",'Tex-113,4-E'!$I$30) -> 3
A45: 43 | B45: =IF('Tex-113,4-E'!$K$41="","",'Tex-113,4-E'!$K$41) ->  | C45: =IF('Tex-113,4-E'!$B$6="","",'Tex-113,4-E'!$B$6) -> Tex-113-E or Tex-114-E | D45: =IF('Tex-113,4-E'!$B$41="","",'Tex-113,4-E'!$B$41) -> Volume per Linear mm., (in.): | E45: =IF('Tex-113,4-E'!$K$30="","",'Tex-113,4-E'!$K$30) -> 4
A46: 44 | B46: =IF('Tex-113,4-E'!$E$43="","",'Tex-113,4-E'!$E$43) ->  | C46: =IF('Tex-113,4-E'!$B$6="","",'Tex-113,4-E'!$B$6) -> Tex-113-E or Tex-114-E | D46: =IF('Tex-113,4-E'!$B$43="","",'Tex-113,4-E'!$B$43) -> Volume of Specimen, (ft^3): | E46: =IF('Tex-113,4-E'!$E$30="","",'Tex-113,4-E'!$E$30) -> 1
A47: 45 | B47: =IF('Tex-113,4-E'!$G$43="","",'Tex-113,4-E'!$G$43) ->  | C47: =IF('Tex-113,4-E'!$B$6="","",'Tex-113,4-E'!$B$6) -> Tex-113-E or Tex-114-E | D47: =IF('Tex-113,4-E'!$B$43="","",'Tex-113,4-E'!$B$43) -> Volume of Specimen, (ft^3): | E47: =IF('Tex-113,4-E'!$G$30="","",'Tex-113,4-E'!$G$30) -> 2
A48: 46 | B48: =IF('Tex-113,4-E'!$I$43="","",'Tex-113,4-E'!$I$43) ->  | C48: =IF('Tex-113,4-E'!$B$6="","",'Tex-113,4-E'!$B$6) -> Tex-113-E or Tex-114-E | D48: =IF('Tex-113,4-E'!$B$43="","",'Tex-113,4-E'!$B$43) -> Volume of Specimen, (ft^3): | E48: =IF('Tex-113,4-E'!$I$30="","",'Tex-113,4-E'!$I$30) -> 3
A49: 47 | B49: =IF('Tex-113,4-E'!$K$43="","",'Tex-113,4-E'!$K$43) ->  | C49: =IF('Tex-113,4-E'!$B$6="","",'Tex-113,4-E'!$B$6) -> Tex-113-E or Tex-114-E | D49: =IF('Tex-113,4-E'!$B$43="","",'Tex-113,4-E'!$B$43) -> Volume of Specimen, (ft^3): | E49: =IF('Tex-113,4-E'!$K$30="","",'Tex-113,4-E'!$K$30) -> 4
A50: 48 | B50: =IF('Tex-113,4-E'!$E$44="","",'Tex-113,4-E'!$E$44) ->  | C50: =IF('Tex-113,4-E'!$B$6="","",'Tex-113,4-E'!$B$6) -> Tex-113-E or Tex-114-E | D50: =IF('Tex-113,4-E'!$B$44="","",'Tex-113,4-E'!$B$44) -> Wet Density of Specimen, (lb): | E50: =IF('Tex-113,4-E'!$E$30="","",'Tex-113,4-E'!$E$30) -> 1
A51: 49 | B51: =IF('Tex-113,4-E'!$G$44="","",'Tex-113,4-E'!$G$44) ->  | C51: =IF('Tex-113,4-E'!$B$6="","",'Tex-113,4-E'!$B$6) -> Tex-113-E or Tex-114-E | D51: =IF('Tex-113,4-E'!$B$44="","",'Tex-113,4-E'!$B$44) -> Wet Density of Specimen, (lb): | E51: =IF('Tex-113,4-E'!$G$30="","",'Tex-113,4-E'!$G$30) -> 2
A52: 50 | B52: =IF('Tex-113,4-E'!$I$44="","",'Tex-113,4-E'!$I$44) ->  | C52: =IF('Tex-113,4-E'!$B$6="","",'Tex-113,4-E'!$B$6) -> Tex-113-E or Tex-114-E | D52: =IF('Tex-113,4-E'!$B$44="","",'Tex-113,4-E'!$B$44) -> Wet Density of Specimen, (lb): | E52: =IF('Tex-113,4-E'!$I$30="","",'Tex-113,4-E'!$I$30) -> 3
A53: 51 | B53: =IF('Tex-113,4-E'!$K$44="","",'Tex-113,4-E'!$K$44) ->  | C53: =IF('Tex-113,4-E'!$B$6="","",'Tex-113,4-E'!$B$6) -> Tex-113-E or Tex-114-E | D53: =IF('Tex-113,4-E'!$B$44="","",'Tex-113,4-E'!$B$44) -> Wet Density of Specimen, (lb): | E53: =IF('Tex-113,4-E'!$K$30="","",'Tex-113,4-E'!$K$30) -> 4
A54: 52 | B54: =IF('Tex-113,4-E'!$E$45="","",'Tex-113,4-E'!$E$45) ->  | C54: =IF('Tex-113,4-E'!$B$6="","",'Tex-113,4-E'!$B$6) -> Tex-113-E or Tex-114-E | D54: =IF('Tex-113,4-E'!$B$45="","",'Tex-113,4-E'!$B$45) -> Wet Mass of Pan & Specimen, (lb): | E54: =IF('Tex-113,4-E'!$E$30="","",'Tex-113,4-E'!$E$30) -> 1
A55: 53 | B55: =IF('Tex-113,4-E'!$G$45="","",'Tex-113,4-E'!$G$45) ->  | C55: =IF('Tex-113,4-E'!$B$6="","",'Tex-113,4-E'!$B$6) -> Tex-113-E or Tex-114-E | D55: =IF('Tex-113,4-E'!$B$45="","",'Tex-113,4-E'!$B$45) -> Wet Mass of Pan & Specimen, (lb): | E55: =IF('Tex-113,4-E'!$G$30="","",'Tex-113,4-E'!$G$30) -> 2
A56: 54 | B56: =IF('Tex-113,4-E'!$I$45="","",'Tex-113,4-E'!$I$45) ->  | C56: =IF('Tex-113,4-E'!$B$6="","",'Tex-113,4-E'!$B$6) -> Tex-113-E or Tex-114-E | D56: =IF('Tex-113,4-E'!$B$45="","",'Tex-113,4-E'!$B$45) -> Wet Mass of Pan & Specimen, (lb): | E56: =IF('Tex-113,4-E'!$I$30="","",'Tex-113,4-E'!$I$30) -> 3
A57: 55 | B57: =IF('Tex-113,4-E'!$K$45="","",'Tex-113,4-E'!$K$45) ->  | C57: =IF('Tex-113,4-E'!$B$6="","",'Tex-113,4-E'!$B$6) -> Tex-113-E or Tex-114-E | D57: =IF('Tex-113,4-E'!$B$45="","",'Tex-113,4-E'!$B$45) -> Wet Mass of Pan & Specimen, (lb): | E57: =IF('Tex-113,4-E'!$K$30="","",'Tex-113,4-E'!$K$30) -> 4
A58: 56 | B58: =IF('Tex-113,4-E'!$E$46="","",'Tex-113,4-E'!$E$46) ->  | C58: =IF('Tex-113,4-E'!$B$6="","",'Tex-113,4-E'!$B$6) -> Tex-113-E or Tex-114-E | D58: =IF('Tex-113,4-E'!$B$46="","",'Tex-113,4-E'!$B$46) -> Dry Mass Pan & Specimen, (lb): | E58: =IF('Tex-113,4-E'!$E$30="","",'Tex-113,4-E'!$E$30) -> 1
A59: 57 | B59: =IF('Tex-113,4-E'!$G$46="","",'Tex-113,4-E'!$G$46) ->  | C59: =IF('Tex-113,4-E'!$B$6="","",'Tex-113,4-E'!$B$6) -> Tex-113-E or Tex-114-E | D59: =IF('Tex-113,4-E'!$B$46="","",'Tex-113,4-E'!$B$46) -> Dry Mass Pan & Specimen, (lb): | E59: =IF('Tex-113,4-E'!$G$30="","",'Tex-113,4-E'!$G$30) -> 2
A60: 58 | B60: =IF('Tex-113,4-E'!$I$46="","",'Tex-113,4-E'!$I$46) ->  | C60: =IF('Tex-113,4-E'!$B$6="","",'Tex-113,4-E'!$B$6) -> Tex-113-E or Tex-114-E | D60: =IF('Tex-113,4-E'!$B$46="","",'Tex-113,4-E'!$B$46) -> Dry Mass Pan & Specimen, (lb): | E60: =IF('Tex-113,4-E'!$I$30="","",'Tex-113,4-E'!$I$30) -> 3
A61: 59 | B61: =IF('Tex-113,4-E'!$K$46="","",'Tex-113,4-E'!$K$46) ->  | C61: =IF('Tex-113,4-E'!$B$6="","",'Tex-113,4-E'!$B$6) -> Tex-113-E or Tex-114-E | D61: =IF('Tex-113,4-E'!$B$46="","",'Tex-113,4-E'!$B$46) -> Dry Mass Pan & Specimen, (lb): | E61: =IF('Tex-113,4-E'!$K$30="","",'Tex-113,4-E'!$K$30) -> 4
A62: 60 | B62: =IF('Tex-113,4-E'!$E$47="","",'Tex-113,4-E'!$E$47) ->  | C62: =IF('Tex-113,4-E'!$B$6="","",'Tex-113,4-E'!$B$6) -> Tex-113-E or Tex-114-E | D62: =IF('Tex-113,4-E'!$B$47="","",'Tex-113,4-E'!$B$47) -> Tare Mass Pan, (lb): | E62: =IF('Tex-113,4-E'!$E$30="","",'Tex-113,4-E'!$E$30) -> 1
A63: 61 | B63: =IF('Tex-113,4-E'!$G$47="","",'Tex-113,4-E'!$G$47) ->  | C63: =IF('Tex-113,4-E'!$B$6="","",'Tex-113,4-E'!$B$6) -> Tex-113-E or Tex-114-E | D63: =IF('Tex-113,4-E'!$B$47="","",'Tex-113,4-E'!$B$47) -> Tare Mass Pan, (lb): | E63: =IF('Tex-113,4-E'!$G$30="","",'Tex-113,4-E'!$G$30) -> 2
A64: 62 | B64: =IF('Tex-113,4-E'!$I$47="","",'Tex-113,4-E'!$I$47) ->  | C64: =IF('Tex-113,4-E'!$B$6="","",'Tex-113,4-E'!$B$6) -> Tex-113-E or Tex-114-E | D64: =IF('Tex-113,4-E'!$B$47="","",'Tex-113,4-E'!$B$47) -> Tare Mass Pan, (lb): | E64: =IF('Tex-113,4-E'!$I$30="","",'Tex-113,4-E'!$I$30) -> 3
A65: 63 | B65: =IF('Tex-113,4-E'!$K$47="","",'Tex-113,4-E'!$K$47) ->  | C65: =IF('Tex-113,4-E'!$B$6="","",'Tex-113,4-E'!$B$6) -> Tex-113-E or Tex-114-E | D65: =IF('Tex-113,4-E'!$B$47="","",'Tex-113,4-E'!$B$47) -> Tare Mass Pan, (lb): | E65: =IF('Tex-113,4-E'!$K$30="","",'Tex-113,4-E'!$K$30) -> 4
A66: 64 | B66: =IF('Tex-113,4-E'!$E$48="","",'Tex-113,4-E'!$E$48) ->  | C66: =IF('Tex-113,4-E'!$B$6="","",'Tex-113,4-E'!$B$6) -> Tex-113-E or Tex-114-E | D66: =IF('Tex-113,4-E'!$B$48="","",'Tex-113,4-E'!$B$48) -> Dry Mass Material , (lb): | E66: =IF('Tex-113,4-E'!$E$30="","",'Tex-113,4-E'!$E$30) -> 1
A67: 65 | B67: =IF('Tex-113,4-E'!$G$48="","",'Tex-113,4-E'!$G$48) ->  | C67: =IF('Tex-113,4-E'!$B$6="","",'Tex-113,4-E'!$B$6) -> Tex-113-E or Tex-114-E | D67: =IF('Tex-113,4-E'!$B$48="","",'Tex-113,4-E'!$B$48) -> Dry Mass Material , (lb): | E67: =IF('Tex-113,4-E'!$G$30="","",'Tex-113,4-E'!$G$30) -> 2
A68: 66 | B68: =IF('Tex-113,4-E'!$I$48="","",'Tex-113,4-E'!$I$48) ->  | C68: =IF('Tex-113,4-E'!$B$6="","",'Tex-113,4-E'!$B$6) -> Tex-113-E or Tex-114-E | D68: =IF('Tex-113,4-E'!$B$48="","",'Tex-113,4-E'!$B$48) -> Dry Mass Material , (lb): | E68: =IF('Tex-113,4-E'!$I$30="","",'Tex-113,4-E'!$I$30) -> 3
A69: 67 | B69: =IF('Tex-113,4-E'!$K$48="","",'Tex-113,4-E'!$K$48) ->  | C69: =IF('Tex-113,4-E'!$B$6="","",'Tex-113,4-E'!$B$6) -> Tex-113-E or Tex-114-E | D69: =IF('Tex-113,4-E'!$B$48="","",'Tex-113,4-E'!$B$48) -> Dry Mass Material , (lb): | E69: =IF('Tex-113,4-E'!$K$30="","",'Tex-113,4-E'!$K$30) -> 4
A70: 68 | B70: =IF('Tex-113,4-E'!$E$49="","",'Tex-113,4-E'!$E$49) ->  | C70: =IF('Tex-113,4-E'!$B$6="","",'Tex-113,4-E'!$B$6) -> Tex-113-E or Tex-114-E | D70: =IF('Tex-113,4-E'!$B$49="","",'Tex-113,4-E'!$B$49) -> Mass Water, (lb): | E70: =IF('Tex-113,4-E'!$E$30="","",'Tex-113,4-E'!$E$30) -> 1
A71: 69 | B71: =IF('Tex-113,4-E'!$G$49="","",'Tex-113,4-E'!$G$49) ->  | C71: =IF('Tex-113,4-E'!$B$6="","",'Tex-113,4-E'!$B$6) -> Tex-113-E or Tex-114-E | D71: =IF('Tex-113,4-E'!$B$49="","",'Tex-113,4-E'!$B$49) -> Mass Water, (lb): | E71: =IF('Tex-113,4-E'!$G$30="","",'Tex-113,4-E'!$G$30) -> 2
A72: 70 | B72: =IF('Tex-113,4-E'!$I$49="","",'Tex-113,4-E'!$I$49) ->  | C72: =IF('Tex-113,4-E'!$B$6="","",'Tex-113,4-E'!$B$6) -> Tex-113-E or Tex-114-E | D72: =IF('Tex-113,4-E'!$B$49="","",'Tex-113,4-E'!$B$49) -> Mass Water, (lb): | E72: =IF('Tex-113,4-E'!$I$30="","",'Tex-113,4-E'!$I$30) -> 3
A73: 71 | B73: =IF('Tex-113,4-E'!$K$49="","",'Tex-113,4-E'!$K$49) ->  | C73: =IF('Tex-113,4-E'!$B$6="","",'Tex-113,4-E'!$B$6) -> Tex-113-E or Tex-114-E | D73: =IF('Tex-113,4-E'!$B$49="","",'Tex-113,4-E'!$B$49) -> Mass Water, (lb): | E73: =IF('Tex-113,4-E'!$K$30="","",'Tex-113,4-E'!$K$30) -> 4
A74: 72 | B74: =IF('Tex-113,4-E'!$E$50="","",'Tex-113,4-E'!$E$50) ->  | C74: =IF('Tex-113,4-E'!$B$6="","",'Tex-113,4-E'!$B$6) -> Tex-113-E or Tex-114-E | D74: =IF('Tex-113,4-E'!$B$50="","",'Tex-113,4-E'!$B$50) -> Percent Water on Total , (%): | E74: =IF('Tex-113,4-E'!$E$30="","",'Tex-113,4-E'!$E$30) -> 1
A75: 73 | B75: =IF('Tex-113,4-E'!$G$50="","",'Tex-113,4-E'!$G$50) ->  | C75: =IF('Tex-113,4-E'!$B$6="","",'Tex-113,4-E'!$B$6) -> Tex-113-E or Tex-114-E | D75: =IF('Tex-113,4-E'!$B$50="","",'Tex-113,4-E'!$B$50) -> Percent Water on Total , (%): | E75: =IF('Tex-113,4-E'!$G$30="","",'Tex-113,4-E'!$G$30) -> 2
A76: 74 | B76: =IF('Tex-113,4-E'!$I$50="","",'Tex-113,4-E'!$I$50) ->  | C76: =IF('Tex-113,4-E'!$B$6="","",'Tex-113,4-E'!$B$6) -> Tex-113-E or Tex-114-E | D76: =IF('Tex-113,4-E'!$B$50="","",'Tex-113,4-E'!$B$50) -> Percent Water on Total , (%): | E76: =IF('Tex-113,4-E'!$I$30="","",'Tex-113,4-E'!$I$30) -> 3
A77: 75 | B77: =IF('Tex-113,4-E'!$K$50="","",'Tex-113,4-E'!$K$50) ->  | C77: =IF('Tex-113,4-E'!$B$6="","",'Tex-113,4-E'!$B$6) -> Tex-113-E or Tex-114-E | D77: =IF('Tex-113,4-E'!$B$50="","",'Tex-113,4-E'!$B$50) -> Percent Water on Total , (%): | E77: =IF('Tex-113,4-E'!$K$30="","",'Tex-113,4-E'!$K$30) -> 4
A78: 76 | B78: =IF('Tex-113,4-E'!$E$51="","",'Tex-113,4-E'!$E$51) ->  | C78: =IF('Tex-113,4-E'!$B$6="","",'Tex-113,4-E'!$B$6) -> Tex-113-E or Tex-114-E | D78: =IF('Tex-113,4-E'!$B$51="","",'Tex-113,4-E'!$B$51) -> Dry Density, (pcf): | E78: =IF('Tex-113,4-E'!$E$30="","",'Tex-113,4-E'!$E$30) -> 1
A79: 77 | B79: =IF('Tex-113,4-E'!$G$51="","",'Tex-113,4-E'!$G$51) ->  | C79: =IF('Tex-113,4-E'!$B$6="","",'Tex-113,4-E'!$B$6) -> Tex-113-E or Tex-114-E | D79: =IF('Tex-113,4-E'!$B$51="","",'Tex-113,4-E'!$B$51) -> Dry Density, (pcf): | E79: =IF('Tex-113,4-E'!$G$30="","",'Tex-113,4-E'!$G$30) -> 2
A80: 78 | B80: =IF('Tex-113,4-E'!$I$51="","",'Tex-113,4-E'!$I$51) ->  | C80: =IF('Tex-113,4-E'!$B$6="","",'Tex-113,4-E'!$B$6) -> Tex-113-E or Tex-114-E | D80: =IF('Tex-113,4-E'!$B$51="","",'Tex-113,4-E'!$B$51) -> Dry Density, (pcf): | E80: =IF('Tex-113,4-E'!$I$30="","",'Tex-113,4-E'!$I$30) -> 3
A81: 79 | B81: =IF('Tex-113,4-E'!$K$51="","",'Tex-113,4-E'!$K$51) ->  | C81: =IF('Tex-113,4-E'!$B$6="","",'Tex-113,4-E'!$B$6) -> Tex-113-E or Tex-114-E | D81: =IF('Tex-113,4-E'!$B$51="","",'Tex-113,4-E'!$B$51) -> Dry Density, (pcf): | E81: =IF('Tex-113,4-E'!$K$30="","",'Tex-113,4-E'!$K$30) -> 4
A82: 80 | B82: =IF('Tex-113,4-E'!$E$52="","",'Tex-113,4-E'!$E$52) ->  | C82: =IF('Tex-113,4-E'!$B$6="","",'Tex-113,4-E'!$B$6) -> Tex-113-E or Tex-114-E | D82: =IF('Tex-113,4-E'!$B$52="","",'Tex-113,4-E'!$B$52) -> Estimated Dry Density, (pcf): | E82: =IF('Tex-113,4-E'!$E$30="","",'Tex-113,4-E'!$E$30) -> 1
A83: 81 | B83: =IF('Tex-113,4-E'!$G$52="","",'Tex-113,4-E'!$G$52) ->  | C83: =IF('Tex-113,4-E'!$B$6="","",'Tex-113,4-E'!$B$6) -> Tex-113-E or Tex-114-E | D83: =IF('Tex-113,4-E'!$B$52="","",'Tex-113,4-E'!$B$52) -> Estimated Dry Density, (pcf): | E83: =IF('Tex-113,4-E'!$G$30="","",'Tex-113,4-E'!$G$30) -> 2
A84: 82 | B84: =IF('Tex-113,4-E'!$I$52="","",'Tex-113,4-E'!$I$52) ->  | C84: =IF('Tex-113,4-E'!$B$6="","",'Tex-113,4-E'!$B$6) -> Tex-113-E or Tex-114-E | D84: =IF('Tex-113,4-E'!$B$52="","",'Tex-113,4-E'!$B$52) -> Estimated Dry Density, (pcf): | E84: =IF('Tex-113,4-E'!$I$30="","",'Tex-113,4-E'!$I$30) -> 3
A85: 83 | B85: =IF('Tex-113,4-E'!$K$52="","",'Tex-113,4-E'!$K$52) ->  | C85: =IF('Tex-113,4-E'!$B$6="","",'Tex-113,4-E'!$B$6) -> Tex-113-E or Tex-114-E | D85: =IF('Tex-113,4-E'!$B$52="","",'Tex-113,4-E'!$B$52) -> Estimated Dry Density, (pcf): | E85: =IF('Tex-113,4-E'!$K$30="","",'Tex-113,4-E'!$K$30) -> 4
A86: 84 | B86: =IF('Tex-113,4-E'!$E$83="","",'Tex-113,4-E'!$E$83) ->  | C86: =IF('Tex-113,4-E'!$B$6="","",'Tex-113,4-E'!$B$6) -> Tex-113-E or Tex-114-E | D86: =IF('Tex-113,4-E'!$B$83="","",'Tex-113,4-E'!$B$83) -> Max Dry Density, (pcf):
A87: 85 | B87: =IF('Tex-113,4-E'!$E$84="","",'Tex-113,4-E'!$E$84) ->  | C87: =IF('Tex-113,4-E'!$B$6="","",'Tex-113,4-E'!$B$6) -> Tex-113-E or Tex-114-E | D87: =IF('Tex-113,4-E'!$B$84="","",'Tex-113,4-E'!$B$84) -> Max Density, (kg/m3):
A88: 86 | B88: =IF('Tex-113,4-E'!$E$85="","",'Tex-113,4-E'!$E$85) ->  | C88: =IF('Tex-113,4-E'!$B$6="","",'Tex-113,4-E'!$B$6) -> Tex-113-E or Tex-114-E | D88: =IF('Tex-113,4-E'!$B$85="","",'Tex-113,4-E'!$B$85) -> Optimum Moisture Content, (%):
A89: 87 | B89: =IF('Tex-113,4-E'!$E$55="","",'Tex-113,4-E'!$E$55) ->  | C89: =IF('Tex-113,4-E'!$B$6="","",'Tex-113,4-E'!$B$6) -> Tex-113-E or Tex-114-E | D89: =IF(OR('Tex-113,4-E'!$E$54="",'Tex-113,4-E'!$B$55=""),"",'Tex-113,4-E'!$E$54&", "&'Tex-113,4-E'!$B$55) -> Total Energy (lb-ft), Lift 1: | E89: =IF('Tex-113,4-E'!$E$30="","",'Tex-113,4-E'!$E$30) -> 1
A90: 88 | B90: =IF('Tex-113,4-E'!$E$56="","",'Tex-113,4-E'!$E$56) ->  | C90: =IF('Tex-113,4-E'!$B$6="","",'Tex-113,4-E'!$B$6) -> Tex-113-E or Tex-114-E | D90: =IF(OR('Tex-113,4-E'!$G$54="",'Tex-113,4-E'!$B$56=""),"",'Tex-113,4-E'!$G$54&", "&'Tex-113,4-E'!$B$56) -> Total Energy (lb-ft), Lift 2: | E90: =IF('Tex-113,4-E'!$E$30="","",'Tex-113,4-E'!$E$30) -> 1
A91: 89 | B91: =IF('Tex-113,4-E'!$E$57="","",'Tex-113,4-E'!$E$57) ->  | C91: =IF('Tex-113,4-E'!$B$6="","",'Tex-113,4-E'!$B$6) -> Tex-113-E or Tex-114-E | D91: =IF(OR('Tex-113,4-E'!$I$54="",'Tex-113,4-E'!$B$57=""),"",'Tex-113,4-E'!$I$54&", "&'Tex-113,4-E'!$B$57) -> Total Energy (lb-ft), Lift 3: | E91: =IF('Tex-113,4-E'!$E$30="","",'Tex-113,4-E'!$E$30) -> 1
A92: 90 | B92: =IF('Tex-113,4-E'!$E$58="","",'Tex-113,4-E'!$E$58) ->  | C92: =IF('Tex-113,4-E'!$B$6="","",'Tex-113,4-E'!$B$6) -> Tex-113-E or Tex-114-E | D92: =IF(OR('Tex-113,4-E'!$K$54="",'Tex-113,4-E'!$B$58=""),"",'Tex-113,4-E'!$K$54&", "&'Tex-113,4-E'!$B$58) -> Total Energy (lb-ft), Lift 4: | E92: =IF('Tex-113,4-E'!$E$30="","",'Tex-113,4-E'!$E$30) -> 1
A93: 91 | B93: =IF('Tex-113,4-E'!$G$55="","",'Tex-113,4-E'!$G$55) ->  | C93: =IF('Tex-113,4-E'!$B$6="","",'Tex-113,4-E'!$B$6) -> Tex-113-E or Tex-114-E | D93: =IF(OR('Tex-113,4-E'!$E$54="",'Tex-113,4-E'!$B$55=""),"",'Tex-113,4-E'!$E$54&", "&'Tex-113,4-E'!$B$55) -> Total Energy (lb-ft), Lift 1: | E93: =IF('Tex-113,4-E'!$G$30="","",'Tex-113,4-E'!$G$30) -> 2
A94: 92 | B94: =IF('Tex-113,4-E'!$G$56="","",'Tex-113,4-E'!$G$56) ->  | C94: =IF('Tex-113,4-E'!$B$6="","",'Tex-113,4-E'!$B$6) -> Tex-113-E or Tex-114-E | D94: =IF(OR('Tex-113,4-E'!$G$54="",'Tex-113,4-E'!$B$56=""),"",'Tex-113,4-E'!$G$54&", "&'Tex-113,4-E'!$B$56) -> Total Energy (lb-ft), Lift 2: | E94: =IF('Tex-113,4-E'!$G$30="","",'Tex-113,4-E'!$G$30) -> 2
A95: 93 | B95: =IF('Tex-113,4-E'!$G$57="","",'Tex-113,4-E'!$G$57) ->  | C95: =IF('Tex-113,4-E'!$B$6="","",'Tex-113,4-E'!$B$6) -> Tex-113-E or Tex-114-E | D95: =IF(OR('Tex-113,4-E'!$I$54="",'Tex-113,4-E'!$B$57=""),"",'Tex-113,4-E'!$I$54&", "&'Tex-113,4-E'!$B$57) -> Total Energy (lb-ft), Lift 3: | E95: =IF('Tex-113,4-E'!$G$30="","",'Tex-113,4-E'!$G$30) -> 2
A96: 94 | B96: =IF('Tex-113,4-E'!$G$58="","",'Tex-113,4-E'!$G$58) ->  | C96: =IF('Tex-113,4-E'!$B$6="","",'Tex-113,4-E'!$B$6) -> Tex-113-E or Tex-114-E | D96: =IF(OR('Tex-113,4-E'!$K$54="",'Tex-113,4-E'!$B$58=""),"",'Tex-113,4-E'!$K$54&", "&'Tex-113,4-E'!$B$58) -> Total Energy (lb-ft), Lift 4: | E96: =IF('Tex-113,4-E'!$G$30="","",'Tex-113,4-E'!$G$30) -> 2
A97: 95 | B97: =IF('Tex-113,4-E'!$I$55="","",'Tex-113,4-E'!$I$55) ->  | C97: =IF('Tex-113,4-E'!$B$6="","",'Tex-113,4-E'!$B$6) -> Tex-113-E or Tex-114-E | D97: =IF(OR('Tex-113,4-E'!$E$54="",'Tex-113,4-E'!$B$55=""),"",'Tex-113,4-E'!$E$54&", "&'Tex-113,4-E'!$B$55) -> Total Energy (lb-ft), Lift 1: | E97: =IF('Tex-113,4-E'!$I$30="","",'Tex-113,4-E'!$I$30) -> 3
A98: 96 | B98: =IF('Tex-113,4-E'!$I$56="","",'Tex-113,4-E'!$I$56) ->  | C98: =IF('Tex-113,4-E'!$B$6="","",'Tex-113,4-E'!$B$6) -> Tex-113-E or Tex-114-E | D98: =IF(OR('Tex-113,4-E'!$G$54="",'Tex-113,4-E'!$B$56=""),"",'Tex-113,4-E'!$G$54&", "&'Tex-113,4-E'!$B$56) -> Total Energy (lb-ft), Lift 2: | E98: =IF('Tex-113,4-E'!$I$30="","",'Tex-113,4-E'!$I$30) -> 3
A99: 97 | B99: =IF('Tex-113,4-E'!$I$57="","",'Tex-113,4-E'!$I$57) ->  | C99: =IF('Tex-113,4-E'!$B$6="","",'Tex-113,4-E'!$B$6) -> Tex-113-E or Tex-114-E | D99: =IF(OR('Tex-113,4-E'!$I$54="",'Tex-113,4-E'!$B$57=""),"",'Tex-113,4-E'!$I$54&", "&'Tex-113,4-E'!$B$57) -> Total Energy (lb-ft), Lift 3: | E99: =IF('Tex-113,4-E'!$I$30="","",'Tex-113,4-E'!$I$30) -> 3
A100: 98 | B100: =IF('Tex-113,4-E'!$I$58="","",'Tex-113,4-E'!$I$58) ->  | C100: =IF('Tex-113,4-E'!$B$6="","",'Tex-113,4-E'!$B$6) -> Tex-113-E or Tex-114-E | D100: =IF(OR('Tex-113,4-E'!$K$54="",'Tex-113,4-E'!$B$58=""),"",'Tex-113,4-E'!$K$54&", "&'Tex-113,4-E'!$B$58) -> Total Energy (lb-ft), Lift 4: | E100: =IF('Tex-113,4-E'!$I$30="","",'Tex-113,4-E'!$I$30) -> 3
A101: 99 | B101: =IF('Tex-113,4-E'!$K$55="","",'Tex-113,4-E'!$K$55) ->  | C101: =IF('Tex-113,4-E'!$B$6="","",'Tex-113,4-E'!$B$6) -> Tex-113-E or Tex-114-E | D101: =IF(OR('Tex-113,4-E'!$E$54="",'Tex-113,4-E'!$B$55=""),"",'Tex-113,4-E'!$E$54&", "&'Tex-113,4-E'!$B$55) -> Total Energy (lb-ft), Lift 1: | E101: =IF('Tex-113,4-E'!$K$30="","",'Tex-113,4-E'!$K$30) -> 4
A102: 100 | B102: =IF('Tex-113,4-E'!$K$56="","",'Tex-113,4-E'!$K$56) ->  | C102: =IF('Tex-113,4-E'!$B$6="","",'Tex-113,4-E'!$B$6) -> Tex-113-E or Tex-114-E | D102: =IF(OR('Tex-113,4-E'!$G$54="",'Tex-113,4-E'!$B$56=""),"",'Tex-113,4-E'!$G$54&", "&'Tex-113,4-E'!$B$56) -> Total Energy (lb-ft), Lift 2: | E102: =IF('Tex-113,4-E'!$K$30="","",'Tex-113,4-E'!$K$30) -> 4
A103: 101 | B103: =IF('Tex-113,4-E'!$K$57="","",'Tex-113,4-E'!$K$57) ->  | C103: =IF('Tex-113,4-E'!$B$6="","",'Tex-113,4-E'!$B$6) -> Tex-113-E or Tex-114-E | D103: =IF(OR('Tex-113,4-E'!$I$54="",'Tex-113,4-E'!$B$57=""),"",'Tex-113,4-E'!$I$54&", "&'Tex-113,4-E'!$B$57) -> Total Energy (lb-ft), Lift 3: | E103: =IF('Tex-113,4-E'!$K$30="","",'Tex-113,4-E'!$K$30) -> 4
A104: 102 | B104: =IF('Tex-113,4-E'!$K$58="","",'Tex-113,4-E'!$K$58) ->  | C104: =IF('Tex-113,4-E'!$B$6="","",'Tex-113,4-E'!$B$6) -> Tex-113-E or Tex-114-E | D104: =IF(OR('Tex-113,4-E'!$K$54="",'Tex-113,4-E'!$B$58=""),"",'Tex-113,4-E'!$K$54&", "&'Tex-113,4-E'!$B$58) -> Total Energy (lb-ft), Lift 4: | E104: =IF('Tex-113,4-E'!$K$30="","",'Tex-113,4-E'!$K$30) -> 4
A105: 103 | B105: =IF('Tex-113,4-E'!$F$55="","",'Tex-113,4-E'!$F$55) ->  | C105: =IF('Tex-113,4-E'!$B$6="","",'Tex-113,4-E'!$B$6) -> Tex-113-E or Tex-114-E | D105: =IF(OR('Tex-113,4-E'!$F$54="",'Tex-113,4-E'!$B$55=""),"",'Tex-113,4-E'!$F$54&", "&'Tex-113,4-E'!$B$55) -> Avg Energy/ Blow (lb-ft), Lift 1: | E105: =IF('Tex-113,4-E'!$E$30="","",'Tex-113,4-E'!$E$30) -> 1
A106: 104 | B106: =IF('Tex-113,4-E'!$F$56="","",'Tex-113,4-E'!$F$56) ->  | C106: =IF('Tex-113,4-E'!$B$6="","",'Tex-113,4-E'!$B$6) -> Tex-113-E or Tex-114-E | D106: =IF(OR('Tex-113,4-E'!$H$54="",'Tex-113,4-E'!$B$56=""),"",'Tex-113,4-E'!$H$54&", "&'Tex-113,4-E'!$B$56) -> Avg Energy/ Blow (lb-ft), Lift 2: | E106: =IF('Tex-113,4-E'!$E$30="","",'Tex-113,4-E'!$E$30) -> 1
A107: 105 | B107: =IF('Tex-113,4-E'!$F$57="","",'Tex-113,4-E'!$F$57) ->  | C107: =IF('Tex-113,4-E'!$B$6="","",'Tex-113,4-E'!$B$6) -> Tex-113-E or Tex-114-E | D107: =IF(OR('Tex-113,4-E'!$J$54="",'Tex-113,4-E'!$B$57=""),"",'Tex-113,4-E'!$J$54&", "&'Tex-113,4-E'!$B$57) -> Avg Energy/ Blow (lb-ft), Lift 3: | E107: =IF('Tex-113,4-E'!$E$30="","",'Tex-113,4-E'!$E$30) -> 1
A108: 106 | B108: =IF('Tex-113,4-E'!$F$58="","",'Tex-113,4-E'!$F$58) ->  | C108: =IF('Tex-113,4-E'!$B$6="","",'Tex-113,4-E'!$B$6) -> Tex-113-E or Tex-114-E | D108: =IF(OR('Tex-113,4-E'!$L$54="",'Tex-113,4-E'!$B$58=""),"",'Tex-113,4-E'!$L$54&", "&'Tex-113,4-E'!$B$58) -> Avg Energy/ Blow (lb-ft), Lift 4: | E108: =IF('Tex-113,4-E'!$E$30="","",'Tex-113,4-E'!$E$30) -> 1
A109: 107 | B109: =IF('Tex-113,4-E'!$H$55="","",'Tex-113,4-E'!$H$55) ->  | C109: =IF('Tex-113,4-E'!$B$6="","",'Tex-113,4-E'!$B$6) -> Tex-113-E or Tex-114-E | D109: =IF(OR('Tex-113,4-E'!$F$54="",'Tex-113,4-E'!$B$55=""),"",'Tex-113,4-E'!$F$54&", "&'Tex-113,4-E'!$B$55) -> Avg Energy/ Blow (lb-ft), Lift 1: | E109: =IF('Tex-113,4-E'!$G$30="","",'Tex-113,4-E'!$G$30) -> 2
A110: 108 | B110: =IF('Tex-113,4-E'!$H$56="","",'Tex-113,4-E'!$H$56) ->  | C110: =IF('Tex-113,4-E'!$B$6="","",'Tex-113,4-E'!$B$6) -> Tex-113-E or Tex-114-E | D110: =IF(OR('Tex-113,4-E'!$H$54="",'Tex-113,4-E'!$B$56=""),"",'Tex-113,4-E'!$H$54&", "&'Tex-113,4-E'!$B$56) -> Avg Energy/ Blow (lb-ft), Lift 2: | E110: =IF('Tex-113,4-E'!$G$30="","",'Tex-113,4-E'!$G$30) -> 2
A111: 109 | B111: =IF('Tex-113,4-E'!$H$57="","",'Tex-113,4-E'!$H$57) ->  | C111: =IF('Tex-113,4-E'!$B$6="","",'Tex-113,4-E'!$B$6) -> Tex-113-E or Tex-114-E | D111: =IF(OR('Tex-113,4-E'!$J$54="",'Tex-113,4-E'!$B$57=""),"",'Tex-113,4-E'!$J$54&", "&'Tex-113,4-E'!$B$57) -> Avg Energy/ Blow (lb-ft), Lift 3: | E111: =IF('Tex-113,4-E'!$G$30="","",'Tex-113,4-E'!$G$30) -> 2
A112: 110 | B112: =IF('Tex-113,4-E'!$H$58="","",'Tex-113,4-E'!$H$58) ->  | C112: =IF('Tex-113,4-E'!$B$6="","",'Tex-113,4-E'!$B$6) -> Tex-113-E or Tex-114-E | D112: =IF(OR('Tex-113,4-E'!$L$54="",'Tex-113,4-E'!$B$58=""),"",'Tex-113,4-E'!$L$54&", "&'Tex-113,4-E'!$B$58) -> Avg Energy/ Blow (lb-ft), Lift 4: | E112: =IF('Tex-113,4-E'!$G$30="","",'Tex-113,4-E'!$G$30) -> 2
A113: 111 | B113: =IF('Tex-113,4-E'!$J$55="","",'Tex-113,4-E'!$J$55) ->  | C113: =IF('Tex-113,4-E'!$B$6="","",'Tex-113,4-E'!$B$6) -> Tex-113-E or Tex-114-E | D113: =IF(OR('Tex-113,4-E'!$F$54="",'Tex-113,4-E'!$B$55=""),"",'Tex-113,4-E'!$F$54&", "&'Tex-113,4-E'!$B$55) -> Avg Energy/ Blow (lb-ft), Lift 1: | E113: =IF('Tex-113,4-E'!$I$30="","",'Tex-113,4-E'!$I$30) -> 3
A114: 112 | B114: =IF('Tex-113,4-E'!$J$56="","",'Tex-113,4-E'!$J$56) ->  | C114: =IF('Tex-113,4-E'!$B$6="","",'Tex-113,4-E'!$B$6) -> Tex-113-E or Tex-114-E | D114: =IF(OR('Tex-113,4-E'!$H$54="",'Tex-113,4-E'!$B$56=""),"",'Tex-113,4-E'!$H$54&", "&'Tex-113,4-E'!$B$56) -> Avg Energy/ Blow (lb-ft), Lift 2: | E114: =IF('Tex-113,4-E'!$I$30="","",'Tex-113,4-E'!$I$30) -> 3
A115: 113 | B115: =IF('Tex-113,4-E'!$J$57="","",'Tex-113,4-E'!$J$57) ->  | C115: =IF('Tex-113,4-E'!$B$6="","",'Tex-113,4-E'!$B$6) -> Tex-113-E or Tex-114-E | D115: =IF(OR('Tex-113,4-E'!$J$54="",'Tex-113,4-E'!$B$57=""),"",'Tex-113,4-E'!$J$54&", "&'Tex-113,4-E'!$B$57) -> Avg Energy/ Blow (lb-ft), Lift 3: | E115: =IF('Tex-113,4-E'!$I$30="","",'Tex-113,4-E'!$I$30) -> 3
A116: 114 | B116: =IF('Tex-113,4-E'!$J$58="","",'Tex-113,4-E'!$J$58) ->  | C116: =IF('Tex-113,4-E'!$B$6="","",'Tex-113,4-E'!$B$6) -> Tex-113-E or Tex-114-E | D116: =IF(OR('Tex-113,4-E'!$L$54="",'Tex-113,4-E'!$B$58=""),"",'Tex-113,4-E'!$L$54&", "&'Tex-113,4-E'!$B$58) -> Avg Energy/ Blow (lb-ft), Lift 4: | E116: =IF('Tex-113,4-E'!$I$30="","",'Tex-113,4-E'!$I$30) -> 3
A117: 115 | B117: =IF('Tex-113,4-E'!$L$55="","",'Tex-113,4-E'!$L$55) ->  | C117: =IF('Tex-113,4-E'!$B$6="","",'Tex-113,4-E'!$B$6) -> Tex-113-E or Tex-114-E | D117: =IF(OR('Tex-113,4-E'!$F$54="",'Tex-113,4-E'!$B$55=""),"",'Tex-113,4-E'!$F$54&", "&'Tex-113,4-E'!$B$55) -> Avg Energy/ Blow (lb-ft), Lift 1: | E117: =IF('Tex-113,4-E'!$K$30="","",'Tex-113,4-E'!$K$30) -> 4
A118: 116 | B118: =IF('Tex-113,4-E'!$L$56="","",'Tex-113,4-E'!$L$56) ->  | C118: =IF('Tex-113,4-E'!$B$6="","",'Tex-113,4-E'!$B$6) -> Tex-113-E or Tex-114-E | D118: =IF(OR('Tex-113,4-E'!$H$54="",'Tex-113,4-E'!$B$56=""),"",'Tex-113,4-E'!$H$54&", "&'Tex-113,4-E'!$B$56) -> Avg Energy/ Blow (lb-ft), Lift 2: | E118: =IF('Tex-113,4-E'!$K$30="","",'Tex-113,4-E'!$K$30) -> 4
A119: 117 | B119: =IF('Tex-113,4-E'!$L$57="","",'Tex-113,4-E'!$L$57) ->  | C119: =IF('Tex-113,4-E'!$B$6="","",'Tex-113,4-E'!$B$6) -> Tex-113-E or Tex-114-E | D119: =IF(OR('Tex-113,4-E'!$J$54="",'Tex-113,4-E'!$B$57=""),"",'Tex-113,4-E'!$J$54&", "&'Tex-113,4-E'!$B$57) -> Avg Energy/ Blow (lb-ft), Lift 3: | E119: =IF('Tex-113,4-E'!$K$30="","",'Tex-113,4-E'!$K$30) -> 4
A120: 118 | B120: =IF('Tex-113,4-E'!$L$58="","",'Tex-113,4-E'!$L$58) ->  | C120: =IF('Tex-113,4-E'!$B$6="","",'Tex-113,4-E'!$B$6) -> Tex-113-E or Tex-114-E | D120: =IF(OR('Tex-113,4-E'!$L$54="",'Tex-113,4-E'!$B$58=""),"",'Tex-113,4-E'!$L$54&", "&'Tex-113,4-E'!$B$58) -> Avg Energy/ Blow (lb-ft), Lift 4: | E120: =IF('Tex-113,4-E'!$K$30="","",'Tex-113,4-E'!$K$30) -> 4
A121: 119 | B121: =IF('Tex-113,4-E'!$E$61="","",'Tex-113,4-E'!$E$61) ->  | C121: =IF('Tex-113,4-E'!$B$6="","",'Tex-113,4-E'!$B$6) -> Tex-113-E or Tex-114-E | D121: =IF(OR('Tex-113,4-E'!$E$60="",'Tex-113,4-E'!$B$61=""),"",'Tex-113,4-E'!$E$60&", "&'Tex-113,4-E'!$B$61) -> Avg. Drop Ht. (in), Lift 1: | E121: =IF('Tex-113,4-E'!$E$30="","",'Tex-113,4-E'!$E$30) -> 1
A122: 120 | B122: =IF('Tex-113,4-E'!$E$62="","",'Tex-113,4-E'!$E$62) ->  | C122: =IF('Tex-113,4-E'!$B$6="","",'Tex-113,4-E'!$B$6) -> Tex-113-E or Tex-114-E | D122: =IF(OR('Tex-113,4-E'!$G$60="",'Tex-113,4-E'!$B$62=""),"",'Tex-113,4-E'!$G$60&", "&'Tex-113,4-E'!$B$62) -> Avg. Drop Ht.(in), Lift 2: | E122: =IF('Tex-113,4-E'!$E$30="","",'Tex-113,4-E'!$E$30) -> 1
A123: 121 | B123: =IF('Tex-113,4-E'!$E$63="","",'Tex-113,4-E'!$E$63) ->  | C123: =IF('Tex-113,4-E'!$B$6="","",'Tex-113,4-E'!$B$6) -> Tex-113-E or Tex-114-E | D123: =IF(OR('Tex-113,4-E'!$I$60="",'Tex-113,4-E'!$B$63=""),"",'Tex-113,4-E'!$I$60&", "&'Tex-113,4-E'!$B$63) -> Avg. Drop Ht.(in), Lift 3: | E123: =IF('Tex-113,4-E'!$E$30="","",'Tex-113,4-E'!$E$30) -> 1
A124: 122 | B124: =IF('Tex-113,4-E'!$E$64="","",'Tex-113,4-E'!$E$64) ->  | C124: =IF('Tex-113,4-E'!$B$6="","",'Tex-113,4-E'!$B$6) -> Tex-113-E or Tex-114-E | D124: =IF(OR('Tex-113,4-E'!$K$60="",'Tex-113,4-E'!$B$64=""),"",'Tex-113,4-E'!$K$60&", "&'Tex-113,4-E'!$B$64) -> Avg. Drop Ht.(in), Lift 4: | E124: =IF('Tex-113,4-E'!$E$30="","",'Tex-113,4-E'!$E$30) -> 1
A125: 123 | B125: =IF('Tex-113,4-E'!$G$61="","",'Tex-113,4-E'!$G$61) ->  | C125: =IF('Tex-113,4-E'!$B$6="","",'Tex-113,4-E'!$B$6) -> Tex-113-E or Tex-114-E | D125: =IF(OR('Tex-113,4-E'!$E$60="",'Tex-113,4-E'!$B$61=""),"",'Tex-113,4-E'!$E$60&", "&'Tex-113,4-E'!$B$61) -> Avg. Drop Ht. (in), Lift 1: | E125: =IF('Tex-113,4-E'!$G$30="","",'Tex-113,4-E'!$G$30) -> 2
A126: 124 | B126: =IF('Tex-113,4-E'!$G$62="","",'Tex-113,4-E'!$G$62) ->  | C126: =IF('Tex-113,4-E'!$B$6="","",'Tex-113,4-E'!$B$6) -> Tex-113-E or Tex-114-E | D126: =IF(OR('Tex-113,4-E'!$G$60="",'Tex-113,4-E'!$B$62=""),"",'Tex-113,4-E'!$G$60&", "&'Tex-113,4-E'!$B$62) -> Avg. Drop Ht.(in), Lift 2: | E126: =IF('Tex-113,4-E'!$G$30="","",'Tex-113,4-E'!$G$30) -> 2
A127: 125 | B127: =IF('Tex-113,4-E'!$G$63="","",'Tex-113,4-E'!$G$63) ->  | C127: =IF('Tex-113,4-E'!$B$6="","",'Tex-113,4-E'!$B$6) -> Tex-113-E or Tex-114-E | D127: =IF(OR('Tex-113,4-E'!$I$60="",'Tex-113,4-E'!$B$63=""),"",'Tex-113,4-E'!$I$60&", "&'Tex-113,4-E'!$B$63) -> Avg. Drop Ht.(in), Lift 3: | E127: =IF('Tex-113,4-E'!$G$30="","",'Tex-113,4-E'!$G$30) -> 2
A128: 126 | B128: =IF('Tex-113,4-E'!$G$64="","",'Tex-113,4-E'!$G$64) ->  | C128: =IF('Tex-113,4-E'!$B$6="","",'Tex-113,4-E'!$B$6) -> Tex-113-E or Tex-114-E | D128: =IF(OR('Tex-113,4-E'!$K$60="",'Tex-113,4-E'!$B$64=""),"",'Tex-113,4-E'!$K$60&", "&'Tex-113,4-E'!$B$64) -> Avg. Drop Ht.(in), Lift 4: | E128: =IF('Tex-113,4-E'!$G$30="","",'Tex-113,4-E'!$G$30) -> 2
A129: 127 | B129: =IF('Tex-113,4-E'!$I$61="","",'Tex-113,4-E'!$I$61) ->  | C129: =IF('Tex-113,4-E'!$B$6="","",'Tex-113,4-E'!$B$6) -> Tex-113-E or Tex-114-E | D129: =IF(OR('Tex-113,4-E'!$E$60="",'Tex-113,4-E'!$B$61=""),"",'Tex-113,4-E'!$E$60&", "&'Tex-113,4-E'!$B$61) -> Avg. Drop Ht. (in), Lift 1: | E129: =IF('Tex-113,4-E'!$I$30="","",'Tex-113,4-E'!$I$30) -> 3
A130: 128 | B130: =IF('Tex-113,4-E'!$I$62="","",'Tex-113,4-E'!$I$62) ->  | C130: =IF('Tex-113,4-E'!$B$6="","",'Tex-113,4-E'!$B$6) -> Tex-113-E or Tex-114-E | D130: =IF(OR('Tex-113,4-E'!$G$60="",'Tex-113,4-E'!$B$62=""),"",'Tex-113,4-E'!$G$60&", "&'Tex-113,4-E'!$B$62) -> Avg. Drop Ht.(in), Lift 2: | E130: =IF('Tex-113,4-E'!$I$30="","",'Tex-113,4-E'!$I$30) -> 3
A131: 129 | B131: =IF('Tex-113,4-E'!$I$63="","",'Tex-113,4-E'!$I$63) ->  | C131: =IF('Tex-113,4-E'!$B$6="","",'Tex-113,4-E'!$B$6) -> Tex-113-E or Tex-114-E | D131: =IF(OR('Tex-113,4-E'!$I$60="",'Tex-113,4-E'!$B$63=""),"",'Tex-113,4-E'!$I$60&", "&'Tex-113,4-E'!$B$63) -> Avg. Drop Ht.(in), Lift 3: | E131: =IF('Tex-113,4-E'!$I$30="","",'Tex-113,4-E'!$I$30) -> 3
A132: 130 | B132: =IF('Tex-113,4-E'!$I$64="","",'Tex-113,4-E'!$I$64) ->  | C132: =IF('Tex-113,4-E'!$B$6="","",'Tex-113,4-E'!$B$6) -> Tex-113-E or Tex-114-E | D132: =IF(OR('Tex-113,4-E'!$K$60="",'Tex-113,4-E'!$B$64=""),"",'Tex-113,4-E'!$K$60&", "&'Tex-113,4-E'!$B$64) -> Avg. Drop Ht.(in), Lift 4: | E132: =IF('Tex-113,4-E'!$I$30="","",'Tex-113,4-E'!$I$30) -> 3
A133: 131 | B133: =IF('Tex-113,4-E'!$K$61="","",'Tex-113,4-E'!$K$61) ->  | C133: =IF('Tex-113,4-E'!$B$6="","",'Tex-113,4-E'!$B$6) -> Tex-113-E or Tex-114-E | D133: =IF(OR('Tex-113,4-E'!$E$60="",'Tex-113,4-E'!$B$61=""),"",'Tex-113,4-E'!$E$60&", "&'Tex-113,4-E'!$B$61) -> Avg. Drop Ht. (in), Lift 1: | E133: =IF('Tex-113,4-E'!$K$30="","",'Tex-113,4-E'!$K$30) -> 4
A134: 132 | B134: =IF('Tex-113,4-E'!$K$62="","",'Tex-113,4-E'!$K$62) ->  | C134: =IF('Tex-113,4-E'!$B$6="","",'Tex-113,4-E'!$B$6) -> Tex-113-E or Tex-114-E | D134: =IF(OR('Tex-113,4-E'!$G$60="",'Tex-113,4-E'!$B$62=""),"",'Tex-113,4-E'!$G$60&", "&'Tex-113,4-E'!$B$62) -> Avg. Drop Ht.(in), Lift 2: | E134: =IF('Tex-113,4-E'!$K$30="","",'Tex-113,4-E'!$K$30) -> 4
A135: 133 | B135: =IF('Tex-113,4-E'!$K$63="","",'Tex-113,4-E'!$K$63) ->  | C135: =IF('Tex-113,4-E'!$B$6="","",'Tex-113,4-E'!$B$6) -> Tex-113-E or Tex-114-E | D135: =IF(OR('Tex-113,4-E'!$I$60="",'Tex-113,4-E'!$B$63=""),"",'Tex-113,4-E'!$I$60&", "&'Tex-113,4-E'!$B$63) -> Avg. Drop Ht.(in), Lift 3: | E135: =IF('Tex-113,4-E'!$K$30="","",'Tex-113,4-E'!$K$30) -> 4
A136: 134 | B136: =IF('Tex-113,4-E'!$K$64="","",'Tex-113,4-E'!$K$64) ->  | C136: =IF('Tex-113,4-E'!$B$6="","",'Tex-113,4-E'!$B$6) -> Tex-113-E or Tex-114-E | D136: =IF(OR('Tex-113,4-E'!$K$60="",'Tex-113,4-E'!$B$64=""),"",'Tex-113,4-E'!$K$60&", "&'Tex-113,4-E'!$B$64) -> Avg. Drop Ht.(in), Lift 4: | E136: =IF('Tex-113,4-E'!$K$30="","",'Tex-113,4-E'!$K$30) -> 4
A137: 135 | B137: =IF('Tex-113,4-E'!$F$61="","",'Tex-113,4-E'!$F$61) ->  | C137: =IF('Tex-113,4-E'!$B$6="","",'Tex-113,4-E'!$B$6) -> Tex-113-E or Tex-114-E | D137: =IF(OR('Tex-113,4-E'!$F$60="",'Tex-113,4-E'!$B$61=""),"",'Tex-113,4-E'!$F$60&", "&'Tex-113,4-E'!$B$61) -> Blows, Lift 1: | E137: =IF('Tex-113,4-E'!$E$30="","",'Tex-113,4-E'!$E$30) -> 1
A138: 136 | B138: =IF('Tex-113,4-E'!$F$62="","",'Tex-113,4-E'!$F$62) ->  | C138: =IF('Tex-113,4-E'!$B$6="","",'Tex-113,4-E'!$B$6) -> Tex-113-E or Tex-114-E | D138: =IF(OR('Tex-113,4-E'!$H$60="",'Tex-113,4-E'!$B$62=""),"",'Tex-113,4-E'!$H$60&", "&'Tex-113,4-E'!$B$62) -> Blows, Lift 2: | E138: =IF('Tex-113,4-E'!$E$30="","",'Tex-113,4-E'!$E$30) -> 1
A139: 137 | B139: =IF('Tex-113,4-E'!$F$63="","",'Tex-113,4-E'!$F$63) ->  | C139: =IF('Tex-113,4-E'!$B$6="","",'Tex-113,4-E'!$B$6) -> Tex-113-E or Tex-114-E | D139: =IF(OR('Tex-113,4-E'!$J$60="",'Tex-113,4-E'!$B$63=""),"",'Tex-113,4-E'!$J$60&", "&'Tex-113,4-E'!$B$63) -> Blows, Lift 3: | E139: =IF('Tex-113,4-E'!$E$30="","",'Tex-113,4-E'!$E$30) -> 1
A140: 138 | B140: =IF('Tex-113,4-E'!$F$64="","",'Tex-113,4-E'!$F$64) ->  | C140: =IF('Tex-113,4-E'!$B$6="","",'Tex-113,4-E'!$B$6) -> Tex-113-E or Tex-114-E | D140: =IF(OR('Tex-113,4-E'!$L$60="",'Tex-113,4-E'!$B$64=""),"",'Tex-113,4-E'!$L$60&", "&'Tex-113,4-E'!$B$64) -> Blows, Lift 4: | E140: =IF('Tex-113,4-E'!$E$30="","",'Tex-113,4-E'!$E$30) -> 1
A141: 139 | B141: =IF('Tex-113,4-E'!$H$61="","",'Tex-113,4-E'!$H$61) ->  | C141: =IF('Tex-113,4-E'!$B$6="","",'Tex-113,4-E'!$B$6) -> Tex-113-E or Tex-114-E | D141: =IF(OR('Tex-113,4-E'!$F$60="",'Tex-113,4-E'!$B$61=""),"",'Tex-113,4-E'!$F$60&", "&'Tex-113,4-E'!$B$61) -> Blows, Lift 1: | E141: =IF('Tex-113,4-E'!$G$30="","",'Tex-113,4-E'!$G$30) -> 2
A142: 140 | B142: =IF('Tex-113,4-E'!$H$62="","",'Tex-113,4-E'!$H$62) ->  | C142: =IF('Tex-113,4-E'!$B$6="","",'Tex-113,4-E'!$B$6) -> Tex-113-E or Tex-114-E | D142: =IF(OR('Tex-113,4-E'!$H$60="",'Tex-113,4-E'!$B$62=""),"",'Tex-113,4-E'!$H$60&", "&'Tex-113,4-E'!$B$62) -> Blows, Lift 2: | E142: =IF('Tex-113,4-E'!$G$30="","",'Tex-113,4-E'!$G$30) -> 2
A143: 141 | B143: =IF('Tex-113,4-E'!$H$63="","",'Tex-113,4-E'!$H$63) ->  | C143: =IF('Tex-113,4-E'!$B$6="","",'Tex-113,4-E'!$B$6) -> Tex-113-E or Tex-114-E | D143: =IF(OR('Tex-113,4-E'!$J$60="",'Tex-113,4-E'!$B$63=""),"",'Tex-113,4-E'!$J$60&", "&'Tex-113,4-E'!$B$63) -> Blows, Lift 3: | E143: =IF('Tex-113,4-E'!$G$30="","",'Tex-113,4-E'!$G$30) -> 2
A144: 142 | B144: =IF('Tex-113,4-E'!$H$64="","",'Tex-113,4-E'!$H$64) ->  | C144: =IF('Tex-113,4-E'!$B$6="","",'Tex-113,4-E'!$B$6) -> Tex-113-E or Tex-114-E | D144: =IF(OR('Tex-113,4-E'!$L$60="",'Tex-113,4-E'!$B$64=""),"",'Tex-113,4-E'!$L$60&", "&'Tex-113,4-E'!$B$64) -> Blows, Lift 4: | E144: =IF('Tex-113,4-E'!$G$30="","",'Tex-113,4-E'!$G$30) -> 2
A145: 143 | B145: =IF('Tex-113,4-E'!$J$61="","",'Tex-113,4-E'!$J$61) ->  | C145: =IF('Tex-113,4-E'!$B$6="","",'Tex-113,4-E'!$B$6) -> Tex-113-E or Tex-114-E | D145: =IF(OR('Tex-113,4-E'!$F$60="",'Tex-113,4-E'!$B$61=""),"",'Tex-113,4-E'!$F$60&", "&'Tex-113,4-E'!$B$61) -> Blows, Lift 1: | E145: =IF('Tex-113,4-E'!$I$30="","",'Tex-113,4-E'!$I$30) -> 3
A146: 144 | B146: =IF('Tex-113,4-E'!$J$62="","",'Tex-113,4-E'!$J$62) ->  | C146: =IF('Tex-113,4-E'!$B$6="","",'Tex-113,4-E'!$B$6) -> Tex-113-E or Tex-114-E | D146: =IF(OR('Tex-113,4-E'!$H$60="",'Tex-113,4-E'!$B$62=""),"",'Tex-113,4-E'!$H$60&", "&'Tex-113,4-E'!$B$62) -> Blows, Lift 2: | E146: =IF('Tex-113,4-E'!$I$30="","",'Tex-113,4-E'!$I$30) -> 3
A147: 145 | B147: =IF('Tex-113,4-E'!$J$63="","",'Tex-113,4-E'!$J$63) ->  | C147: =IF('Tex-113,4-E'!$B$6="","",'Tex-113,4-E'!$B$6) -> Tex-113-E or Tex-114-E | D147: =IF(OR('Tex-113,4-E'!$J$60="",'Tex-113,4-E'!$B$63=""),"",'Tex-113,4-E'!$J$60&", "&'Tex-113,4-E'!$B$63) -> Blows, Lift 3: | E147: =IF('Tex-113,4-E'!$I$30="","",'Tex-113,4-E'!$I$30) -> 3
A148: 146 | B148: =IF('Tex-113,4-E'!$J$64="","",'Tex-113,4-E'!$J$64) ->  | C148: =IF('Tex-113,4-E'!$B$6="","",'Tex-113,4-E'!$B$6) -> Tex-113-E or Tex-114-E | D148: =IF(OR('Tex-113,4-E'!$L$60="",'Tex-113,4-E'!$B$64=""),"",'Tex-113,4-E'!$L$60&", "&'Tex-113,4-E'!$B$64) -> Blows, Lift 4: | E148: =IF('Tex-113,4-E'!$I$30="","",'Tex-113,4-E'!$I$30) -> 3
A149: 147 | B149: =IF('Tex-113,4-E'!$L$61="","",'Tex-113,4-E'!$L$61) ->  | C149: =IF('Tex-113,4-E'!$B$6="","",'Tex-113,4-E'!$B$6) -> Tex-113-E or Tex-114-E | D149: =IF(OR('Tex-113,4-E'!$F$60="",'Tex-113,4-E'!$B$61=""),"",'Tex-113,4-E'!$F$60&", "&'Tex-113,4-E'!$B$61) -> Blows, Lift 1: | E149: =IF('Tex-113,4-E'!$K$30="","",'Tex-113,4-E'!$K$30) -> 4
A150: 148 | B150: =IF('Tex-113,4-E'!$L$62="","",'Tex-113,4-E'!$L$62) ->  | C150: =IF('Tex-113,4-E'!$B$6="","",'Tex-113,4-E'!$B$6) -> Tex-113-E or Tex-114-E | D150: =IF(OR('Tex-113,4-E'!$H$60="",'Tex-113,4-E'!$B$62=""),"",'Tex-113,4-E'!$H$60&", "&'Tex-113,4-E'!$B$62) -> Blows, Lift 2: | E150: =IF('Tex-113,4-E'!$K$30="","",'Tex-113,4-E'!$K$30) -> 4
A151: 149 | B151: =IF('Tex-113,4-E'!$L$63="","",'Tex-113,4-E'!$L$63) ->  | C151: =IF('Tex-113,4-E'!$B$6="","",'Tex-113,4-E'!$B$6) -> Tex-113-E or Tex-114-E | D151: =IF(OR('Tex-113,4-E'!$J$60="",'Tex-113,4-E'!$B$63=""),"",'Tex-113,4-E'!$J$60&", "&'Tex-113,4-E'!$B$63) -> Blows, Lift 3: | E151: =IF('Tex-113,4-E'!$K$30="","",'Tex-113,4-E'!$K$30) -> 4
A152: 150 | B152: =IF('Tex-113,4-E'!$L$64="","",'Tex-113,4-E'!$L$64) ->  | C152: =IF('Tex-113,4-E'!$B$6="","",'Tex-113,4-E'!$B$6) -> Tex-113-E or Tex-114-E | D152: =IF(OR('Tex-113,4-E'!$L$60="",'Tex-113,4-E'!$B$64=""),"",'Tex-113,4-E'!$L$60&", "&'Tex-113,4-E'!$B$64) -> Blows, Lift 4: | E152: =IF('Tex-113,4-E'!$K$30="","",'Tex-113,4-E'!$K$30) -> 4
A153: 151 | B153: =IF('Tex-113,4-E'!$E$80="","",'Tex-113,4-E'!$E$80) ->  | C153: =IF('Tex-113,4-E'!$B$6="","",'Tex-113,4-E'!$B$6) -> Tex-113-E or Tex-114-E | D153: =IF('Tex-113,4-E'!$B$80="","",'Tex-113,4-E'!$B$80) -> Unconfined Strength Data (psi): | E153: =IF('Tex-113,4-E'!$E$30="","",'Tex-113,4-E'!$E$30) -> 1
A154: 152 | B154: =IF('Tex-113,4-E'!$G$80="","",'Tex-113,4-E'!$G$80) ->  | C154: =IF('Tex-113,4-E'!$B$6="","",'Tex-113,4-E'!$B$6) -> Tex-113-E or Tex-114-E | D154: =IF('Tex-113,4-E'!$B$80="","",'Tex-113,4-E'!$B$80) -> Unconfined Strength Data (psi): | E154: =IF('Tex-113,4-E'!$G$30="","",'Tex-113,4-E'!$G$30) -> 2
A155: 153 | B155: =IF('Tex-113,4-E'!$I$80="","",'Tex-113,4-E'!$I$80) ->  | C155: =IF('Tex-113,4-E'!$B$6="","",'Tex-113,4-E'!$B$6) -> Tex-113-E or Tex-114-E | D155: =IF('Tex-113,4-E'!$B$80="","",'Tex-113,4-E'!$B$80) -> Unconfined Strength Data (psi): | E155: =IF('Tex-113,4-E'!$I$30="","",'Tex-113,4-E'!$I$30) -> 3
A156: 154 | B156: =IF('Tex-113,4-E'!$K$80="","",'Tex-113,4-E'!$K$80) ->  | C156: =IF('Tex-113,4-E'!$B$6="","",'Tex-113,4-E'!$B$6) -> Tex-113-E or Tex-114-E | D156: =IF('Tex-113,4-E'!$B$80="","",'Tex-113,4-E'!$B$80) -> Unconfined Strength Data (psi): | E156: =IF('Tex-113,4-E'!$K$30="","",'Tex-113,4-E'!$K$30) -> 4
A157: 155 | B157: =IF('Tex-113,4-E'!$E$81="","",'Tex-113,4-E'!$E$81) ->  | C157: =IF('Tex-113,4-E'!$B$6="","",'Tex-113,4-E'!$B$6) -> Tex-113-E or Tex-114-E | D157: =IF('Tex-113,4-E'!$B$81="","",'Tex-113,4-E'!$B$81) -> Percent Strain (%): | E157: =IF('Tex-113,4-E'!$E$30="","",'Tex-113,4-E'!$E$30) -> 1
A158: 156 | B158: =IF('Tex-113,4-E'!$G$81="","",'Tex-113,4-E'!$G$81) ->  | C158: =IF('Tex-113,4-E'!$B$6="","",'Tex-113,4-E'!$B$6) -> Tex-113-E or Tex-114-E | D158: =IF('Tex-113,4-E'!$B$81="","",'Tex-113,4-E'!$B$81) -> Percent Strain (%): | E158: =IF('Tex-113,4-E'!$G$30="","",'Tex-113,4-E'!$G$30) -> 2
A159: 157 | B159: =IF('Tex-113,4-E'!$I$81="","",'Tex-113,4-E'!$I$81) ->  | C159: =IF('Tex-113,4-E'!$B$6="","",'Tex-113,4-E'!$B$6) -> Tex-113-E or Tex-114-E | D159: =IF('Tex-113,4-E'!$B$81="","",'Tex-113,4-E'!$B$81) -> Percent Strain (%): | E159: =IF('Tex-113,4-E'!$I$30="","",'Tex-113,4-E'!$I$30) -> 3
A160: 158 | B160: =IF('Tex-113,4-E'!$K$81="","",'Tex-113,4-E'!$K$81) ->  | C160: =IF('Tex-113,4-E'!$B$6="","",'Tex-113,4-E'!$B$6) -> Tex-113-E or Tex-114-E | D160: =IF('Tex-113,4-E'!$B$81="","",'Tex-113,4-E'!$B$81) -> Percent Strain (%): | E160: =IF('Tex-113,4-E'!$K$30="","",'Tex-113,4-E'!$K$30) -> 4
A161: 159 | B161: =IF('Tex-113,4-E'!$E$86="","",'Tex-113,4-E'!$E$86) ->  | C161: =IF('Tex-113,4-E'!$B$6="","",'Tex-113,4-E'!$B$6) -> Tex-113-E or Tex-114-E | D161: =IF('Tex-113,4-E'!$B$86="","",'Tex-113,4-E'!$B$86) -> M-D Graph R2 Value:
A162: 160 | B162: =IF('Tex-113,4-E'!$F$100="","",'Tex-113,4-E'!$F$100) ->  | C162: =IF('Tex-113,4-E'!$B$6="","",'Tex-113,4-E'!$B$6) -> Tex-113-E or Tex-114-E | D162: =IF('Tex-113,4-E'!$B$100="","",'Tex-113,4-E'!$B$100) -> TX113 | E162: =IF('Tex-113,4-E'!$F$99="","",'Tex-113,4-E'!$F$99) -> Tech Cert No:
A163: 161 | B163: =IF('Tex-113,4-E'!$F$102="","",'Tex-113,4-E'!$F$102) ->  | C163: =IF('Tex-113,4-E'!$B$6="","",'Tex-113,4-E'!$B$6) -> Tex-113-E or Tex-114-E | D163: =IF('Tex-113,4-E'!$B$102="","",'Tex-113,4-E'!$B$102) -> TX114 | E163: =IF('Tex-113,4-E'!$F$99="","",'Tex-113,4-E'!$F$99) -> Tech Cert No:
A164: 162 | B164: =IF('Tex-113,4-E'!$E$69="","",'Tex-113,4-E'!$E$69) ->  | C164: =IF('Tex-113,4-E'!$B$6="","",'Tex-113,4-E'!$B$6) -> Tex-113-E or Tex-114-E | D164: =IF('Tex-113,4-E'!$B$68="","",'Tex-113,4-E'!$B$68) -> SCA Energy Data | E164: =IF('Tex-113,4-E'!$B$66="","",'Tex-113,4-E'!$B$66) -> Import Data | F164: =IF(OR('Tex-113,4-E'!E$68="",'Tex-113,4-E'!$B69=""),"",'Tex-113,4-E'!$E$68&", "&'Tex-113,4-E'!$B69) -> Total Energy (lb-ft), Lift 1: | G164: =IF('Tex-113,4-E'!$E$30="","",'Tex-113,4-E'!$E$30) -> 1
A165: 163 | B165: =IF('Tex-113,4-E'!$E$70="","",'Tex-113,4-E'!$E$70) ->  | C165: =IF('Tex-113,4-E'!$B$6="","",'Tex-113,4-E'!$B$6) -> Tex-113-E or Tex-114-E | D165: =IF('Tex-113,4-E'!$B$68="","",'Tex-113,4-E'!$B$68) -> SCA Energy Data | E165: =IF('Tex-113,4-E'!$B$66="","",'Tex-113,4-E'!$B$66) -> Import Data | F165: =IF(OR('Tex-113,4-E'!E$68="",'Tex-113,4-E'!$B70=""),"",'Tex-113,4-E'!$E$68&", "&'Tex-113,4-E'!$B70) -> Total Energy (lb-ft), Lift 2: | G165: =IF('Tex-113,4-E'!$E$30="","",'Tex-113,4-E'!$E$30) -> 1
A166: 164 | B166: =IF('Tex-113,4-E'!$E$71="","",'Tex-113,4-E'!$E$71) ->  | C166: =IF('Tex-113,4-E'!$B$6="","",'Tex-113,4-E'!$B$6) -> Tex-113-E or Tex-114-E | D166: =IF('Tex-113,4-E'!$B$68="","",'Tex-113,4-E'!$B$68) -> SCA Energy Data | E166: =IF('Tex-113,4-E'!$B$66="","",'Tex-113,4-E'!$B$66) -> Import Data | F166: =IF(OR('Tex-113,4-E'!E$68="",'Tex-113,4-E'!$B71=""),"",'Tex-113,4-E'!$E$68&", "&'Tex-113,4-E'!$B71) -> Total Energy (lb-ft), Lift 3: | G166: =IF('Tex-113,4-E'!$E$30="","",'Tex-113,4-E'!$E$30) -> 1
A167: 165 | B167: =IF('Tex-113,4-E'!$E$72="","",'Tex-113,4-E'!$E$72) ->  | C167: =IF('Tex-113,4-E'!$B$6="","",'Tex-113,4-E'!$B$6) -> Tex-113-E or Tex-114-E | D167: =IF('Tex-113,4-E'!$B$68="","",'Tex-113,4-E'!$B$68) -> SCA Energy Data | E167: =IF('Tex-113,4-E'!$B$66="","",'Tex-113,4-E'!$B$66) -> Import Data | F167: =IF(OR('Tex-113,4-E'!E$68="",'Tex-113,4-E'!$B72=""),"",'Tex-113,4-E'!$E$68&", "&'Tex-113,4-E'!$B72) -> Total Energy (lb-ft), Lift 4: | G167: =IF('Tex-113,4-E'!$E$30="","",'Tex-113,4-E'!$E$30) -> 1
A168: 166 | B168: =IF('Tex-113,4-E'!$F$69="","",'Tex-113,4-E'!$F$69) ->  | C168: =IF('Tex-113,4-E'!$B$6="","",'Tex-113,4-E'!$B$6) -> Tex-113-E or Tex-114-E | D168: =IF('Tex-113,4-E'!$B$68="","",'Tex-113,4-E'!$B$68) -> SCA Energy Data | E168: =IF('Tex-113,4-E'!$B$66="","",'Tex-113,4-E'!$B$66) -> Import Data | F168: =IF(OR('Tex-113,4-E'!$F$68="",'Tex-113,4-E'!$B69=""),"",'Tex-113,4-E'!$F$68&", "&'Tex-113,4-E'!$B69) -> Avg Energy/ Blow (lb-ft), Lift 1: | G168: =IF('Tex-113,4-E'!$E$30="","",'Tex-113,4-E'!$E$30) -> 1
A169: 167 | B169: =IF('Tex-113,4-E'!$F$70="","",'Tex-113,4-E'!$F$70) ->  | C169: =IF('Tex-113,4-E'!$B$6="","",'Tex-113,4-E'!$B$6) -> Tex-113-E or Tex-114-E | D169: =IF('Tex-113,4-E'!$B$68="","",'Tex-113,4-E'!$B$68) -> SCA Energy Data | E169: =IF('Tex-113,4-E'!$B$66="","",'Tex-113,4-E'!$B$66) -> Import Data | F169: =IF(OR('Tex-113,4-E'!$F$68="",'Tex-113,4-E'!$B70=""),"",'Tex-113,4-E'!$F$68&", "&'Tex-113,4-E'!$B70) -> Avg Energy/ Blow (lb-ft), Lift 2: | G169: =IF('Tex-113,4-E'!$E$30="","",'Tex-113,4-E'!$E$30) -> 1
A170: 168 | B170: =IF('Tex-113,4-E'!$F$71="","",'Tex-113,4-E'!$F$71) ->  | C170: =IF('Tex-113,4-E'!$B$6="","",'Tex-113,4-E'!$B$6) -> Tex-113-E or Tex-114-E | D170: =IF('Tex-113,4-E'!$B$68="","",'Tex-113,4-E'!$B$68) -> SCA Energy Data | E170: =IF('Tex-113,4-E'!$B$66="","",'Tex-113,4-E'!$B$66) -> Import Data | F170: =IF(OR('Tex-113,4-E'!$F$68="",'Tex-113,4-E'!$B71=""),"",'Tex-113,4-E'!$F$68&", "&'Tex-113,4-E'!$B71) -> Avg Energy/ Blow (lb-ft), Lift 3: | G170: =IF('Tex-113,4-E'!$E$30="","",'Tex-113,4-E'!$E$30) -> 1
A171: 169 | B171: =IF('Tex-113,4-E'!$F$72="","",'Tex-113,4-E'!$F$72) ->  | C171: =IF('Tex-113,4-E'!$B$6="","",'Tex-113,4-E'!$B$6) -> Tex-113-E or Tex-114-E | D171: =IF('Tex-113,4-E'!$B$68="","",'Tex-113,4-E'!$B$68) -> SCA Energy Data | E171: =IF('Tex-113,4-E'!$B$66="","",'Tex-113,4-E'!$B$66) -> Import Data | F171: =IF(OR('Tex-113,4-E'!$F$68="",'Tex-113,4-E'!$B72=""),"",'Tex-113,4-E'!$F$68&", "&'Tex-113,4-E'!$B72) -> Avg Energy/ Blow (lb-ft), Lift 4: | G171: =IF('Tex-113,4-E'!$E$30="","",'Tex-113,4-E'!$E$30) -> 1
A172: 170 | B172: =IF('Tex-113,4-E'!$G$69="","",'Tex-113,4-E'!$G$69) ->  | C172: =IF('Tex-113,4-E'!$B$6="","",'Tex-113,4-E'!$B$6) -> Tex-113-E or Tex-114-E | D172: =IF('Tex-113,4-E'!$B$68="","",'Tex-113,4-E'!$B$68) -> SCA Energy Data | E172: =IF('Tex-113,4-E'!$B$66="","",'Tex-113,4-E'!$B$66) -> Import Data | F172: =IF(OR('Tex-113,4-E'!$G$68="",'Tex-113,4-E'!$B$69=""),"",'Tex-113,4-E'!$G$68&", "&'Tex-113,4-E'!$B$69) -> Total Energy (lb-ft), Lift 1: | G172: =IF('Tex-113,4-E'!$G$30="","",'Tex-113,4-E'!$G$30) -> 2
A173: 171 | B173: =IF('Tex-113,4-E'!$G$70="","",'Tex-113,4-E'!$G$70) ->  | C173: =IF('Tex-113,4-E'!$B$6="","",'Tex-113,4-E'!$B$6) -> Tex-113-E or Tex-114-E | D173: =IF('Tex-113,4-E'!$B$68="","",'Tex-113,4-E'!$B$68) -> SCA Energy Data | E173: =IF('Tex-113,4-E'!$B$66="","",'Tex-113,4-E'!$B$66) -> Import Data | F173: =IF(OR('Tex-113,4-E'!$G$68="",'Tex-113,4-E'!$B$70=""),"",'Tex-113,4-E'!$G$68&", "&'Tex-113,4-E'!$B$70) -> Total Energy (lb-ft), Lift 2: | G173: =IF('Tex-113,4-E'!$G$30="","",'Tex-113,4-E'!$G$30) -> 2
A174: 172 | B174: =IF('Tex-113,4-E'!$G$71="","",'Tex-113,4-E'!$G$71) ->  | C174: =IF('Tex-113,4-E'!$B$6="","",'Tex-113,4-E'!$B$6) -> Tex-113-E or Tex-114-E | D174: =IF('Tex-113,4-E'!$B$68="","",'Tex-113,4-E'!$B$68) -> SCA Energy Data | E174: =IF('Tex-113,4-E'!$B$66="","",'Tex-113,4-E'!$B$66) -> Import Data | F174: =IF(OR('Tex-113,4-E'!$G$68="",'Tex-113,4-E'!$B$71=""),"",'Tex-113,4-E'!$G$68&", "&'Tex-113,4-E'!$B$71) -> Total Energy (lb-ft), Lift 3: | G174: =IF('Tex-113,4-E'!$G$30="","",'Tex-113,4-E'!$G$30) -> 2
A175: 173 | B175: =IF('Tex-113,4-E'!$G$72="","",'Tex-113,4-E'!$G$72) ->  | C175: =IF('Tex-113,4-E'!$B$6="","",'Tex-113,4-E'!$B$6) -> Tex-113-E or Tex-114-E | D175: =IF('Tex-113,4-E'!$B$68="","",'Tex-113,4-E'!$B$68) -> SCA Energy Data | E175: =IF('Tex-113,4-E'!$B$66="","",'Tex-113,4-E'!$B$66) -> Import Data | F175: =IF(OR('Tex-113,4-E'!$G$68="",'Tex-113,4-E'!$B$72=""),"",'Tex-113,4-E'!$G$68&", "&'Tex-113,4-E'!$B$72) -> Total Energy (lb-ft), Lift 4: | G175: =IF('Tex-113,4-E'!$G$30="","",'Tex-113,4-E'!$G$30) -> 2
A176: 174 | B176: =IF('Tex-113,4-E'!$H$69="","",'Tex-113,4-E'!$H$69) ->  | C176: =IF('Tex-113,4-E'!$B$6="","",'Tex-113,4-E'!$B$6) -> Tex-113-E or Tex-114-E | D176: =IF('Tex-113,4-E'!$B$68="","",'Tex-113,4-E'!$B$68) -> SCA Energy Data | E176: =IF('Tex-113,4-E'!$B$66="","",'Tex-113,4-E'!$B$66) -> Import Data | F176: =IF(OR('Tex-113,4-E'!$H$68="",'Tex-113,4-E'!$B$69=""),"",'Tex-113,4-E'!$H$68&", "&'Tex-113,4-E'!$B$69) -> Avg Energy/ Blow (lb-ft), Lift 1: | G176: =IF('Tex-113,4-E'!$G$30="","",'Tex-113,4-E'!$G$30) -> 2
A177: 175 | B177: =IF('Tex-113,4-E'!$H$70="","",'Tex-113,4-E'!$H$70) ->  | C177: =IF('Tex-113,4-E'!$B$6="","",'Tex-113,4-E'!$B$6) -> Tex-113-E or Tex-114-E | D177: =IF('Tex-113,4-E'!$B$68="","",'Tex-113,4-E'!$B$68) -> SCA Energy Data | E177: =IF('Tex-113,4-E'!$B$66="","",'Tex-113,4-E'!$B$66) -> Import Data | F177: =IF(OR('Tex-113,4-E'!$H$68="",'Tex-113,4-E'!$B$70=""),"",'Tex-113,4-E'!$H$68&", "&'Tex-113,4-E'!$B$70) -> Avg Energy/ Blow (lb-ft), Lift 2: | G177: =IF('Tex-113,4-E'!$G$30="","",'Tex-113,4-E'!$G$30) -> 2
A178: 176 | B178: =IF('Tex-113,4-E'!$H$71="","",'Tex-113,4-E'!$H$71) ->  | C178: =IF('Tex-113,4-E'!$B$6="","",'Tex-113,4-E'!$B$6) -> Tex-113-E or Tex-114-E | D178: =IF('Tex-113,4-E'!$B$68="","",'Tex-113,4-E'!$B$68) -> SCA Energy Data | E178: =IF('Tex-113,4-E'!$B$66="","",'Tex-113,4-E'!$B$66) -> Import Data | F178: =IF(OR('Tex-113,4-E'!$H$68="",'Tex-113,4-E'!$B$71=""),"",'Tex-113,4-E'!$H$68&", "&'Tex-113,4-E'!$B$71) -> Avg Energy/ Blow (lb-ft), Lift 3: | G178: =IF('Tex-113,4-E'!$G$30="","",'Tex-113,4-E'!$G$30) -> 2
A179: 177 | B179: =IF('Tex-113,4-E'!$H$72="","",'Tex-113,4-E'!$H$72) ->  | C179: =IF('Tex-113,4-E'!$B$6="","",'Tex-113,4-E'!$B$6) -> Tex-113-E or Tex-114-E | D179: =IF('Tex-113,4-E'!$B$68="","",'Tex-113,4-E'!$B$68) -> SCA Energy Data | E179: =IF('Tex-113,4-E'!$B$66="","",'Tex-113,4-E'!$B$66) -> Import Data | F179: =IF(OR('Tex-113,4-E'!$H$68="",'Tex-113,4-E'!$B$72=""),"",'Tex-113,4-E'!$H$68&", "&'Tex-113,4-E'!$B$72) -> Avg Energy/ Blow (lb-ft), Lift 4: | G179: =IF('Tex-113,4-E'!$G$30="","",'Tex-113,4-E'!$G$30) -> 2
A180: 178 | B180: =IF('Tex-113,4-E'!$I$69="","",'Tex-113,4-E'!$I$69) ->  | C180: =IF('Tex-113,4-E'!$B$6="","",'Tex-113,4-E'!$B$6) -> Tex-113-E or Tex-114-E | D180: =IF('Tex-113,4-E'!$B$68="","",'Tex-113,4-E'!$B$68) -> SCA Energy Data | E180: =IF('Tex-113,4-E'!$B$66="","",'Tex-113,4-E'!$B$66) -> Import Data | F180: =IF(OR('Tex-113,4-E'!$I$68="",'Tex-113,4-E'!$B$69=""),"",'Tex-113,4-E'!$I$68&", "&'Tex-113,4-E'!$B$69) -> Total Energy (lb-ft), Lift 1: | G180: =IF('Tex-113,4-E'!$I$30="","",'Tex-113,4-E'!$I$30) -> 3
A181: 179 | B181: =IF('Tex-113,4-E'!$I$70="","",'Tex-113,4-E'!$I$70) ->  | C181: =IF('Tex-113,4-E'!$B$6="","",'Tex-113,4-E'!$B$6) -> Tex-113-E or Tex-114-E | D181: =IF('Tex-113,4-E'!$B$68="","",'Tex-113,4-E'!$B$68) -> SCA Energy Data | E181: =IF('Tex-113,4-E'!$B$66="","",'Tex-113,4-E'!$B$66) -> Import Data | F181: =IF(OR('Tex-113,4-E'!$I$68="",'Tex-113,4-E'!$B$70=""),"",'Tex-113,4-E'!$I$68&", "&'Tex-113,4-E'!$B$70) -> Total Energy (lb-ft), Lift 2: | G181: =IF('Tex-113,4-E'!$I$30="","",'Tex-113,4-E'!$I$30) -> 3
A182: 180 | B182: =IF('Tex-113,4-E'!$I$71="","",'Tex-113,4-E'!$I$71) ->  | C182: =IF('Tex-113,4-E'!$B$6="","",'Tex-113,4-E'!$B$6) -> Tex-113-E or Tex-114-E | D182: =IF('Tex-113,4-E'!$B$68="","",'Tex-113,4-E'!$B$68) -> SCA Energy Data | E182: =IF('Tex-113,4-E'!$B$66="","",'Tex-113,4-E'!$B$66) -> Import Data | F182: =IF(OR('Tex-113,4-E'!$I$68="",'Tex-113,4-E'!$B$71=""),"",'Tex-113,4-E'!$I$68&", "&'Tex-113,4-E'!$B$71) -> Total Energy (lb-ft), Lift 3: | G182: =IF('Tex-113,4-E'!$I$30="","",'Tex-113,4-E'!$I$30) -> 3
A183: 181 | B183: =IF('Tex-113,4-E'!$I$72="","",'Tex-113,4-E'!$I$72) ->  | C183: =IF('Tex-113,4-E'!$B$6="","",'Tex-113,4-E'!$B$6) -> Tex-113-E or Tex-114-E | D183: =IF('Tex-113,4-E'!$B$68="","",'Tex-113,4-E'!$B$68) -> SCA Energy Data | E183: =IF('Tex-113,4-E'!$B$66="","",'Tex-113,4-E'!$B$66) -> Import Data | F183: =IF(OR('Tex-113,4-E'!$I$68="",'Tex-113,4-E'!$B$72=""),"",'Tex-113,4-E'!$I$68&", "&'Tex-113,4-E'!$B$72) -> Total Energy (lb-ft), Lift 4: | G183: =IF('Tex-113,4-E'!$I$30="","",'Tex-113,4-E'!$I$30) -> 3
A184: 182 | B184: =IF('Tex-113,4-E'!$J$69="","",'Tex-113,4-E'!$J$69) ->  | C184: =IF('Tex-113,4-E'!$B$6="","",'Tex-113,4-E'!$B$6) -> Tex-113-E or Tex-114-E | D184: =IF('Tex-113,4-E'!$B$68="","",'Tex-113,4-E'!$B$68) -> SCA Energy Data | E184: =IF('Tex-113,4-E'!$B$66="","",'Tex-113,4-E'!$B$66) -> Import Data | F184: =IF(OR('Tex-113,4-E'!$J$68="",'Tex-113,4-E'!$B$69=""),"",'Tex-113,4-E'!$J$68&", "&'Tex-113,4-E'!$B$69) -> Avg Energy/ Blow (lb-ft), Lift 1: | G184: =IF('Tex-113,4-E'!$I$30="","",'Tex-113,4-E'!$I$30) -> 3
A185: 183 | B185: =IF('Tex-113,4-E'!$J$70="","",'Tex-113,4-E'!$J$70) ->  | C185: =IF('Tex-113,4-E'!$B$6="","",'Tex-113,4-E'!$B$6) -> Tex-113-E or Tex-114-E | D185: =IF('Tex-113,4-E'!$B$68="","",'Tex-113,4-E'!$B$68) -> SCA Energy Data | E185: =IF('Tex-113,4-E'!$B$66="","",'Tex-113,4-E'!$B$66) -> Import Data | F185: =IF(OR('Tex-113,4-E'!$J$68="",'Tex-113,4-E'!$B$70=""),"",'Tex-113,4-E'!$J$68&", "&'Tex-113,4-E'!$B$70) -> Avg Energy/ Blow (lb-ft), Lift 2: | G185: =IF('Tex-113,4-E'!$I$30="","",'Tex-113,4-E'!$I$30) -> 3
A186: 184 | B186: =IF('Tex-113,4-E'!$J$71="","",'Tex-113,4-E'!$J$71) ->  | C186: =IF('Tex-113,4-E'!$B$6="","",'Tex-113,4-E'!$B$6) -> Tex-113-E or Tex-114-E | D186: =IF('Tex-113,4-E'!$B$68="","",'Tex-113,4-E'!$B$68) -> SCA Energy Data | E186: =IF('Tex-113,4-E'!$B$66="","",'Tex-113,4-E'!$B$66) -> Import Data | F186: =IF(OR('Tex-113,4-E'!$J$68="",'Tex-113,4-E'!$B$71=""),"",'Tex-113,4-E'!$J$68&", "&'Tex-113,4-E'!$B$71) -> Avg Energy/ Blow (lb-ft), Lift 3: | G186: =IF('Tex-113,4-E'!$I$30="","",'Tex-113,4-E'!$I$30) -> 3
A187: 185 | B187: =IF('Tex-113,4-E'!$J$72="","",'Tex-113,4-E'!$J$72) ->  | C187: =IF('Tex-113,4-E'!$B$6="","",'Tex-113,4-E'!$B$6) -> Tex-113-E or Tex-114-E | D187: =IF('Tex-113,4-E'!$B$68="","",'Tex-113,4-E'!$B$68) -> SCA Energy Data | E187: =IF('Tex-113,4-E'!$B$66="","",'Tex-113,4-E'!$B$66) -> Import Data | F187: =IF(OR('Tex-113,4-E'!$J$68="",'Tex-113,4-E'!$B$72=""),"",'Tex-113,4-E'!$J$68&", "&'Tex-113,4-E'!$B$72) -> Avg Energy/ Blow (lb-ft), Lift 4: | G187: =IF('Tex-113,4-E'!$I$30="","",'Tex-113,4-E'!$I$30) -> 3
A188: 186 | B188: =IF('Tex-113,4-E'!$K$69="","",'Tex-113,4-E'!$K$69) ->  | C188: =IF('Tex-113,4-E'!$B$6="","",'Tex-113,4-E'!$B$6) -> Tex-113-E or Tex-114-E | D188: =IF('Tex-113,4-E'!$B$68="","",'Tex-113,4-E'!$B$68) -> SCA Energy Data | E188: =IF('Tex-113,4-E'!$B$66="","",'Tex-113,4-E'!$B$66) -> Import Data | F188: =IF(OR('Tex-113,4-E'!$K$68="",'Tex-113,4-E'!$B$69=""),"",'Tex-113,4-E'!$K$68&", "&'Tex-113,4-E'!$B$69) -> Total Energy (lb-ft), Lift 1: | G188: =IF('Tex-113,4-E'!$K$30="","",'Tex-113,4-E'!$K$30) -> 4
A189: 187 | B189: =IF('Tex-113,4-E'!$K$70="","",'Tex-113,4-E'!$K$70) ->  | C189: =IF('Tex-113,4-E'!$B$6="","",'Tex-113,4-E'!$B$6) -> Tex-113-E or Tex-114-E | D189: =IF('Tex-113,4-E'!$B$68="","",'Tex-113,4-E'!$B$68) -> SCA Energy Data | E189: =IF('Tex-113,4-E'!$B$66="","",'Tex-113,4-E'!$B$66) -> Import Data | F189: =IF(OR('Tex-113,4-E'!$K$68="",'Tex-113,4-E'!$B$70=""),"",'Tex-113,4-E'!$K$68&", "&'Tex-113,4-E'!$B$70) -> Total Energy (lb-ft), Lift 2: | G189: =IF('Tex-113,4-E'!$K$30="","",'Tex-113,4-E'!$K$30) -> 4
A190: 188 | B190: =IF('Tex-113,4-E'!$K$71="","",'Tex-113,4-E'!$K$71) ->  | C190: =IF('Tex-113,4-E'!$B$6="","",'Tex-113,4-E'!$B$6) -> Tex-113-E or Tex-114-E | D190: =IF('Tex-113,4-E'!$B$68="","",'Tex-113,4-E'!$B$68) -> SCA Energy Data | E190: =IF('Tex-113,4-E'!$B$66="","",'Tex-113,4-E'!$B$66) -> Import Data | F190: =IF(OR('Tex-113,4-E'!$K$68="",'Tex-113,4-E'!$B$71=""),"",'Tex-113,4-E'!$K$68&", "&'Tex-113,4-E'!$B$71) -> Total Energy (lb-ft), Lift 3: | G190: =IF('Tex-113,4-E'!$K$30="","",'Tex-113,4-E'!$K$30) -> 4
A191: 189 | B191: =IF('Tex-113,4-E'!$K$72="","",'Tex-113,4-E'!$K$72) ->  | C191: =IF('Tex-113,4-E'!$B$6="","",'Tex-113,4-E'!$B$6) -> Tex-113-E or Tex-114-E | D191: =IF('Tex-113,4-E'!$B$68="","",'Tex-113,4-E'!$B$68) -> SCA Energy Data | E191: =IF('Tex-113,4-E'!$B$66="","",'Tex-113,4-E'!$B$66) -> Import Data | F191: =IF(OR('Tex-113,4-E'!$K$68="",'Tex-113,4-E'!$B$72=""),"",'Tex-113,4-E'!$K$68&", "&'Tex-113,4-E'!$B$72) -> Total Energy (lb-ft), Lift 4: | G191: =IF('Tex-113,4-E'!$K$30="","",'Tex-113,4-E'!$K$30) -> 4
A192: 190 | B192: =IF('Tex-113,4-E'!$L$69="","",'Tex-113,4-E'!$L$69) ->  | C192: =IF('Tex-113,4-E'!$B$6="","",'Tex-113,4-E'!$B$6) -> Tex-113-E or Tex-114-E | D192: =IF('Tex-113,4-E'!$B$68="","",'Tex-113,4-E'!$B$68) -> SCA Energy Data | E192: =IF('Tex-113,4-E'!$B$66="","",'Tex-113,4-E'!$B$66) -> Import Data | F192: =IF(OR('Tex-113,4-E'!$L$68="",'Tex-113,4-E'!$B$69=""),"",'Tex-113,4-E'!$L$68&", "&'Tex-113,4-E'!$B$69) -> Avg Energy/ Blow (lb-ft), Lift 1: | G192: =IF('Tex-113,4-E'!$K$30="","",'Tex-113,4-E'!$K$30) -> 4
A193: 191 | B193: =IF('Tex-113,4-E'!$L$70="","",'Tex-113,4-E'!$L$70) ->  | C193: =IF('Tex-113,4-E'!$B$6="","",'Tex-113,4-E'!$B$6) -> Tex-113-E or Tex-114-E | D193: =IF('Tex-113,4-E'!$B$68="","",'Tex-113,4-E'!$B$68) -> SCA Energy Data | E193: =IF('Tex-113,4-E'!$B$66="","",'Tex-113,4-E'!$B$66) -> Import Data | F193: =IF(OR('Tex-113,4-E'!$L$68="",'Tex-113,4-E'!$B$70=""),"",'Tex-113,4-E'!$L$68&", "&'Tex-113,4-E'!$B$70) -> Avg Energy/ Blow (lb-ft), Lift 2: | G193: =IF('Tex-113,4-E'!$K$30="","",'Tex-113,4-E'!$K$30) -> 4
A194: 192 | B194: =IF('Tex-113,4-E'!$L$71="","",'Tex-113,4-E'!$L$71) ->  | C194: =IF('Tex-113,4-E'!$B$6="","",'Tex-113,4-E'!$B$6) -> Tex-113-E or Tex-114-E | D194: =IF('Tex-113,4-E'!$B$68="","",'Tex-113,4-E'!$B$68) -> SCA Energy Data | E194: =IF('Tex-113,4-E'!$B$66="","",'Tex-113,4-E'!$B$66) -> Import Data | F194: =IF(OR('Tex-113,4-E'!$L$68="",'Tex-113,4-E'!$B$71=""),"",'Tex-113,4-E'!$L$68&", "&'Tex-113,4-E'!$B$71) -> Avg Energy/ Blow (lb-ft), Lift 3: | G194: =IF('Tex-113,4-E'!$K$30="","",'Tex-113,4-E'!$K$30) -> 4
A195: 193 | B195: =IF('Tex-113,4-E'!$L$72="","",'Tex-113,4-E'!$L$72) ->  | C195: =IF('Tex-113,4-E'!$B$6="","",'Tex-113,4-E'!$B$6) -> Tex-113-E or Tex-114-E | D195: =IF('Tex-113,4-E'!$B$68="","",'Tex-113,4-E'!$B$68) -> SCA Energy Data | E195: =IF('Tex-113,4-E'!$B$66="","",'Tex-113,4-E'!$B$66) -> Import Data | F195: =IF(OR('Tex-113,4-E'!$L$68="",'Tex-113,4-E'!$B$72=""),"",'Tex-113,4-E'!$L$68&", "&'Tex-113,4-E'!$B$72) -> Avg Energy/ Blow (lb-ft), Lift 4: | G195: =IF('Tex-113,4-E'!$K$30="","",'Tex-113,4-E'!$K$30) -> 4
A196: 194 | B196: =IF('Tex-113,4-E'!$E$75="","",'Tex-113,4-E'!$E$75) ->  | C196: =IF('Tex-113,4-E'!$B$6="","",'Tex-113,4-E'!$B$6) -> Tex-113-E or Tex-114-E | D196: =IF('Tex-113,4-E'!$B$80="","",'Tex-113,4-E'!$B$80) -> Unconfined Strength Data (psi): | E196: =IF('Tex-113,4-E'!$B$66="","",'Tex-113,4-E'!$B$66) -> Import Data | F196: =IF(OR('Tex-113,4-E'!E$74="",'Tex-113,4-E'!$B75=""),"",'Tex-113,4-E'!$E$74&", "&'Tex-113,4-E'!$B75) -> Avg. Drop Ht. (in), Lift 1: | G196: =IF('Tex-113,4-E'!$E$30="","",'Tex-113,4-E'!$E$30) -> 1
A197: 195 | B197: =IF('Tex-113,4-E'!$E$76="","",'Tex-113,4-E'!$E$76) ->  | C197: =IF('Tex-113,4-E'!$B$6="","",'Tex-113,4-E'!$B$6) -> Tex-113-E or Tex-114-E | D197: =IF('Tex-113,4-E'!$B$80="","",'Tex-113,4-E'!$B$80) -> Unconfined Strength Data (psi): | E197: =IF('Tex-113,4-E'!$B$66="","",'Tex-113,4-E'!$B$66) -> Import Data | F197: =IF(OR('Tex-113,4-E'!E$74="",'Tex-113,4-E'!$B76=""),"",'Tex-113,4-E'!$E$74&", "&'Tex-113,4-E'!$B76) -> Avg. Drop Ht. (in), Lift 2: | G197: =IF('Tex-113,4-E'!$E$30="","",'Tex-113,4-E'!$E$30) -> 1
A198: 196 | B198: =IF('Tex-113,4-E'!$E$77="","",'Tex-113,4-E'!$E$77) ->  | C198: =IF('Tex-113,4-E'!$B$6="","",'Tex-113,4-E'!$B$6) -> Tex-113-E or Tex-114-E | D198: =IF('Tex-113,4-E'!$B$80="","",'Tex-113,4-E'!$B$80) -> Unconfined Strength Data (psi): | E198: =IF('Tex-113,4-E'!$B$66="","",'Tex-113,4-E'!$B$66) -> Import Data | F198: =IF(OR('Tex-113,4-E'!E$74="",'Tex-113,4-E'!$B77=""),"",'Tex-113,4-E'!$E$74&", "&'Tex-113,4-E'!$B77) -> Avg. Drop Ht. (in), Lift 3: | G198: =IF('Tex-113,4-E'!$E$30="","",'Tex-113,4-E'!$E$30) -> 1
A199: 197 | B199: =IF('Tex-113,4-E'!$E$78="","",'Tex-113,4-E'!$E$78) ->  | C199: =IF('Tex-113,4-E'!$B$6="","",'Tex-113,4-E'!$B$6) -> Tex-113-E or Tex-114-E | D199: =IF('Tex-113,4-E'!$B$80="","",'Tex-113,4-E'!$B$80) -> Unconfined Strength Data (psi): | E199: =IF('Tex-113,4-E'!$B$66="","",'Tex-113,4-E'!$B$66) -> Import Data | F199: =IF(OR('Tex-113,4-E'!E$74="",'Tex-113,4-E'!$B78=""),"",'Tex-113,4-E'!$E$74&", "&'Tex-113,4-E'!$B78) -> Avg. Drop Ht. (in), Lift 4: | G199: =IF('Tex-113,4-E'!$E$30="","",'Tex-113,4-E'!$E$30) -> 1
A200: 198 | B200: =IF('Tex-113,4-E'!$F$75="","",'Tex-113,4-E'!$F$75) ->  | C200: =IF('Tex-113,4-E'!$B$6="","",'Tex-113,4-E'!$B$6) -> Tex-113-E or Tex-114-E | D200: =IF('Tex-113,4-E'!$B$80="","",'Tex-113,4-E'!$B$80) -> Unconfined Strength Data (psi): | E200: =IF('Tex-113,4-E'!$B$66="","",'Tex-113,4-E'!$B$66) -> Import Data | F200: =IF(OR('Tex-113,4-E'!E$74="",'Tex-113,4-E'!$B75=""),"",'Tex-113,4-E'!$E$74&", "&'Tex-113,4-E'!$B75) -> Avg. Drop Ht. (in), Lift 1: | G200: =IF('Tex-113,4-E'!$E$30="","",'Tex-113,4-E'!$E$30) -> 1
... 31 more rows
